,Directorate,Supplier Name,Supplier Invoice No,Payment Date,Gross Invoice Value,Vat Amount,Vendor Id,Purpose of Expenditure,Description,Redact flag,Year,Period
1,Community and Housing,SOUTHPARK RESIDENTIAL HOME,1076337,07-Dec-23,4857.14,0,19,Older People Placements - East,321017              Nursing & Residential Care Homes,A,2023,9
2,Community and Housing,SOUTHPARK RESIDENTIAL HOME,1084246,15-Dec-23,3400,0,19,Older People Placements - East,321017              Nursing & Residential Care Homes,A,2023,9
3,Community and Housing,SOUTHPARK RESIDENTIAL HOME,1084600,15-Dec-23,3400,0,19,Older People Placements - East,321017              Nursing & Residential Care Homes,A,2023,9
4,"Children, Schools and Family",MORE HOUSE SCHOOL,31362,28-Dec-23,7188,0,345,Non-Delegated Statements,170000              Education,A,2023,9
5,"Children, Schools and Family",MORE HOUSE SCHOOL,31369,28-Dec-23,6337,0,345,Non-Delegated Statements,170000              Education,A,2023,9
6,"Children, Schools and Family",MORE HOUSE SCHOOL,31505,28-Dec-23,7188,0,345,Non-Delegated Statements,170000              Education,A,2023,9
7,"Children, Schools and Family",MORE HOUSE SCHOOL,31602,28-Dec-23,6547,0,345,Non-Delegated Statements,170000              Education,A,2023,9
8,"Children, Schools and Family",MORE HOUSE SCHOOL,31637,28-Dec-23,7188,0,345,Non-Delegated Statements,170000              Education,A,2023,9
9,"Children, Schools and Family",MORE HOUSE SCHOOL,31740,29-Dec-23,6337,0,345,Non-Delegated Statements,170000              Education,A,2023,9
10,"Children, Schools and Family",MORE HOUSE SCHOOL,31747,29-Dec-23,6337,0,345,Non-Delegated Statements,170000              Education,A,2023,9
11,"Children, Schools and Family",MORE HOUSE SCHOOL,31344,28-Dec-23,6618.3,0,345,Non-Delegated Statements,170000              Education,A,2023,9
12,Community and Housing,ST TERESA`S HOME FOR THE ELDERLY,1084180,15-Dec-23,3764.24,0,362,Older People Placements - East,321017              Nursing & Residential Care Homes,A,2023,9
13,Community and Housing,THE WHITE HOUSE NURSING HOME,1084577,15-Dec-23,3396,0,611,Older People Placements - East,321000              Social Community Care Supplies & Services - Adult,A,2023,9
14,"Children, Schools and Family",BLOSSOM HOUSE SCHOOL,10271,11-Dec-23,16850,0,777,Non-Delegated Statements,170000              Education,A,2023,9
15,"Children, Schools and Family",BLOSSOM HOUSE SCHOOL,10130,12-Dec-23,7166.67,0,777,Non-Delegated Statements,170000              Education,A,2023,9
16,"Children, Schools and Family",BLOSSOM HOUSE SCHOOL,10115,12-Dec-23,30791.67,0,777,Non-Delegated Statements,170000              Education,A,2023,9
17,"Children, Schools and Family",BLOSSOM HOUSE SCHOOL,10131,18-Dec-23,13807.5,0,777,Non-Delegated Statements,170000              Education,A,2023,9
18,"Children, Schools and Family",BLOSSOM HOUSE SCHOOL,10091,18-Dec-23,15172.5,0,777,Non-Delegated Statements,170000              Education,A,2023,9
19,"Children, Schools and Family",BLOSSOM HOUSE SCHOOL,10109,18-Dec-23,16747.5,0,777,Non-Delegated Statements,170000              Education,A,2023,9
20,"Children, Schools and Family",BLOSSOM HOUSE SCHOOL,10120,18-Dec-23,17587.5,0,777,Non-Delegated Statements,170000              Education,A,2023,9
21,"Children, Schools and Family",BLOSSOM HOUSE SCHOOL,10093,18-Dec-23,13807.5,0,777,Non-Delegated Statements,170000              Education,A,2023,9
22,"Children, Schools and Family",BLOSSOM HOUSE SCHOOL,10073,18-Dec-23,16012.5,0,777,Non-Delegated Statements,170000              Education,A,2023,9
23,"Children, Schools and Family",BLOSSOM HOUSE SCHOOL,10081,18-Dec-23,17587.5,0,777,Non-Delegated Statements,170000              Education,A,2023,9
24,"Children, Schools and Family",BLOSSOM HOUSE SCHOOL,10103,18-Dec-23,16012.5,0,777,Non-Delegated Statements,170000              Education,A,2023,9
25,"Children, Schools and Family",BLOSSOM HOUSE SCHOOL,10070,18-Dec-23,16747.5,0,777,Non-Delegated Statements,170000              Education,A,2023,9
26,"Children, Schools and Family",BLOSSOM HOUSE SCHOOL,10132,18-Dec-23,13387.5,0,777,Non-Delegated Statements,170000              Education,A,2023,9
27,"Children, Schools and Family",BLOSSOM HOUSE SCHOOL,10104,18-Dec-23,15165,0,777,Non-Delegated Statements,170000              Education,A,2023,9
28,"Children, Schools and Family",BLOSSOM HOUSE SCHOOL,10121,18-Dec-23,13807.5,0,777,Non-Delegated Statements,170000              Education,A,2023,9
29,"Children, Schools and Family",BLOSSOM HOUSE SCHOOL,10127,18-Dec-23,18850,0,777,Non-Delegated Statements,170000              Education,A,2023,9
30,"Children, Schools and Family",BLOSSOM HOUSE SCHOOL,10137,18-Dec-23,18112.5,0,777,Non-Delegated Statements,170000              Education,A,2023,9
31,"Children, Schools and Family",BLOSSOM HOUSE SCHOOL,10075,18-Dec-23,17587.5,0,777,Non-Delegated Statements,170000              Education,A,2023,9
32,"Children, Schools and Family",BLOSSOM HOUSE SCHOOL,10108,18-Dec-23,24750,0,777,Non-Delegated Statements,170000              Education,A,2023,9
33,"Children, Schools and Family",BLOSSOM HOUSE SCHOOL,10136,18-Dec-23,18112.5,0,777,Non-Delegated Statements,170000              Education,A,2023,9
34,"Children, Schools and Family",BLOSSOM HOUSE SCHOOL,10082,18-Dec-23,18850,0,777,Non-Delegated Statements,170000              Education,A,2023,9
35,"Children, Schools and Family",BLOSSOM HOUSE SCHOOL,10135,18-Dec-23,18112.5,0,777,Non-Delegated Statements,170000              Education,A,2023,9
36,"Children, Schools and Family",BLOSSOM HOUSE SCHOOL,10072,18-Dec-23,16012.5,0,777,Non-Delegated Statements,170000              Education,A,2023,9
37,"Children, Schools and Family",BLOSSOM HOUSE SCHOOL,10116,18-Dec-23,17587.5,0,777,Non-Delegated Statements,170000              Education,A,2023,9
38,"Children, Schools and Family",BLOSSOM HOUSE SCHOOL,10086,18-Dec-23,13387.5,0,777,Non-Delegated Statements,170000              Education,A,2023,9
39,"Children, Schools and Family",BLOSSOM HOUSE SCHOOL,10077,18-Dec-23,16747.5,0,777,Non-Delegated Statements,170000              Education,A,2023,9
40,"Children, Schools and Family",BLOSSOM HOUSE SCHOOL,10085,18-Dec-23,17587.5,0,777,Non-Delegated Statements,170000              Education,A,2023,9
41,"Children, Schools and Family",BLOSSOM HOUSE SCHOOL,10113,18-Dec-23,16747.5,0,777,Non-Delegated Statements,170000              Education,A,2023,9
42,"Children, Schools and Family",BLOSSOM HOUSE SCHOOL,10069,18-Dec-23,13807.5,0,777,Non-Delegated Statements,170000              Education,A,2023,9
43,"Children, Schools and Family",BLOSSOM HOUSE SCHOOL,10138,18-Dec-23,18112.5,0,777,Non-Delegated Statements,170000              Education,A,2023,9
44,"Children, Schools and Family",BLOSSOM HOUSE SCHOOL,10076,18-Dec-23,16747.5,0,777,Non-Delegated Statements,170000              Education,A,2023,9
45,"Children, Schools and Family",BLOSSOM HOUSE SCHOOL,10083,18-Dec-23,16012.5,0,777,Non-Delegated Statements,170000              Education,A,2023,9
46,"Children, Schools and Family",BLOSSOM HOUSE SCHOOL,10101,18-Dec-23,12967.5,0,777,Non-Delegated Statements,170000              Education,A,2023,9
47,"Children, Schools and Family",BLOSSOM HOUSE SCHOOL,10112,18-Dec-23,17587.5,0,777,Non-Delegated Statements,170000              Education,A,2023,9
48,"Children, Schools and Family",BLOSSOM HOUSE SCHOOL,10068,18-Dec-23,12967.5,0,777,Non-Delegated Statements,170000              Education,A,2023,9
49,"Children, Schools and Family",BLOSSOM HOUSE SCHOOL,10128,18-Dec-23,18850,0,777,Non-Delegated Statements,170000              Education,A,2023,9
50,"Children, Schools and Family",BLOSSOM HOUSE SCHOOL,10090,18-Dec-23,17587.5,0,777,Non-Delegated Statements,170000              Education,A,2023,9
51,"Children, Schools and Family",BLOSSOM HOUSE SCHOOL,10100,18-Dec-23,16012.5,0,777,Non-Delegated Statements,170000              Education,A,2023,9
52,"Children, Schools and Family",BLOSSOM HOUSE SCHOOL,10111,18-Dec-23,21612.5,0,777,Non-Delegated Statements,170000              Education,A,2023,9
53,"Children, Schools and Family",BLOSSOM HOUSE SCHOOL,10119,18-Dec-23,13807.5,0,777,Non-Delegated Statements,170000              Education,A,2023,9
54,"Children, Schools and Family",BLOSSOM HOUSE SCHOOL,10126,18-Dec-23,18850,0,777,Non-Delegated Statements,170000              Education,A,2023,9
55,"Children, Schools and Family",BLOSSOM HOUSE SCHOOL,10074,18-Dec-23,15172.5,0,777,Non-Delegated Statements,170000              Education,A,2023,9
56,"Children, Schools and Family",BLOSSOM HOUSE SCHOOL,10129,18-Dec-23,18112.5,0,777,Non-Delegated Statements,170000              Education,A,2023,9
57,"Children, Schools and Family",BLOSSOM HOUSE SCHOOL,10089,18-Dec-23,12967.5,0,777,Non-Delegated Statements,170000              Education,A,2023,9
58,"Children, Schools and Family",BLOSSOM HOUSE SCHOOL,10098,18-Dec-23,16747.5,0,777,Non-Delegated Statements,170000              Education,A,2023,9
59,"Children, Schools and Family",BLOSSOM HOUSE SCHOOL,10107,18-Dec-23,15172.5,0,777,Non-Delegated Statements,170000              Education,A,2023,9
60,"Children, Schools and Family",BLOSSOM HOUSE SCHOOL,10110,18-Dec-23,12967.5,0,777,Non-Delegated Statements,170000              Education,A,2023,9
61,"Children, Schools and Family",BLOSSOM HOUSE SCHOOL,10118,18-Dec-23,18850,0,777,Non-Delegated Statements,170000              Education,A,2023,9
62,"Children, Schools and Family",BLOSSOM HOUSE SCHOOL,10125,18-Dec-23,13807.5,0,777,Non-Delegated Statements,170000              Education,A,2023,9
63,"Children, Schools and Family",BLOSSOM HOUSE SCHOOL,10095,18-Dec-23,18850,0,777,Non-Delegated Statements,170000              Education,A,2023,9
64,"Children, Schools and Family",BLOSSOM HOUSE SCHOOL,10088,18-Dec-23,16012.5,0,777,Non-Delegated Statements,170000              Education,A,2023,9
65,"Children, Schools and Family",BLOSSOM HOUSE SCHOOL,10097,18-Dec-23,18112.5,0,777,Non-Delegated Statements,170000              Education,A,2023,9
66,"Children, Schools and Family",BLOSSOM HOUSE SCHOOL,10106,18-Dec-23,17587.5,0,777,Non-Delegated Statements,170000              Education,A,2023,9
67,"Children, Schools and Family",BLOSSOM HOUSE SCHOOL,10117,18-Dec-23,15172.5,0,777,Non-Delegated Statements,170000              Education,A,2023,9
68,"Children, Schools and Family",BLOSSOM HOUSE SCHOOL,10124,18-Dec-23,18112.5,0,777,Non-Delegated Statements,170000              Education,A,2023,9
69,"Children, Schools and Family",BLOSSOM HOUSE SCHOOL,10134,18-Dec-23,17587.5,0,777,Non-Delegated Statements,170000              Education,A,2023,9
70,"Children, Schools and Family",BLOSSOM HOUSE SCHOOL,10243,18-Dec-23,16850,0,777,Non-Delegated Statements,170000              Education,A,2023,9
71,"Children, Schools and Family",BLOSSOM HOUSE SCHOOL,10080,18-Dec-23,18850,0,777,Non-Delegated Statements,170000              Education,A,2023,9
72,"Children, Schools and Family",BLOSSOM HOUSE SCHOOL,10087,18-Dec-23,18112.5,0,777,Non-Delegated Statements,170000              Education,A,2023,9
73,"Children, Schools and Family",BLOSSOM HOUSE SCHOOL,10096,18-Dec-23,13807.5,0,777,Non-Delegated Statements,170000              Education,A,2023,9
74,"Children, Schools and Family",BLOSSOM HOUSE SCHOOL,10105,18-Dec-23,16747.5,0,777,Non-Delegated Statements,170000              Education,A,2023,9
75,"Children, Schools and Family",BLOSSOM HOUSE SCHOOL,10123,18-Dec-23,16012.5,0,777,Non-Delegated Statements,170000              Education,A,2023,9
76,"Children, Schools and Family",BLOSSOM HOUSE SCHOOL,10133,18-Dec-23,12967.5,0,777,Non-Delegated Statements,170000              Education,A,2023,9
77,"Children, Schools and Family",BLOSSOM HOUSE SCHOOL,10259,18-Dec-23,4080,0,777,Non-Delegated Statements,170000              Education,A,2023,9
78,"Children, Schools and Family",BLOSSOM HOUSE SCHOOL,10078,18-Dec-23,17587.5,0,777,Non-Delegated Statements,170000              Education,A,2023,9
79,"Children, Schools and Family",BLOSSOM HOUSE SCHOOL,10094,18-Dec-23,17587.5,0,777,Non-Delegated Statements,170000              Education,A,2023,9
80,"Children, Schools and Family",BLOSSOM HOUSE SCHOOL,10114,18-Dec-23,18112.5,0,777,Non-Delegated Statements,170000              Education,A,2023,9
81,"Children, Schools and Family",BLOSSOM HOUSE SCHOOL,10122,18-Dec-23,18112.5,0,777,Non-Delegated Statements,170000              Education,A,2023,9
82,"Children, Schools and Family",BLOSSOM HOUSE SCHOOL,10092,18-Dec-23,16747.5,0,777,Non-Delegated Statements,170000              Education,A,2023,9
83,"Children, Schools and Family",BLOSSOM HOUSE SCHOOL,10102,18-Dec-23,15067.5,0,777,Non-Delegated Statements,170000              Education,A,2023,9
84,Corporate Services,Quadient,84099108,05-Jan-24,12655.32,25,793,Post services,300000              Mail Services,A,2023,9
85,"Children, Schools and Family",PERSEID SCHOOL,2359,05-Dec-23,8800,0,983,School Improvement DSG HNB,170000              Education,A,2023,9
86,Unassigned,PERSEID SCHOOL,SCHOOLS 2324/9 A,08-Dec-23,978750.77,0,983,Schools,170000              Education,A,2023,9
87,"Children, Schools and Family",PERSEID SCHOOL,2365,14-Dec-23,8020,0,983,Attain,170000              Education,A,2023,9
88,"Children, Schools and Family",PERSEID SCHOOL,2366,14-Dec-23,8080,0,983,Attain,170000              Education,A,2023,9
89,"Children, Schools and Family",PERSEID SCHOOL,2367,14-Dec-23,3123.12,0,983,Attain,170000              Education,A,2023,9
90,Community and Housing,MOUNT CARMEL HOSTEL,1084411,15-Dec-23,3840,0,1053,ASC - Substance Misuse - Drugs,321017              Nursing & Residential Care Homes,A,2023,9
91,Community and Housing,SUTTON NURSING HOMES LTD,1084218,15-Dec-23,3381.16,0,1208,Older People Placements - East,321017              Nursing & Residential Care Homes,A,2023,9
92,Community and Housing,SUTTON NURSING HOMES LTD,1084562,15-Dec-23,3381.16,0,1208,Older People Placements - East,321017              Nursing & Residential Care Homes,A,2023,9
93,Environment and Regeneration,RICS BUSINESS SERVICE LTD,INV-00411195,28-Dec-23,539,0,1350,Property Mgt & Review,200000              Financial Services,A,2023,9
94,Corporate Services,L.B OF RICHMOND UPON THAMES,RC376792128M08E,08-Dec-23,6200,0,1353,SLLP Client Income,OLA,A,2023,9
95,Unassigned,MELROSE SPECIAL SCHOOL,SCHOOLS 2324/9 A,08-Dec-23,330614.56,0,1393,Schools,170000              Education,A,2023,9
96,Unassigned,WILLIAM MORRIS PRIMARY SCHOOL,SCHOOLS 2324/9 A,08-Dec-23,138796.28,0,1416,Schools,170000              Education,A,2023,9
97,Unassigned,ST THOMAS OF CANTERBURY PRIMARY,SCHOOLS 2324/9 A,08-Dec-23,189493.14,0,1418,Schools,170000              Education,A,2023,9
98,Unassigned,PRIORY C OF E MIDDLE SCHOOL,SCHOOLS 2324/9 A,08-Dec-23,114333.3,0,1420,Schools,170000              Education,A,2023,9
99,Unassigned,LIBERTY PRIMARY SCHOOL,SCHOOLS 2324/9 A,08-Dec-23,199304.27,0,1424,Schools,170000              Education,A,2023,9
100,Unassigned,HILLCROSS PRIMARY SCHOOL,SCHOOLS 2324/9 A,08-Dec-23,183688.33,0,1425,Schools,170000              Education,A,2023,9
101,Unassigned,CRANMER PRIMARY SCHOOL,SCHOOLS 2324/9 A,08-Dec-23,284345.88,0,1426,Schools,170000              Education,A,2023,9
102,Unassigned,WIMBLEDON COLLEGE SCHOOL,SCHOOLS 2324/9 A,08-Dec-23,835219.42,0,1428,Schools,170000              Education,A,2023,9
103,Unassigned,URSULINE HIGH SCHOOL,SCHOOLS 2324/9 A,08-Dec-23,708065.65,0,1429,Schools,170000              Education,A,2023,9
104,"Children, Schools and Family",URSULINE HIGH SCHOOL,HAFXMAS23-UPFRON,11-Dec-23,1400,0,1429,Holiday Act Food Prog grntfnd,170000              Education,A,2023,9
105,Unassigned,RUTLISH SCHOOL,SCHOOLS 2324/9 A,08-Dec-23,777863.46,0,1431,Schools,170000              Education,A,2023,9
106,Unassigned,RICARDS LODGE SECONDARY SCHOOL,SCHOOLS 2324/9 A,08-Dec-23,668654.08,0,1433,Schools,170000              Education,A,2023,9
107,Unassigned,WIMBLEDON PARK PRIMARY SCHOOL,SCHOOLS 2324/9 A,08-Dec-23,238648.73,0,1436,Schools,170000              Education,A,2023,9
108,Unassigned,ST TERESA'S R C PRIMARY SCHOOL,SCHOOLS 2324/9 A,08-Dec-23,171982.54,0,1438,Schools,170000              Education,A,2023,9
109,Unassigned,ST MARYS CATHOLIC PRIMARY SCHOOL,SCHOOLS 2324/9 A,08-Dec-23,195885.01,0,1439,Schools,170000              Education,A,2023,9
110,Unassigned,ST MARKS PRIMARY SCHOOL,SCHOOLS 2324/9 A,08-Dec-23,122096.12,0,1440,Schools,170000              Education,A,2023,9
111,Unassigned,ST JOHN FISHER RC PRIMARY SCH.,SCHOOLS 2324/9 A,08-Dec-23,166388.62,0,1441,Schools,170000              Education,A,2023,9
112,Unassigned,SINGLEGATE PRIMARY SCHOOL,SCHOOLS 2324/9 A,08-Dec-23,237959.53,0,1442,Schools,170000              Education,A,2023,9
113,Unassigned,SHERWOOD PRIMARY SCHOOL,SCHOOLS 2324/9 A,08-Dec-23,166847.45,0,1443,Schools,170000              Education,A,2023,9
114,Unassigned,POPLAR PRIMARY SCHOOL,SCHOOLS 2324/9 A,08-Dec-23,241422.5,0,1444,Schools,170000              Education,A,2023,9
115,Unassigned,PELHAM PRIMARY SCHOOL,SCHOOLS 2324/9 A,08-Dec-23,179571.36,0,1445,Schools,170000              Education,A,2023,9
116,Unassigned,MORDEN PRIMARY SCHOOL,SCHOOLS 2324/9 A,08-Dec-23,112001.52,0,1446,Schools,170000              Education,A,2023,9
117,Unassigned,MERTON PARK PRIMARY SCHOOL,SCHOOLS 2324/9 A,08-Dec-23,103677.16,0,1447,Schools,170000              Education,A,2023,9
118,Unassigned,MERTON PARK PRIMARY SCHOOL,23LMPE000011,21-Dec-23,995,0,1447,Corporate Services,170000              Education,A,2023,9
119,Unassigned,MERTON ABBEY PRIMARY SCHOOL,SCHOOLS 2324/9 A,08-Dec-23,136910.99,0,1448,Schools,170000              Education,A,2023,9
120,Unassigned,LONESOME PRIMARY SCHOOL,SCHOOLS 2324/9 A,08-Dec-23,181745.55,0,1450,Schools,170000              Education,A,2023,9
121,Unassigned,LINKS PRIMARY SCHOOL,SCHOOLS 2324/9 A,08-Dec-23,134492.97,0,1451,Schools,170000              Education,A,2023,9
122,Unassigned,JOSEPH HOOD PRIMARY SCHOOL,SCHOOLS 2324/9 A,08-Dec-23,155073.61,0,1452,Schools,170000              Education,A,2023,9
123,Unassigned,HOLY TRINITY C OF E PRIMARY SCHOOL,SCHOOLS 2324/9 A,08-Dec-23,190792.54,0,1453,Schools,170000              Education,A,2023,9
124,Unassigned,HOLLYMOUNT PRIMARY SCHOOL,SCHOOLS 2324/9 A,08-Dec-23,176335.43,0,1454,Schools,170000              Education,A,2023,9
125,Unassigned,HATFEILD PRIMARY SCHOOL,SCHOOLS 2324/9 A,08-Dec-23,193452.31,0,1455,Schools,170000              Education,A,2023,9
126,Unassigned,HASLEMERE PRIMARY SCHOOL,SCHOOLS 2324/9 A,08-Dec-23,167335.09,0,1456,Schools,170000              Education,A,2023,9
127,Unassigned,GARFIELD PRIMARY SCHOOL,SCHOOLS 2324/9 A,08-Dec-23,133058.03,0,1460,Schools,170000              Education,A,2023,9
128,Unassigned,BOND PRIMARY SCHOOL,SCHOOLS 2324/9 A,08-Dec-23,157879.15,0,1462,Schools,170000              Education,A,2023,9
129,Unassigned,BISHOP GILPIN C OF E PRIMARY,SCHOOLS 2324/9 A,08-Dec-23,181416.96,0,1463,Schools,170000              Education,A,2023,9
130,Unassigned,ABBOTSBURY PRIMARY SCHOOL,SCHOOLS 2324/9 A,08-Dec-23,176555.65,0,1467,Schools,170000              Education,A,2023,9
131,"Children, Schools and Family",ABBOTSBURY PRIMARY SCHOOL,ABBO7SF,13-Dec-23,954,0,1467,PupilPremium- Virtual School,170000              Education,A,2023,9
132,Unassigned,WIMBLEDON CHASE PRIMARY SCHOOL,SCHOOLS 2324/9 A,08-Dec-23,271862.99,0,1469,Schools,170000              Education,A,2023,9
133,Unassigned,GORRINGE PARK PRIMARY SCHOOL,SCHOOLS 2324/9 A,08-Dec-23,194768.9,0,1470,Schools,170000              Education,A,2023,9
134,Unassigned,RAYNES PARK SECONDARY SCHOOL,SCHOOLS 2324/9 A,08-Dec-23,698833.55,0,1471,Schools,170000              Education,A,2023,9
135,Unassigned,SS PETER AND PAUL RC PRIMARY SCH,SCHOOLS 2324/9 A,08-Dec-23,139356.49,0,1472,Schools,170000              Education,A,2023,9
136,Unassigned,DUNDONALD PRIMARY SCHOOL,SCHOOLS 2324/9 A,08-Dec-23,158344.83,0,1473,Schools,170000              Education,A,2023,9
137,Community and Housing,MERTON MENCAP,4602,01-Dec-23,960,0,1519,Learning Disabilities Placemnt,200000              Financial Services,A,2023,9
138,Community and Housing,MERTON MENCAP,4593,07-Dec-23,880,0,1519,Learning Disabilities Placemnt,200000              Financial Services,A,2023,9
139,Community and Housing,MERTON MENCAP,4595,07-Dec-23,880,0,1519,Learning Disabilities Placemnt,200000              Financial Services,A,2023,9
140,Community and Housing,MERTON MENCAP,4594,07-Dec-23,880,0,1519,Learning Disabilities Placemnt,200000              Financial Services,A,2023,9
141,Community and Housing,MERTON MENCAP,4590,07-Dec-23,880,0,1519,Learning Disabilities Placemnt,200000              Financial Services,A,2023,9
142,Community and Housing,MERTON MENCAP,4589,07-Dec-23,880,0,1519,Learning Disabilities Placemnt,200000              Financial Services,A,2023,9
143,Unassigned,ALL SAINTS C OF E PRIMARY SCH,SCHOOLS 2324/9 A,08-Dec-23,144923.86,0,1680,Schools,170000              Education,A,2023,9
144,"Children, Schools and Family",REDACTED PERSONAL DATA,1079546,08-Dec-23,548.09,0,1801,Placements Under 18,321100              Social Community Care Supplies & Services - Children,R,2023,9
145,"Children, Schools and Family",REDACTED PERSONAL DATA,1079551,08-Dec-23,548.09,0,1801,Placements Under 18,321100              Social Community Care Supplies & Services - Children,R,2023,9
146,"Children, Schools and Family",REDACTED PERSONAL DATA,1085495,15-Dec-23,994.24,0,1801,Placements Under 18,321100              Social Community Care Supplies & Services - Children,R,2023,9
147,"Children, Schools and Family",REDACTED PERSONAL DATA,1085506,15-Dec-23,1096.18,0,1801,Placements Under 18,321100              Social Community Care Supplies & Services - Children,R,2023,9
148,"Children, Schools and Family",REDACTED PERSONAL DATA,1085511,15-Dec-23,1096.18,0,1801,Placements Under 18,321100              Social Community Care Supplies & Services - Children,R,2023,9
149,"Children, Schools and Family",REDACTED PERSONAL DATA,1091128,28-Dec-23,548.09,0,1801,Placements Under 18,321100              Social Community Care Supplies & Services - Children,R,2023,9
150,"Children, Schools and Family",REDACTED PERSONAL DATA,1091133,28-Dec-23,548.09,0,1801,Placements Under 18,321100              Social Community Care Supplies & Services - Children,R,2023,9
151,Community and Housing,CIVICA UK LIMITED,C/BN292507,05-Jan-24,3326.4,554.4,1873,Financial Assessment Team (FA),270000              Information Communication Technology,A,2023,9
152,Corporate Services,CIVICA UK LIMITED,C/BN292505,05-Jan-24,8503.62,1417.27,1873,Benefits Administration,270000              Information Communication Technology,A,2023,9
153,Corporate Services,CIVICA UK LIMITED,C/BN292506,05-Jan-24,2196.26,366.04,1873,Local Taxation Services,270000              Information Communication Technology,A,2023,9
154,Community and Housing,CIVICA UK LIMITED,C/BN290590,19-Dec-23,2478,413,1873,Financial Assessment Team (FA),270000              Information Communication Technology,A,2023,9
155,"Children, Schools and Family",THE CHILDRENS TRUST,7292,18-Dec-23,5927.82,0,1980,Non-Delegated Statements,170000              Education,A,2023,9
156,"Children, Schools and Family",THE CHILDRENS TRUST,7297,18-Dec-23,9570.32,0,1980,Non-Delegated Statements,170000              Education,A,2023,9
157,Community and Housing,THE FRANCES TAYLOR FOUNDATION,1084274,15-Dec-23,3812.04,0,2011,Learning Disabilities Placemnt,321017              Nursing & Residential Care Homes,A,2023,9
158,Community and Housing,THE FRANCES TAYLOR FOUNDATION,1084580,15-Dec-23,8113.92,0,2011,Learning Disabilities Placemnt,321017              Nursing & Residential Care Homes,A,2023,9
159,"Children, Schools and Family",ST JOSEPHS SCHOOL,T0004613,08-Dec-23,42032.36,0,2017,Non-Delegated Statements,170000              Education,A,2023,9
160,"Children, Schools and Family",ST JOSEPHS SCHOOL,T0004614,08-Dec-23,41810.62,0,2017,Non-Delegated Statements,170000              Education,A,2023,9
161,Unassigned,SACRED HEART R C PRIMARY SCH.,SCHOOLS 2324/9 A,08-Dec-23,122335.54,0,2076,Schools,170000              Education,A,2023,9
162,Community and Housing,GENEVA ROAD LIMITED,301123JW,12-Dec-23,721.01,120.17,2198,Older People Placements - East,321000              Social Community Care Supplies & Services - Adult,A,2023,9
163,Corporate Services,LONDON BOROUGH OF SUTTON,"""SLLPINCOMEM0823",12-Dec-23,2450,0,2313,SLLP Client Income,OLA,A,2023,9
164,Community and Housing,FREEWAYS TRUST LTD,1084175,15-Dec-23,2911.6,0,2474,Learning Disabilities Placemnt,321017              Nursing & Residential Care Homes,A,2023,9
165,Unassigned,WIMBLEDON AND PUTNEY COMMON,2.02E+11,29-Dec-23,42294.8,0,10566,WPCC,PRECEPT,A,2023,9
166,Community and Housing,CLOYDA LTD,1084456,15-Dec-23,4000,0,10762,Older People Placements - East,321017              Nursing & Residential Care Homes,A,2023,9
167,Community and Housing,CHEGWORTH N.H. (BAYSWIFT LTD),1084418,15-Dec-23,3056.4,0,11057,Learning Disabilities Placemnt,321000              Social Community Care Supplies & Services - Adult,A,2023,9
168,"Children, Schools and Family",REDACTED PERSONAL DATA,1079513,08-Dec-23,692.46,0,11130,Placements Under 18,321100              Social Community Care Supplies & Services - Children,R,2023,9
169,"Children, Schools and Family",REDACTED PERSONAL DATA,1085472,15-Dec-23,1384.92,0,11130,Placements Under 18,321100              Social Community Care Supplies & Services - Children,R,2023,9
170,"Children, Schools and Family",REDACTED PERSONAL DATA,1091093,28-Dec-23,692.46,0,11130,Placements Under 18,321100              Social Community Care Supplies & Services - Children,R,2023,9
171,Community and Housing,Queens Court,1084449,15-Dec-23,3220.32,0,12747,Older People Placements - East,321017              Nursing & Residential Care Homes,A,2023,9
172,Community and Housing,Queens Court,1084488,15-Dec-23,8121.16,0,12747,Older People Placements - East,321017              Nursing & Residential Care Homes,A,2023,9
173,Community and Housing,ASHCROFT CARE SERVICES,1084417,15-Dec-23,6116.88,0,13287,Learning Disabilities Placemnt,321017              Nursing & Residential Care Homes,A,2023,9
174,Community and Housing,SHARE COMMUNITY LTD,241404,12-Dec-23,1200,0,13487,Learning Disabilities Placemnt,321017              Nursing & Residential Care Homes,A,2023,9
175,Community and Housing,SHARE COMMUNITY LTD,241401,12-Dec-23,624,0,13487,Learning Disabilities Placemnt,321017              Nursing & Residential Care Homes,A,2023,9
176,Community and Housing,SHARE COMMUNITY LTD,241396,12-Dec-23,900,0,13487,Learning Disabilities Placemnt,321017              Nursing & Residential Care Homes,A,2023,9
177,Community and Housing,SHARE COMMUNITY LTD,241426,12-Dec-23,600,0,13487,Learning Disabilities Placemnt,321017              Nursing & Residential Care Homes,A,2023,9
178,Community and Housing,SHARE COMMUNITY LTD,241422,12-Dec-23,624,0,13487,Learning Disabilities Placemnt,321017              Nursing & Residential Care Homes,A,2023,9
179,Community and Housing,SHARE COMMUNITY LTD,241423,12-Dec-23,900,0,13487,Learning Disabilities Placemnt,321017              Nursing & Residential Care Homes,A,2023,9
180,Community and Housing,SHARE COMMUNITY LTD,241405,14-Dec-23,900,0,13487,Learning Disabilities Placemnt,321017              Nursing & Residential Care Homes,A,2023,9
181,Community and Housing,SHARE COMMUNITY LTD,241413,14-Dec-23,900,0,13487,Learning Disabilities Placemnt,321017              Nursing & Residential Care Homes,A,2023,9
182,Community and Housing,SHARE COMMUNITY LTD,241394,15-Dec-23,624,0,13487,Learning Disabilities Placemnt,321017              Nursing & Residential Care Homes,A,2023,9
183,Community and Housing,FITZROY SUPPORT,1084519,15-Dec-23,9010.16,0,13535,Learning Disabilities Placemnt,321017              Nursing & Residential Care Homes,A,2023,9
184,Community and Housing,CANTERBURY OAST TRUST LTD,1084186,15-Dec-23,5516.88,0,13566,Learning Disabilities Placemnt,321017              Nursing & Residential Care Homes,A,2023,9
185,Community and Housing,MACINTYRE,1076316,07-Dec-23,7292.16,0,13585,Learning Disabilities Placemnt,321017              Nursing & Residential Care Homes,A,2023,9
186,Community and Housing,MACINTYRE,1084198,15-Dec-23,6259.88,0,13585,Learning Disabilities Placemnt,321017              Nursing & Residential Care Homes,A,2023,9
187,Community and Housing,MACINTYRE,1084388,15-Dec-23,6120.88,0,13585,Learning Disabilities Placemnt,321017              Nursing & Residential Care Homes,A,2023,9
188,Community and Housing,MACINTYRE,1084486,15-Dec-23,6120.88,0,13585,Older People Placements - East,321017              Nursing & Residential Care Homes,A,2023,9
189,Community and Housing,MACINTYRE,1084517,15-Dec-23,5235.4,0,13585,Learning Disabilities Placemnt,321017              Nursing & Residential Care Homes,A,2023,9
190,Community and Housing,KENT AUTISTIC TRUST,1084495,15-Dec-23,8548,0,13670,Learning Disabilities Placemnt,321017              Nursing & Residential Care Homes,A,2023,9
191,Environment and Regeneration,WIMBLEDON TREE SURGEONS,INV-0872,14-Dec-23,780,130,14038,Street Lighting,240000              Horticultural,A,2023,9
192,Environment and Regeneration,ROBERT MORGAN AND SONS LTD,RENTSOUTHALLCOVE,11-Dec-23,4125,0,14355,Other Misc Props,200000              Financial Services,A,2023,9
193,Community and Housing,UNITED RESPONSE,VSMR868823-BAA,18-Dec-23,5248.99,874.83,14616,Learning Disabilities Placemnt,321000              Social Community Care Supplies & Services - Adult,A,2023,9
194,Community and Housing,UNITED RESPONSE,VSMR868823-BA,18-Dec-23,5248.99,874.83,14616,Learning Disabilities Placemnt,321000              Social Community Care Supplies & Services - Adult,A,2023,9
195,Community and Housing,UNITED RESPONSE,VSMR868823-SAT,18-Dec-23,5248.99,874.83,14616,Learning Disabilities Placemnt,321000              Social Community Care Supplies & Services - Adult,A,2023,9
196,Community and Housing,UNITED RESPONSE,VSMR868823-SB,18-Dec-23,5248.99,874.83,14616,Learning Disabilities Placemnt,321000              Social Community Care Supplies & Services - Adult,A,2023,9
197,Community and Housing,UNITED RESPONSE,VSMR868823-RW,18-Dec-23,5248.99,874.83,14616,Learning Disabilities Placemnt,321000              Social Community Care Supplies & Services - Adult,A,2023,9
198,Community and Housing,UNITED RESPONSE,VSMR873216RH,18-Dec-23,4486.08,747.68,14616,Learning Disabilities Placemnt,321000              Social Community Care Supplies & Services - Adult,A,2023,9
199,Community and Housing,UNITED RESPONSE,VSMR873216DH,18-Dec-23,4169.52,694.92,14616,Learning Disabilities Placemnt,321000              Social Community Care Supplies & Services - Adult,A,2023,9
200,Community and Housing,UNITED RESPONSE,VSMR873216HM,18-Dec-23,4960.9,826.82,14616,Learning Disabilities Placemnt,321000              Social Community Care Supplies & Services - Adult,A,2023,9
201,Community and Housing,UNITED RESPONSE,VSMR873216BS,18-Dec-23,4433.38,738.9,14616,Learning Disabilities Placemnt,321000              Social Community Care Supplies & Services - Adult,A,2023,9
202,Community and Housing,UNITED RESPONSE,VSMR873216CW,18-Dec-23,5171.9,861.98,14616,Learning Disabilities Placemnt,321000              Social Community Care Supplies & Services - Adult,A,2023,9
203,"Children, Schools and Family",CROYDON COLLEGE,IK/000224,28-Dec-23,4523.95,0,15734,Non-Maintained Post 16 SEN,200000              Financial Services,A,2023,9
204,"Children, Schools and Family",CROYDON COLLEGE,IK/000225,28-Dec-23,4189.74,0,15734,Non-Maintained Post 16 SEN,200000              Financial Services,A,2023,9
205,"Children, Schools and Family",CROYDON COLLEGE,IK/000226,28-Dec-23,3066.11,0,15734,Non-Maintained Post 16 SEN,200000              Financial Services,A,2023,9
206,"Children, Schools and Family",CROYDON COLLEGE,IK/000227,28-Dec-23,2310.33,0,15734,Non-Maintained Post 16 SEN,200000              Financial Services,A,2023,9
207,"Children, Schools and Family",CROYDON COLLEGE,IK/000228,28-Dec-23,2741.65,0,15734,Non-Maintained Post 16 SEN,200000              Financial Services,A,2023,9
208,"Children, Schools and Family",CROYDON COLLEGE,IK/000229,28-Dec-23,4188.24,0,15734,Non-Maintained Post 16 SEN,200000              Financial Services,A,2023,9
209,"Children, Schools and Family",CROYDON COLLEGE,IK/000230,28-Dec-23,3095.47,0,15734,Non-Maintained Post 16 SEN,200000              Financial Services,A,2023,9
210,"Children, Schools and Family",CROYDON COLLEGE,IK/000231,28-Dec-23,2804.65,0,15734,Non-Maintained Post 16 SEN,200000              Financial Services,A,2023,9
211,"Children, Schools and Family",CROYDON COLLEGE,IK/000232,28-Dec-23,2447.37,0,15734,Non-Maintained Post 16 SEN,200000              Financial Services,A,2023,9
212,"Children, Schools and Family",CROYDON COLLEGE,IK/000233,28-Dec-23,2155.7,0,15734,Non-Maintained Post 16 SEN,200000              Financial Services,A,2023,9
213,"Children, Schools and Family",CROYDON COLLEGE,IK/000234,28-Dec-23,1334.01,0,15734,Non-Maintained Post 16 SEN,200000              Financial Services,A,2023,9
214,Corporate Services,KINGSTON CORPORATION,M08LEGAL23/24,12-Dec-23,11100,0,21573,SLLP Client Income,180000              Environmental Services,A,2023,9
215,Corporate Services,KINGSTON CORPORATION,37657447,20-Dec-23,3114.7,209.45,21573,HR TRANSACTIONS,180000              Environmental Services,A,2023,9
216,Environment and Regeneration,KINGSTON CORPORATION,37659580,22-Dec-23,22653.01,0,21573,Garden Waste Service,180000              Environmental Services,A,2023,9
217,Environment and Regeneration,KINGSTON CORPORATION,37659610,22-Dec-23,8746.92,0,21573,Food Waste Service,180000              Environmental Services,A,2023,9
218,Environment and Regeneration,KINGSTON CORPORATION,37659555,22-Dec-23,23810.8,0,21573,Waste Disposal,180000              Environmental Services,A,2023,9
219,Corporate Services,R G JONES SOUND ENGINEER,20240160,11-Dec-23,678,113,29945,Democracy Services,270000              Information Communication Technology,A,2023,9
220,Corporate Services,R G JONES SOUND ENGINEER,20240159,11-Dec-23,894,149,29945,Democracy Services,270000              Information Communication Technology,A,2023,9
221,Corporate Services,R G JONES SOUND ENGINEER,20240163,11-Dec-23,678,113,29945,Democracy Services,270000              Information Communication Technology,A,2023,9
222,Corporate Services,R G JONES SOUND ENGINEER,20240162,11-Dec-23,894,149,29945,Democracy Services,270000              Information Communication Technology,A,2023,9
223,Corporate Services,R G JONES SOUND ENGINEER,20240161,11-Dec-23,1266,211,29945,Democracy Services,270000              Information Communication Technology,A,2023,9
224,Community and Housing,TRINITY COURT NURSING HOME,1079243,08-Dec-23,571.71,0,30306,Phys/Sens Placements - East,321017              Nursing & Residential Care Homes,A,2023,9
225,Community and Housing,TRINITY COURT NURSING HOME,1079257,08-Dec-23,2429.52,0,30306,Older People Placements - East,321017              Nursing & Residential Care Homes,A,2023,9
226,Community and Housing,TRINITY COURT NURSING HOME,1079272,08-Dec-23,538.68,0,30306,Older People Placements - East,321017              Nursing & Residential Care Homes,A,2023,9
227,Community and Housing,TRINITY COURT NURSING HOME,1084241,15-Dec-23,3239.36,0,30306,Older People Placements - East,321017              Nursing & Residential Care Homes,A,2023,9
228,Community and Housing,TRINITY COURT NURSING HOME,1084389,15-Dec-23,3239.36,0,30306,Older People Placements - East,321017              Nursing & Residential Care Homes,A,2023,9
229,Community and Housing,TRINITY COURT NURSING HOME,1084422,15-Dec-23,3239.36,0,30306,Older People Placements - East,321017              Nursing & Residential Care Homes,A,2023,9
230,Community and Housing,TRINITY COURT NURSING HOME,1084437,15-Dec-23,4118.2,0,30306,Phys/Sens Placements - East,321017              Nursing & Residential Care Homes,A,2023,9
231,Community and Housing,TRINITY COURT NURSING HOME,1084494,15-Dec-23,3239.36,0,30306,Older People Placements - East,321017              Nursing & Residential Care Homes,A,2023,9
232,Community and Housing,TRINITY COURT NURSING HOME,1084500,15-Dec-23,3239.36,0,30306,Older People Placements - East,321017              Nursing & Residential Care Homes,A,2023,9
233,Community and Housing,TRINITY COURT NURSING HOME,1084514,15-Dec-23,3239.36,0,30306,Older People Placements - East,321017              Nursing & Residential Care Homes,A,2023,9
234,Community and Housing,TRINITY COURT NURSING HOME,1084605,15-Dec-23,3239.36,0,30306,Older People Placements - East,321017              Nursing & Residential Care Homes,A,2023,9
235,Community and Housing,TRINITY COURT NURSING HOME,1084607,15-Dec-23,3239.36,0,30306,Older People Placements - East,321017              Nursing & Residential Care Homes,A,2023,9
236,Community and Housing,TRINITY COURT NURSING HOME,1084609,15-Dec-23,3239.36,0,30306,Older People Placements - East,321017              Nursing & Residential Care Homes,A,2023,9
237,Community and Housing,HAYDON PARK LODGE,1084334,15-Dec-23,3485,0,31434,Learning Disabilities Placemnt,321017              Nursing & Residential Care Homes,A,2023,9
238,Community and Housing,HAYDON PARK LODGE,1084361,15-Dec-23,4591.44,0,31434,Learning Disabilities Placemnt,321017              Nursing & Residential Care Homes,A,2023,9
239,Community and Housing,HAYDON PARK LODGE,1084482,15-Dec-23,4420.08,0,31434,Learning Disabilities Placemnt,321017              Nursing & Residential Care Homes,A,2023,9
240,Community and Housing,HAYDON PARK LODGE,1084523,15-Dec-23,7000,0,31434,Learning Disabilities Placemnt,321017              Nursing & Residential Care Homes,A,2023,9
241,Community and Housing,Barchester Healthcare Wimbledon Beaumont,147029565,12-Dec-23,2773.28,0,33384,Phys/Sens Placements - East,321017              Nursing & Residential Care Homes,A,2023,9
242,Community and Housing,Barchester Healthcare Wimbledon Beaumont,147029585,12-Dec-23,2773.28,0,33384,Phys/Sens Placements - East,321017              Nursing & Residential Care Homes,A,2023,9
243,Community and Housing,Barchester Healthcare Wimbledon Beaumont,147029699,12-Dec-23,2773.28,0,33384,Phys/Sens Placements - East,321017              Nursing & Residential Care Homes,A,2023,9
244,Community and Housing,Barchester Healthcare Wimbledon Beaumont,1084280,15-Dec-23,4056,0,33384,Older People Placements - East,321017              Nursing & Residential Care Homes,A,2023,9
245,Community and Housing,COMFORT CARE SERVICES (UK) LTD,SU0091/280,18-Dec-23,871.36,0,34932,Mental Health Placements,321000              Social Community Care Supplies & Services - Adult,A,2023,9
246,Community and Housing,COMFORT CARE SERVICES (UK) LTD,SU0184/1132,12-Dec-23,2380,0,34932,Mental Health Placements,321000              Social Community Care Supplies & Services - Adult,A,2023,9
247,Community and Housing,COMFORT CARE SERVICES (UK) LTD,SU0091/278,12-Dec-23,871.36,0,34932,Mental Health Placements,321000              Social Community Care Supplies & Services - Adult,A,2023,9
248,Community and Housing,COMFORT CARE SERVICES (UK) LTD,SU1041/873,12-Dec-23,1632.15,0,34932,Mental Health Placements,321000              Social Community Care Supplies & Services - Adult,A,2023,9
249,Community and Housing,COMFORT CARE SERVICES (UK) LTD,SU0291/1196,01-Jan-24,2380,0,34932,Mental Health Placements,321000              Social Community Care Supplies & Services - Adult,A,2023,9
250,Community and Housing,COMFORT CARE SERVICES (UK) LTD,SU0208/1725,21-Dec-23,2380,0,34932,Mental Health Placements,321000              Social Community Care Supplies & Services - Adult,A,2023,9
251,Community and Housing,COMFORT CARE SERVICES (UK) LTD,SU02101202,21-Dec-23,2380,0,34932,Mental Health Placements,321000              Social Community Care Supplies & Services - Adult,A,2023,9
252,Community and Housing,COMFORT CARE SERVICES (UK) LTD,SU0291/1203,21-Dec-23,2380,0,34932,Mental Health Placements,321000              Social Community Care Supplies & Services - Adult,A,2023,9
253,Community and Housing,COMFORT CARE SERVICES (UK) LTD,SU0294/1707,21-Dec-23,2380,0,34932,Mental Health Placements,321000              Social Community Care Supplies & Services - Adult,A,2023,9
254,Community and Housing,COMFORT CARE SERVICES (UK) LTD,SU0298/1157,21-Dec-23,2380,0,34932,Mental Health Placements,321000              Social Community Care Supplies & Services - Adult,A,2023,9
255,Community and Housing,COMFORT CARE SERVICES (UK) LTD,SU1051/1494-1495,21-Dec-23,3295,0,34932,Mental Health Placements,321000              Social Community Care Supplies & Services - Adult,A,2023,9
256,Community and Housing,COMFORT CARE SERVICES (UK) LTD,SU0266/1696,21-Dec-23,2380,0,34932,Mental Health Placements,321000              Social Community Care Supplies & Services - Adult,A,2023,9
257,Community and Housing,COMFORT CARE SERVICES (UK) LTD,SU0146/1574,22-Dec-23,2380,0,34932,Mental Health Placements,321000              Social Community Care Supplies & Services - Adult,A,2023,9
258,Community and Housing,COMFORT CARE SERVICES (UK) LTD,SU0184/1156,22-Dec-23,2380,0,34932,Mental Health Placements,321000              Social Community Care Supplies & Services - Adult,A,2023,9
259,Community and Housing,COMFORT CARE SERVICES (UK) LTD,SU1041/931,28-Dec-23,1632.15,0,34932,Mental Health Placements,321000              Social Community Care Supplies & Services - Adult,A,2023,9
260,Community and Housing,COMFORT CARE SERVICES (UK) LTD,SU0133/1201,22-Dec-23,2380,0,34932,Mental Health Placements,321000              Social Community Care Supplies & Services - Adult,A,2023,9
261,Community and Housing,COMFORT CARE SERVICES (UK) LTD,SU1102/1724,22-Dec-23,2380,0,34932,Mental Health Placements,321000              Social Community Care Supplies & Services - Adult,A,2023,9
262,"Children, Schools and Family",URSULINE PREPARATORY SCHOOL,P2 23 LATESTARTS,15-Dec-23,637.2,0,35109,EARLY YEARS NURSERY GRANTS,170000              Education,A,2023,9
263,Community and Housing,ROYAL MASONIC BENEVOLENT INST.,1065077,05-Dec-23,11200,0,35867,Older People Placements - East,321017              Nursing & Residential Care Homes,A,2023,9
264,Community and Housing,ROYAL MASONIC BENEVOLENT INST.,1065238,05-Dec-23,3200,0,35867,Older People Placements - East,321017              Nursing & Residential Care Homes,A,2023,9
265,Community and Housing,ROYAL MASONIC BENEVOLENT INST.,1084317,15-Dec-23,3200,0,35867,Older People Placements - East,321017              Nursing & Residential Care Homes,A,2023,9
266,Unassigned,ST MATTHEW'S C OF E PRIMARY,SCHOOLS 2324/9 A,08-Dec-23,71660.01,0,36050,Schools,170000              Education,A,2023,9
267,"Children, Schools and Family",REDACTED PERSONAL DATA,1079430,08-Dec-23,1092.76,0,36376,Placements Under 18,321100              Social Community Care Supplies & Services - Children,R,2023,9
268,"Children, Schools and Family",REDACTED PERSONAL DATA,1085390,15-Dec-23,1026.58,0,36376,Placements Under 18,321100              Social Community Care Supplies & Services - Children,R,2023,9
269,"Children, Schools and Family",REDACTED PERSONAL DATA,1085502,15-Dec-23,668.58,0,36376,Placements Over 18,321100              Social Community Care Supplies & Services - Children,R,2023,9
270,Community and Housing,AGE UK MERTON,MERTONCOMHUB DEC,05-Dec-23,99810.5,0,37401,Physical/Sensory Contracts,190000              Facilities & Management Services,A,2023,9
271,Unassigned,I AND  J BUSHELL LTD,4962,28-Dec-23,540,90,42221,Mitcham Common Conservators,"390000              Works - Construction, Repair & Maintenance",A,2023,9
272,Community and Housing,JESMUND CARE LTD,1084563,15-Dec-23,3600,0,46751,Older People Placements - East,321017              Nursing & Residential Care Homes,A,2023,9
273,Community and Housing,REDACTED PERSONAL DATA,1078354,08-Dec-23,6021.4,0,50448,Older People Placements - East,DIRECT PAYMENTS,R,2023,9
274,Community and Housing,LINKAGE COMMUNITY TR.LONG-STAY,1084475,15-Dec-23,3340.08,0,52552,Learning Disabilities Placemnt,321017              Nursing & Residential Care Homes,A,2023,9
275,Environment and Regeneration,COMPLETE WEED CONTROL,LS7506,07-Dec-23,552,92,53122,Reactive Maintenance,240000              Horticultural,A,2023,9
276,"Children, Schools and Family",HASLEMERE HOUSE DAY NURSERY,P2 23 LATESTARTS,15-Dec-23,603,0,55612,EARLY YEARS NURSERY GRANTS,170000              Education,A,2023,9
277,Community and Housing,PARK LODGE,1084321,15-Dec-23,2895.68,0,56878,Learning Disabilities Placemnt,321017              Nursing & Residential Care Homes,A,2023,9
278,Community and Housing,PARK LODGE,1084420,15-Dec-23,3026.8,0,56878,Learning Disabilities Placemnt,321017              Nursing & Residential Care Homes,A,2023,9
279,Unassigned,CRICKET GREEN SCHOOL,SCHOOLS 2324/9 A,08-Dec-23,419877.91,0,57057,Schools,170000              Education,A,2023,9
280,"Children, Schools and Family",CRICKET GREEN SCHOOL,CJSULLIVANPTH,19-Dec-23,669,0,57057,PupilPremium- Virtual School,170000              Education,A,2023,9
281,Environment and Regeneration,MERTON VOLUNTARY SERV COUNCIL,5254,29-Dec-23,4320,0,57560,Greenspaces Team (General),190000              Facilities & Management Services,A,2023,9
282,Corporate Services,JADE SECURITY SERVICE LTD,6693,22-Dec-23,2061.31,343.55,57563,Cash Collections,200000              Financial Services,A,2023,9
283,"Children, Schools and Family",CANBURY SCHOOL LIMITED,4724,07-Dec-23,12968,0,57830,Non-Delegated Statements,170000              Education,A,2023,9
284,"Children, Schools and Family",CANBURY SCHOOL LIMITED,4726,07-Dec-23,9028,0,57830,Non-Delegated Statements,170000              Education,A,2023,9
285,"Children, Schools and Family",CANBURY SCHOOL LIMITED,4725,07-Dec-23,6328.67,0,57830,Non-Delegated Statements,170000              Education,A,2023,9
286,"Children, Schools and Family",CANBURY SCHOOL LIMITED,4727,07-Dec-23,12401.33,0,57830,Non-Delegated Statements,170000              Education,A,2023,9
287,"Children, Schools and Family",CANBURY SCHOOL LIMITED,4728,07-Dec-23,12401.33,0,57830,Non-Delegated Statements,170000              Education,A,2023,9
288,"Children, Schools and Family",CANBURY SCHOOL LIMITED,4729,07-Dec-23,9594.67,0,57830,Non-Delegated Statements,170000              Education,A,2023,9
289,"Children, Schools and Family",CANBURY SCHOOL LIMITED,4730,07-Dec-23,5225.67,0,57830,Non-Delegated Statements,170000              Education,A,2023,9
290,"Children, Schools and Family",CANBURY SCHOOL LIMITED,4722,07-Dec-23,10394.67,0,57830,Non-Delegated Statements,170000              Education,A,2023,9
291,"Children, Schools and Family",CANBURY SCHOOL LIMITED,4723,07-Dec-23,12132.17,0,57830,Non-Delegated Statements,170000              Education,A,2023,9
292,"Children, Schools and Family",CANBURY SCHOOL LIMITED,4721,07-Dec-23,7680.67,0,57830,Non-Delegated Statements,170000              Education,A,2023,9
293,"Children, Schools and Family",CANBURY SCHOOL LIMITED,4968,08-Dec-23,8579.34,0,57830,Non-Delegated Statements,170000              Education,A,2023,9
294,"Children, Schools and Family",CANBURY SCHOOL LIMITED,4969,08-Dec-23,12196.01,0,57830,Non-Delegated Statements,170000              Education,A,2023,9
295,"Children, Schools and Family",CANBURY SCHOOL LIMITED,4970,08-Dec-23,11219.33,0,57830,Non-Delegated Statements,170000              Education,A,2023,9
296,"Children, Schools and Family",CANBURY SCHOOL LIMITED,4971,08-Dec-23,11969.34,0,57830,Non-Delegated Statements,170000              Education,A,2023,9
297,Community and Housing,WALSINGHAM,1084291,15-Dec-23,5943.28,0,58466,Learning Disabilities Placemnt,321017              Nursing & Residential Care Homes,A,2023,9
298,Community and Housing,WALSINGHAM,1084350,15-Dec-23,7221.64,0,58466,Learning Disabilities Placemnt,321017              Nursing & Residential Care Homes,A,2023,9
299,Community and Housing,WALSINGHAM,1084426,15-Dec-23,7292.52,0,58466,Learning Disabilities Placemnt,321017              Nursing & Residential Care Homes,A,2023,9
300,Community and Housing,WALSINGHAM,1084473,15-Dec-23,5804.04,0,58466,Learning Disabilities Placemnt,321017              Nursing & Residential Care Homes,A,2023,9
301,Community and Housing,WALSINGHAM,1084528,15-Dec-23,7991.72,0,58466,Learning Disabilities Placemnt,321017              Nursing & Residential Care Homes,A,2023,9
302,Community and Housing,HATS GROUP LTD,226243,12-Dec-23,2658.43,443.07,58532,Learning Disabilities Placemnt,360000              Passenger Transport,A,2023,9
303,Community and Housing,CARE UK,1084170,15-Dec-23,3504.04,0,58851,Older People Placements - East,321017              Nursing & Residential Care Homes,A,2023,9
304,Community and Housing,CARE UK,1084174,15-Dec-23,4321.16,0,58851,Older People Placements - East,321017              Nursing & Residential Care Homes,A,2023,9
305,Community and Housing,CARE UK,1084223,15-Dec-23,4321.16,0,58851,Older People Placements - East,321017              Nursing & Residential Care Homes,A,2023,9
306,Community and Housing,CARE UK,1084245,15-Dec-23,4039.72,0,58851,Older People Placements - East,321017              Nursing & Residential Care Homes,A,2023,9
307,Community and Housing,CARE UK,1084269,15-Dec-23,4039.72,0,58851,Older People Placements - East,321017              Nursing & Residential Care Homes,A,2023,9
308,Community and Housing,CARE UK,1084329,15-Dec-23,4321.16,0,58851,Older People Placements - East,321017              Nursing & Residential Care Homes,A,2023,9
309,Community and Housing,CARE UK,1084425,15-Dec-23,4560,0,58851,Older People Placements - East,321017              Nursing & Residential Care Homes,A,2023,9
310,Community and Housing,CARE UK,1084471,15-Dec-23,4321.16,0,58851,Older People Placements - East,321017              Nursing & Residential Care Homes,A,2023,9
311,Community and Housing,CARE UK,1084502,15-Dec-23,4300.12,0,58851,Older People Placements - East,321017              Nursing & Residential Care Homes,A,2023,9
312,Community and Housing,CARE UK,1084515,15-Dec-23,4039.72,0,58851,Older People Placements - East,321017              Nursing & Residential Care Homes,A,2023,9
313,Community and Housing,CARE UK,1084556,15-Dec-23,4340,0,58851,Older People Placements - East,321017              Nursing & Residential Care Homes,A,2023,9
314,Community and Housing,CARE UK,1084560,15-Dec-23,3504.04,0,58851,Older People Placements - East,321017              Nursing & Residential Care Homes,A,2023,9
315,"Children, Schools and Family",ST MICHAEL'S FELLOWSHIP,C3121A1/2100,07-Dec-23,21568,0,59560,Placements Under 18,280000              Legal Services,A,2023,9
316,"Children, Schools and Family",ST MICHAEL'S FELLOWSHIP,C3121A1/2100A,07-Dec-23,8932,0,59560,Placements Under 18,280000              Legal Services,A,2023,9
317,"Children, Schools and Family",ST MICHAEL'S FELLOWSHIP,C3121B/2100,07-Dec-23,7500,0,59560,Placements Under 18,280000              Legal Services,A,2023,9
318,"Children, Schools and Family",ST MICHAEL'S FELLOWSHIP,C3121B/2100A,07-Dec-23,1110,0,59560,Placements Under 18,280000              Legal Services,A,2023,9
319,"Children, Schools and Family",ST MICHAEL'S FELLOWSHIP,P3110B/2100,08-Dec-23,19312,0,59560,Placements Under 18,280000              Legal Services,A,2023,9
320,"Children, Schools and Family",ST MICHAEL'S FELLOWSHIP,P3110A1/2100,12-Dec-23,12210,0,59560,Placements Under 18,280000              Legal Services,A,2023,9
321,Capital,BARCHAM TREES P.L.C.,157448,08-Dec-23,6948,1158,62024,Street Trees,240000              Horticultural,A,2023,9
322,Corporate Services,BRITISH TELECOMMUNICATIONS PLC,Q0898N,11-Dec-23,18725.11,3120.85,62082,IT-Telecomms,270000              Information Communication Technology,A,2023,9
323,Community and Housing,BARONS LODGE NURSING HOME,1084237,15-Dec-23,1716,0,62371,Mental Health Placements,321017              Nursing & Residential Care Homes,A,2023,9
324,Community and Housing,BARONS LODGE NURSING HOME,1084248,15-Dec-23,622.86,0,62371,Older People Placements - East,321017              Nursing & Residential Care Homes,A,2023,9
325,Community and Housing,BARONS LODGE NURSING HOME,1084332,15-Dec-23,4360,0,62371,Older People Placements - East,321017              Nursing & Residential Care Homes,A,2023,9
326,Community and Housing,BARONS LODGE NURSING HOME,1084345,15-Dec-23,3321.16,0,62371,Older People Placements - East,321017              Nursing & Residential Care Homes,A,2023,9
327,Community and Housing,BARONS LODGE NURSING HOME,1084439,15-Dec-23,3502,0,62371,Mental Health Placements,321017              Nursing & Residential Care Homes,A,2023,9
328,Community and Housing,BARONS LODGE NURSING HOME,1084445,15-Dec-23,4200,0,62371,Mental Health Placements,321017              Nursing & Residential Care Homes,A,2023,9
329,Community and Housing,BARONS LODGE NURSING HOME,1084504,15-Dec-23,4360,0,62371,Mental Health Placements,321017              Nursing & Residential Care Homes,A,2023,9
330,Community and Housing,BARONS LODGE NURSING HOME,1084509,15-Dec-23,4360,0,62371,Older People Placements - East,321017              Nursing & Residential Care Homes,A,2023,9
331,Community and Housing,BARONS LODGE NURSING HOME,1084510,15-Dec-23,3807.2,0,62371,Learning Disabilities Placemnt,321017              Nursing & Residential Care Homes,A,2023,9
332,Community and Housing,BARONS LODGE NURSING HOME,1084529,15-Dec-23,4800,0,62371,Older People Placements - East,321017              Nursing & Residential Care Homes,A,2023,9
333,Community and Housing,BARONS LODGE NURSING HOME,1084551,15-Dec-23,3502,0,62371,Older People Placements - East,321017              Nursing & Residential Care Homes,A,2023,9
334,Community and Housing,BARONS LODGE NURSING HOME,1089186,29-Dec-23,4971.43,0,62371,Mental Health Placements,321017              Nursing & Residential Care Homes,A,2023,9
335,Community and Housing,SANCTUARY CARE LTD,1084200,15-Dec-23,3117.52,0,63458,Learning Disabilities Placemnt,321017              Nursing & Residential Care Homes,A,2023,9
336,Community and Housing,THE REGARD PARTNERSHIP LTD,1079211,08-Dec-23,8417.52,0,63796,Learning Disabilities Placemnt,321017              Nursing & Residential Care Homes,A,2023,9
337,Community and Housing,THE REGARD PARTNERSHIP LTD,1084185,15-Dec-23,7156,0,63796,Learning Disabilities Placemnt,321017              Nursing & Residential Care Homes,A,2023,9
338,Community and Housing,THE REGARD PARTNERSHIP LTD,1084289,15-Dec-23,6595.72,0,63796,Learning Disabilities Placemnt,321017              Nursing & Residential Care Homes,A,2023,9
339,Community and Housing,THE REGARD PARTNERSHIP LTD,1084305,15-Dec-23,10504.92,0,63796,Learning Disabilities Placemnt,321017              Nursing & Residential Care Homes,A,2023,9
340,Community and Housing,THE REGARD PARTNERSHIP LTD,1084318,15-Dec-23,6255.04,0,63796,Learning Disabilities Placemnt,321017              Nursing & Residential Care Homes,A,2023,9
341,Community and Housing,THE REGARD PARTNERSHIP LTD,1084429,15-Dec-23,6647.28,0,63796,Learning Disabilities Placemnt,321017              Nursing & Residential Care Homes,A,2023,9
342,Community and Housing,THE REGARD PARTNERSHIP LTD,1084530,15-Dec-23,5317.84,0,63796,Learning Disabilities Placemnt,321017              Nursing & Residential Care Homes,A,2023,9
343,Community and Housing,NEEDHAM AND SAUNDERS,2648,15-Dec-23,680,0,68089,Occupational Therapy,"390000              Works - Construction, Repair & Maintenance",A,2023,9
344,Community and Housing,NAS SERVICES LIMITED,ASU4402129,12-Dec-23,4546.8,757.8,68929,Mental Health Placements,321100              Social Community Care Supplies & Services - Children,A,2023,9
345,Community and Housing,NAS SERVICES LIMITED,ACR4403249,14-Dec-23,1893.6,315.6,68929,Mental Health Placements,321100              Social Community Care Supplies & Services - Children,A,2023,9
346,Community and Housing,NAS SERVICES LIMITED,ACR2392251,14-Dec-23,1893.6,315.6,68929,Mental Health Placements,321100              Social Community Care Supplies & Services - Children,A,2023,9
347,"Children, Schools and Family",POLKA THEATRE FOR CHILDREN,THESNOWQUEEN,19-Dec-23,2220,0,69287,Holiday Act Food Prog grntfnd,290000              Arts & Leisure Services,A,2023,9
348,Community and Housing,TRANSPORT TRADING LIMITED [SE1 0AL],3RD QTR 22/23,15-Dec-23,1176694,0,71407,Concessionary Fares,360000              Passenger Transport,A,2023,9
349,Unassigned,MERTON MUSIC FOUNDATION,INV-00630,01-Jan-24,19111.46,0,71535,Corporate Provisions,290000              Arts & Leisure Services,A,2023,9
350,Community and Housing,BRANDON TRUST,1084195,15-Dec-23,4398.6,0,76126,Learning Disabilities Placemnt,321017              Nursing & Residential Care Homes,A,2023,9
351,"Children, Schools and Family",DICKY BIRDS PRE SCHOOL NURSERY,P2 23 LATESTARTS,15-Dec-23,1593,0,76508,EARLY YEARS NURSERY GRANTS,170000              Education,A,2023,9
352,Corporate Services,LONDON BOROUGH OF SUTTON,3190792084,04-Dec-23,154980,25830,76615,Insurance Premiums & Funding,OLA,A,2023,9
353,Unassigned,LONDON BOROUGH OF SUTTON,MSJCB 23/24,05-Dec-23,53622.56,0,76615,MSJCB I&E,OLA,A,2023,9
354,Unassigned,LONDON BOROUGH OF SUTTON,BAILIFF NOV-2023,15-Dec-23,136062.74,0,76615,Corporate Services,OLA,A,2023,9
355,Unassigned,POST OFFICE LTD,CFA065MERT2324,08-Dec-23,7062.5,0,77066,Adults Social Care,200000              Financial Services,A,2023,9
356,Unassigned,POST OFFICE LTD,MERTON23/24 PO22,12-Dec-23,12313.64,0,77066,Adults Social Care,200000              Financial Services,A,2023,9
357,Unassigned,POST OFFICE LTD,MERTON23/24PO23,19-Dec-23,18291.68,0,77066,Adults Social Care,200000              Financial Services,A,2023,9
358,Community and Housing,ABBEY HOUSE RESIDENTIAL HOMES,1084196,15-Dec-23,4774,0,78937,Older People Placements - East,321017              Nursing & Residential Care Homes,A,2023,9
359,Community and Housing,ABBEY HOUSE RESIDENTIAL HOMES,1084220,15-Dec-23,4774,0,78937,Older People Placements - East,321017              Nursing & Residential Care Homes,A,2023,9
360,Community and Housing,ABBEY HOUSE RESIDENTIAL HOMES,1084222,15-Dec-23,5989.2,0,78937,Mental Health Placements,321017              Nursing & Residential Care Homes,A,2023,9
361,Corporate Services,TRANSPORT FOR LONDON,DARK FIBREPHASE2,21-Dec-23,1099318.94,0,79197,IT-Telecomms,PRECEPT,A,2023,9
362,"Children, Schools and Family",GLS EDUCATIONAL SUPPLIES LTD,30066913,28-Dec-23,611.96,101.99,79201,Children's Centres,170000              Education,A,2023,9
363,Corporate Services,GLS EDUCATIONAL SUPPLIES LTD,30081436,03-Jan-24,503.88,83.98,79201,PDC,170000              Education,A,2023,9
364,Corporate Services,ANTALIS,6700332471,28-Dec-23,840.92,140.15,81623,PrintUnit-HighVolPhtcopying,190000              Facilities & Management Services,A,2023,9
365,Community and Housing,REDACTED PERSONAL DATA,1078142,08-Dec-23,6316.16,0,81639,Older People Placements - East,DIRECT PAYMENTS,R,2023,9
366,"Children, Schools and Family",DEE'S DAY NURSERY,P2 23 LATESTARTS,15-Dec-23,1608,0,82343,EARLY YEARS NURSERY GRANTS,170000              Education,A,2023,9
367,"Children, Schools and Family",DEE'S DAY NURSERY,P2 23 EYSG 2,20-Dec-23,542.4,0,82343, Information & Systems Team,170000              Education,A,2023,9
368,Corporate Services,REDACTED PERSONAL DATA,INVJD211,21-Dec-23,3000,500,83383,SLLP - Disbursements,280000              Legal Services,R,2023,9
369,Unassigned,MALMESBURY PRIMARY SCHOOL,SCHOOLS 2324/9 A,08-Dec-23,218167.56,0,83593,Schools,170000              Education,A,2023,9
370,"Children, Schools and Family",YOUNG EPILEPSY,INV11829,15-Dec-23,26466,0,84094,Non-Delegated Statements,170000              Education,A,2023,9
371,"Children, Schools and Family",YOUNG EPILEPSY,INV11830,15-Dec-23,25262.74,0,84094,Non-Delegated Statements,170000              Education,A,2023,9
372,"Children, Schools and Family",YOUNG EPILEPSY,INV11832,15-Dec-23,22306.33,0,84094,Non-Delegated Statements,170000              Education,A,2023,9
373,"Children, Schools and Family",YOUNG EPILEPSY,INV11952,15-Dec-23,4746.33,0,84094,SEN Residential (DSG),170000              Education,A,2023,9
374,"Children, Schools and Family",YOUNG EPILEPSY,INV11833,15-Dec-23,25741,0,84094,Non-Delegated Statements,170000              Education,A,2023,9
375,"Children, Schools and Family",NEWSQUEST MEDIA GROUP LTD,43885383,12-Dec-23,1800,300,85566,Fostering Recruit/Assessment,190000              Facilities & Management Services,A,2023,9
376,Environment and Regeneration,NEWSQUEST MEDIA GROUP LTD,44121197,01-Jan-24,2420.28,403.38,85566,CPZ Implementation & Consult,190000              Facilities & Management Services,A,2023,9
377,Environment and Regeneration,NEWSQUEST MEDIA GROUP LTD,44120868,01-Jan-24,2366.5,394.42,85566,CPZ Implementation & Consult,190000              Facilities & Management Services,A,2023,9
378,Environment and Regeneration,NEWSQUEST MEDIA GROUP LTD,43896202,22-Dec-23,2258.93,376.49,85566,Footpath Crossings,190000              Facilities & Management Services,A,2023,9
379,Community and Housing,L.B.RICHMOND UPON THAMES,3001817007,11-Dec-23,75858,0,86993,OP/PS Mgt AD Adult Social Care,OLA,A,2023,9
380,Corporate Services,L.B.RICHMOND UPON THAMES,3001885452,08-Dec-23,147561.41,24593.57,86993,Benefits Investigations,OLA,A,2023,9
381,"Children, Schools and Family",CENTRE ACADEMY LONDON,MESP2424,08-Dec-23,14300,0,88689,Non-Delegated Statements,170000              Education,A,2023,9
382,"Children, Schools and Family",CENTRE ACADEMY LONDON,MESP2425,08-Dec-23,14300,0,88689,Non-Delegated Statements,170000              Education,A,2023,9
383,"Children, Schools and Family",CENTRE ACADEMY LONDON,MESP2426,08-Dec-23,14300,0,88689,Non-Delegated Statements,170000              Education,A,2023,9
384,Corporate Services,CITY OF WESTMINSTER,3660098969,15-Dec-23,425213.63,70868.94,89641,Coroners Courts,OLA,A,2023,9
385,Community and Housing,SUPREME CARE SERVICES LIMITED,40114-145914,15-Dec-23,1906.24,0,91840,Older People Placements - East,321000              Social Community Care Supplies & Services - Adult,A,2023,9
386,Community and Housing,THE GARWOOD FOUNDATION,MW.DFDEC23,21-Dec-23,944,0,92268,Older People Placements - East,321000              Social Community Care Supplies & Services - Adult,A,2023,9
387,Community and Housing,CARE MANAGEMENT GROUP,1079238,08-Dec-23,6681.24,0,93533,Phys/Sens Placements - East,321017              Nursing & Residential Care Homes,A,2023,9
388,Community and Housing,CARE MANAGEMENT GROUP,39700783,12-Dec-23,5383.48,0,93533,Learning Disabilities Placemnt,321017              Nursing & Residential Care Homes,A,2023,9
389,Community and Housing,CARE MANAGEMENT GROUP,613000699,12-Dec-23,6353.48,0,93533,Learning Disabilities Placemnt,321017              Nursing & Residential Care Homes,A,2023,9
390,Community and Housing,CARE MANAGEMENT GROUP,613000705,12-Dec-23,4860.36,0,93533,Learning Disabilities Placemnt,321017              Nursing & Residential Care Homes,A,2023,9
391,Community and Housing,CARE MANAGEMENT GROUP,1084178,15-Dec-23,4593.88,0,93533,Mental Health Placements,321017              Nursing & Residential Care Homes,A,2023,9
392,Community and Housing,CARE MANAGEMENT GROUP,1084250,15-Dec-23,6812.92,0,93533,Learning Disabilities Placemnt,321017              Nursing & Residential Care Homes,A,2023,9
393,Community and Housing,CARE MANAGEMENT GROUP,1084358,15-Dec-23,6441.2,0,93533,Learning Disabilities Placemnt,321017              Nursing & Residential Care Homes,A,2023,9
394,Community and Housing,CARE MANAGEMENT GROUP,1084406,15-Dec-23,9476,0,93533,Phys/Sens Placements - East,321017              Nursing & Residential Care Homes,A,2023,9
395,Community and Housing,CARE MANAGEMENT GROUP,1084441,15-Dec-23,8367.64,0,93533,Learning Disabilities Placemnt,321017              Nursing & Residential Care Homes,A,2023,9
396,Community and Housing,A AND R CARE LTD,1076312,07-Dec-23,2550,0,94357,Older People Placements - East,321017              Nursing & Residential Care Homes,A,2023,9
397,Community and Housing,A AND R CARE LTD,1084177,15-Dec-23,4121.16,0,94357,Older People Placements - East,321017              Nursing & Residential Care Homes,A,2023,9
398,Community and Housing,A AND R CARE LTD,1084240,15-Dec-23,3300,0,94357,Older People Placements - East,321017              Nursing & Residential Care Homes,A,2023,9
399,Community and Housing,A AND R CARE LTD,1084290,15-Dec-23,3921.16,0,94357,Older People Placements - East,321017              Nursing & Residential Care Homes,A,2023,9
400,Community and Housing,A AND R CARE LTD,1084370,15-Dec-23,4513.24,0,94357,Older People Placements - East,321017              Nursing & Residential Care Homes,A,2023,9
401,Community and Housing,A AND R CARE LTD,1084496,15-Dec-23,3400,0,94357,Older People Placements - East,321017              Nursing & Residential Care Homes,A,2023,9
402,Community and Housing,A AND R CARE LTD,1084534,15-Dec-23,4800,0,94357,Older People Placements - East,321017              Nursing & Residential Care Homes,A,2023,9
403,Community and Housing,A AND R CARE LTD,1084596,15-Dec-23,3824.32,0,94357,Phys/Sens Placements - East,321017              Nursing & Residential Care Homes,A,2023,9
404,Community and Housing,A AND R CARE LTD,1084599,15-Dec-23,4200,0,94357,Older People Placements - East,321017              Nursing & Residential Care Homes,A,2023,9
405,Community and Housing,A AND R CARE LTD,1089184,29-Dec-23,2100,0,94357,Older People Placements - East,321017              Nursing & Residential Care Homes,A,2023,9
406,Community and Housing,A AND R CARE LTD,1089193,29-Dec-23,4108.44,0,94357,Older People Placements - East,321017              Nursing & Residential Care Homes,A,2023,9
407,"Children, Schools and Family",THE FOSTERING NETWORK,RINV/00010301,22-Dec-23,8400,1400,95846,Fostering Support,260000              Human Resources,A,2023,9
408,Community and Housing,Aspens Charities Ltd,1084387,15-Dec-23,8909.92,0,96019,Learning Disabilities Placemnt,321017              Nursing & Residential Care Homes,A,2023,9
409,Community and Housing,REDACTED PERSONAL DATA,1078004,08-Dec-23,5192,0,96859,Learning Disabilities Placemnt,DIRECT PAYMENTS,R,2023,9
410,Community and Housing,THE ABBEYFIELD SOCIETY,1084511,15-Dec-23,4000,0,97539,Older People Placements - East,321000              Social Community Care Supplies & Services - Adult,A,2023,9
411,Community and Housing,EL-SHADDAI,1080803,11-Dec-23,1141.52,0,97709,MH Housing Support Placements,321000              Social Community Care Supplies & Services - Adult,A,2023,9
412,Community and Housing,EL-SHADDAI,1080822,11-Dec-23,847.04,0,97709,Phys/Sens Placements - East,321000              Social Community Care Supplies & Services - Adult,A,2023,9
413,Community and Housing,EL-SHADDAI,1080825,11-Dec-23,1426.8,0,97709,Learning Disabilities Placemnt,321000              Social Community Care Supplies & Services - Adult,A,2023,9
414,Community and Housing,EL-SHADDAI,1080830,11-Dec-23,1141.52,0,97709,Learning Disabilities Placemnt,321000              Social Community Care Supplies & Services - Adult,A,2023,9
415,Community and Housing,EL-SHADDAI,1080840,11-Dec-23,1652.52,0,97709,Mental Health Placements,321000              Social Community Care Supplies & Services - Adult,A,2023,9
416,Community and Housing,Rosenmanor Ltd,1084381,15-Dec-23,2924.24,0,97808,Mental Health Placements,321017              Nursing & Residential Care Homes,A,2023,9
417,Community and Housing,MERTON COMMUNITY TRANSPORT,17453,12-Dec-23,1310.4,218.4,98164,Learning Disabilities Placemnt,360000              Passenger Transport,A,2023,9
418,Community and Housing,MERTON COMMUNITY TRANSPORT,17443,15-Dec-23,1731.6,288.6,98164,Learning Disabilities Placemnt,360000              Passenger Transport,A,2023,9
419,Unassigned,BEECHOLME PRIMARY ACADEMY,SCHOOLS 2324/9 A,08-Dec-23,38758.15,0,98168,Schools,170000              Education,A,2023,9
420,"Children, Schools and Family",WRIXON CARE,51195,20-Dec-23,1751.7,291.95,98412,CIC Care Exp under 18 staffing,360000              Passenger Transport,A,2023,9
421,"Children, Schools and Family",WRIXON CARE,51286,20-Dec-23,2140.56,356.76,98412,CIC Care Exp under 18 staffing,360000              Passenger Transport,A,2023,9
422,"Children, Schools and Family",WRIXON CARE,51284,20-Dec-23,2673.6,445.6,98412,CIC Care Exp under 18 staffing,360000              Passenger Transport,A,2023,9
423,"Children, Schools and Family",Evolve Housing + Support,3409,01-Dec-23,1317.5,0,98536,UASC LAC Under 18,321000              Social Community Care Supplies & Services - Adult,A,2023,9
424,"Children, Schools and Family",Evolve Housing + Support,3440,01-Dec-23,2108,0,98536,UASC LAC Under 18,321000              Social Community Care Supplies & Services - Adult,A,2023,9
425,Community and Housing,Evolve Housing + Support,3449,28-Dec-23,24985.25,0,98536,Supporting People (HRS),321000              Social Community Care Supplies & Services - Adult,A,2023,9
426,Community and Housing,Evolve Housing + Support,3450,28-Dec-23,22732.75,0,98536,Supporting People (HRS),321000              Social Community Care Supplies & Services - Adult,A,2023,9
427,Community and Housing,ROYAL MENCAP SOCIETY,3801544,05-Dec-23,2290.96,0,98713,Learning Disabilities Placemnt,321000              Social Community Care Supplies & Services - Adult,A,2023,9
428,Community and Housing,ROYAL MENCAP SOCIETY,3801545,05-Dec-23,2613.96,0,98713,Learning Disabilities Placemnt,321000              Social Community Care Supplies & Services - Adult,A,2023,9
429,Community and Housing,ROYAL MENCAP SOCIETY,X03810753,29-Dec-23,12083.37,0,98713,Learning Disabilities Placemnt,321000              Social Community Care Supplies & Services - Adult,A,2023,9
430,Community and Housing,BOURNEMOUTH UNIVERSITY,56510031,28-Dec-23,1250,0,99441,Adult Safeguarding,260000              Human Resources,A,2023,9
431,Capital,AQUANEED LIMITED,SI23170,20-Dec-23,7900.61,0,100408,Disabled Facilities Grant,200000              Financial Services,A,2023,9
432,"Children, Schools and Family",REDACTED PERSONAL DATA,1080413,11-Dec-23,869.5,0,101120,Fostering Recruit/Assessment,290000              Arts & Leisure Services,R,2023,9
433,"Children, Schools and Family",REDACTED PERSONAL DATA,1090413,29-Dec-23,869.5,0,101120,Fostering Recruit/Assessment,290000              Arts & Leisure Services,R,2023,9
434,Unassigned,WEST WIMBLEDON PRIMARY SCHOOL,SCHOOLS 2324/9 A,08-Dec-23,238245.83,0,101674,Schools,170000              Education,A,2023,9
435,Community and Housing,HILLDALE AND NORTHVIEW,1084337,15-Dec-23,2072.52,0,103592,Older People Placements - East,321000              Social Community Care Supplies & Services - Adult,A,2023,9
436,Community and Housing,BUPA CARE HOMES,1076299,07-Dec-23,1042.02,0,105027,Older People Placements - East,321017              Nursing & Residential Care Homes,A,2023,9
437,Community and Housing,BUPA CARE HOMES,1076324,07-Dec-23,1187.37,0,105027,Older People Placements - East,321017              Nursing & Residential Care Homes,A,2023,9
438,Community and Housing,BUPA CARE HOMES,1076326,07-Dec-23,2646,0,105027,Phys/Sens Placements - East,321017              Nursing & Residential Care Homes,A,2023,9
439,Community and Housing,BUPA CARE HOMES,1076328,07-Dec-23,2044.12,0,105027,Older People Placements - East,321017              Nursing & Residential Care Homes,A,2023,9
440,Community and Housing,BUPA CARE HOMES,1076340,07-Dec-23,1042.02,0,105027,Older People Placements - East,321017              Nursing & Residential Care Homes,A,2023,9
441,Community and Housing,BUPA CARE HOMES,1079212,08-Dec-23,2496.96,0,105027,Older People Placements - East,321017              Nursing & Residential Care Homes,A,2023,9
442,Community and Housing,BUPA CARE HOMES,1079213,08-Dec-23,2496.96,0,105027,Older People Placements - East,321017              Nursing & Residential Care Homes,A,2023,9
443,Community and Housing,BUPA CARE HOMES,1079216,08-Dec-23,2413.08,0,105027,Older People Placements - East,321017              Nursing & Residential Care Homes,A,2023,9
444,Community and Housing,BUPA CARE HOMES,1079222,08-Dec-23,2496.96,0,105027,Older People Placements - East,321017              Nursing & Residential Care Homes,A,2023,9
445,Community and Housing,BUPA CARE HOMES,1079224,08-Dec-23,2413.08,0,105027,Older People Placements - East,321017              Nursing & Residential Care Homes,A,2023,9
446,Community and Housing,BUPA CARE HOMES,1079231,08-Dec-23,2496.96,0,105027,Older People Placements - East,321017              Nursing & Residential Care Homes,A,2023,9
447,Community and Housing,BUPA CARE HOMES,1079237,08-Dec-23,2496.96,0,105027,Older People Placements - East,321017              Nursing & Residential Care Homes,A,2023,9
448,Community and Housing,BUPA CARE HOMES,1079241,08-Dec-23,2496.96,0,105027,Older People Placements - East,321017              Nursing & Residential Care Homes,A,2023,9
449,Community and Housing,BUPA CARE HOMES,1079242,08-Dec-23,2413.08,0,105027,Older People Placements - East,321017              Nursing & Residential Care Homes,A,2023,9
450,Community and Housing,BUPA CARE HOMES,1079244,08-Dec-23,2496.96,0,105027,Older People Placements - East,321017              Nursing & Residential Care Homes,A,2023,9
451,Community and Housing,BUPA CARE HOMES,1079249,08-Dec-23,2496.96,0,105027,Older People Placements - East,321017              Nursing & Residential Care Homes,A,2023,9
452,Community and Housing,BUPA CARE HOMES,1079251,08-Dec-23,2496.96,0,105027,Older People Placements - East,321017              Nursing & Residential Care Homes,A,2023,9
453,Community and Housing,BUPA CARE HOMES,1079256,08-Dec-23,2496.96,0,105027,Mental Health Placements,321017              Nursing & Residential Care Homes,A,2023,9
454,Community and Housing,BUPA CARE HOMES,1079259,08-Dec-23,2413.08,0,105027,Older People Placements - East,321017              Nursing & Residential Care Homes,A,2023,9
455,Community and Housing,BUPA CARE HOMES,1079262,08-Dec-23,584.13,0,105027,Phys/Sens Placements - East,321017              Nursing & Residential Care Homes,A,2023,9
456,Community and Housing,BUPA CARE HOMES,1079263,08-Dec-23,2496.96,0,105027,Older People Placements - East,321017              Nursing & Residential Care Homes,A,2023,9
457,Community and Housing,BUPA CARE HOMES,1079264,08-Dec-23,2496.96,0,105027,Older People Placements - East,321017              Nursing & Residential Care Homes,A,2023,9
458,Community and Housing,BUPA CARE HOMES,1079265,08-Dec-23,1753.82,0,105027,Older People Placements - East,321017              Nursing & Residential Care Homes,A,2023,9
459,Community and Housing,BUPA CARE HOMES,1079267,08-Dec-23,2041.16,0,105027,Older People Placements - East,321017              Nursing & Residential Care Homes,A,2023,9
460,Community and Housing,BUPA CARE HOMES,1079270,08-Dec-23,2496.96,0,105027,Older People Placements - East,321017              Nursing & Residential Care Homes,A,2023,9
461,Community and Housing,BUPA CARE HOMES,1079275,08-Dec-23,2413.08,0,105027,Older People Placements - East,321017              Nursing & Residential Care Homes,A,2023,9
462,Community and Housing,BUPA CARE HOMES,1084210,15-Dec-23,3566.68,0,105027,Older People Placements - East,321017              Nursing & Residential Care Homes,A,2023,9
463,Community and Housing,BUPA CARE HOMES,1084224,15-Dec-23,3566.68,0,105027,Older People Placements - East,321017              Nursing & Residential Care Homes,A,2023,9
464,Community and Housing,BUPA CARE HOMES,1084238,15-Dec-23,3422.24,0,105027,Older People Placements - East,321017              Nursing & Residential Care Homes,A,2023,9
465,Community and Housing,BUPA CARE HOMES,1084295,15-Dec-23,3566.68,0,105027,Older People Placements - East,321017              Nursing & Residential Care Homes,A,2023,9
466,Community and Housing,BUPA CARE HOMES,1084308,15-Dec-23,3422.24,0,105027,Older People Placements - East,321017              Nursing & Residential Care Homes,A,2023,9
467,Community and Housing,BUPA CARE HOMES,1084341,15-Dec-23,3566.68,0,105027,Older People Placements - East,321017              Nursing & Residential Care Homes,A,2023,9
468,Community and Housing,BUPA CARE HOMES,1084402,15-Dec-23,3566.68,0,105027,Older People Placements - East,321017              Nursing & Residential Care Homes,A,2023,9
469,Community and Housing,BUPA CARE HOMES,1084416,15-Dec-23,3566.68,0,105027,Older People Placements - East,321017              Nursing & Residential Care Homes,A,2023,9
470,Community and Housing,BUPA CARE HOMES,1084430,15-Dec-23,3566.68,0,105027,Older People Placements - East,321017              Nursing & Residential Care Homes,A,2023,9
471,Community and Housing,BUPA CARE HOMES,1084433,15-Dec-23,3422.24,0,105027,Older People Placements - East,321017              Nursing & Residential Care Homes,A,2023,9
472,Community and Housing,BUPA CARE HOMES,1084440,15-Dec-23,3566.68,0,105027,Older People Placements - East,321017              Nursing & Residential Care Homes,A,2023,9
473,Community and Housing,BUPA CARE HOMES,1084470,15-Dec-23,3566.68,0,105027,Older People Placements - East,321017              Nursing & Residential Care Homes,A,2023,9
474,Community and Housing,BUPA CARE HOMES,1084479,15-Dec-23,4657.16,0,105027,Phys/Sens Placements - East,321017              Nursing & Residential Care Homes,A,2023,9
475,Community and Housing,BUPA CARE HOMES,1084485,15-Dec-23,3566.68,0,105027,Older People Placements - East,321017              Nursing & Residential Care Homes,A,2023,9
476,Community and Housing,BUPA CARE HOMES,1084505,15-Dec-23,3566.68,0,105027,Mental Health Placements,321017              Nursing & Residential Care Homes,A,2023,9
477,Community and Housing,BUPA CARE HOMES,1084524,15-Dec-23,3422.24,0,105027,Older People Placements - East,321017              Nursing & Residential Care Homes,A,2023,9
478,Community and Housing,BUPA CARE HOMES,1084550,15-Dec-23,3566.68,0,105027,Older People Placements - East,321017              Nursing & Residential Care Homes,A,2023,9
479,Community and Housing,BUPA CARE HOMES,1084557,15-Dec-23,3566.68,0,105027,Older People Placements - East,321017              Nursing & Residential Care Homes,A,2023,9
480,Community and Housing,BUPA CARE HOMES,1084561,15-Dec-23,3566.68,0,105027,Older People Placements - East,321017              Nursing & Residential Care Homes,A,2023,9
481,Community and Housing,BUPA CARE HOMES,1084595,15-Dec-23,3566.68,0,105027,Older People Placements - East,321017              Nursing & Residential Care Homes,A,2023,9
482,Community and Housing,BUPA CARE HOMES,1084616,15-Dec-23,3422.24,0,105027,Older People Placements - East,321017              Nursing & Residential Care Homes,A,2023,9
483,Community and Housing,BUPA CARE HOMES,1084991,15-Dec-23,32100.12,0,105027,Older People Placements - East,321017              Nursing & Residential Care Homes,A,2023,9
484,Community and Housing,REDACTED PERSONAL DATA,1078340,08-Dec-23,3286.2,0,105300,Learning Disabilities Placemnt,DIRECT PAYMENTS,R,2023,9
485,"Children, Schools and Family",NEWSCHOOLS (MERTON) LIMITED,NSM01085,21-Dec-23,2469176.69,411529.45,106428, PFI Unitary Charges,200000              Financial Services,A,2023,9
486,"Children, Schools and Family",St Philomena's RC High School for Girls,STPSQ/LBM0223,19-Dec-23,7904.49,0,109597,Non-Delegated Statements,170000              Education,A,2023,9
487,"Children, Schools and Family",St Philomena's RC High School for Girls,STPSQ/LBM0123,19-Dec-23,23519.04,0,109597,Non-Delegated Statements,170000              Education,A,2023,9
488,Community and Housing,REDACTED PERSONAL DATA,1080790,11-Dec-23,856.12,0,110403,MH Housing Support Placements,321000              Social Community Care Supplies & Services - Adult,R,2023,9
489,Community and Housing,REDACTED PERSONAL DATA,1080795,11-Dec-23,1141.48,0,110403,Learning Disabilities Placemnt,321000              Social Community Care Supplies & Services - Adult,R,2023,9
490,Community and Housing,REDACTED PERSONAL DATA,1080796,11-Dec-23,847.04,0,110403,MH Housing Support Placements,321000              Social Community Care Supplies & Services - Adult,R,2023,9
491,Community and Housing,REDACTED PERSONAL DATA,1080800,11-Dec-23,1141.52,0,110403,Mental Health Placements,321000              Social Community Care Supplies & Services - Adult,R,2023,9
492,Community and Housing,REDACTED PERSONAL DATA,1080804,11-Dec-23,847.04,0,110403,MH Housing Support Placements,321000              Social Community Care Supplies & Services - Adult,R,2023,9
493,Community and Housing,REDACTED PERSONAL DATA,1080805,11-Dec-23,1423.36,0,110403,Mental Health Placements,321000              Social Community Care Supplies & Services - Adult,R,2023,9
494,Community and Housing,REDACTED PERSONAL DATA,1080812,11-Dec-23,1141.52,0,110403,Phys/Sens Placements - East,321000              Social Community Care Supplies & Services - Adult,R,2023,9
495,Community and Housing,REDACTED PERSONAL DATA,1080815,11-Dec-23,1652.52,0,110403,Mental Health Placements,321000              Social Community Care Supplies & Services - Adult,R,2023,9
496,Community and Housing,REDACTED PERSONAL DATA,1080818,11-Dec-23,847.04,0,110403,MH Housing Support Placements,321000              Social Community Care Supplies & Services - Adult,R,2023,9
497,Community and Housing,REDACTED PERSONAL DATA,1080820,11-Dec-23,1129.4,0,110403,Mental Health Placements,321000              Social Community Care Supplies & Services - Adult,R,2023,9
498,Community and Housing,REDACTED PERSONAL DATA,1080827,11-Dec-23,847.04,0,110403,MH Housing Support Placements,321000              Social Community Care Supplies & Services - Adult,R,2023,9
499,Community and Housing,REDACTED PERSONAL DATA,1080829,11-Dec-23,564.72,0,110403,MH Housing Support Placements,321000              Social Community Care Supplies & Services - Adult,R,2023,9
500,Community and Housing,REDACTED PERSONAL DATA,1080838,11-Dec-23,847.04,0,110403,Mental Health Placements,321000              Social Community Care Supplies & Services - Adult,R,2023,9
501,Community and Housing,REDACTED PERSONAL DATA,1080828,11-Dec-23,847.04,0,110406,Learning Disabilities Placemnt,321000              Social Community Care Supplies & Services - Adult,R,2023,9
502,Corporate Services,LEXIS NEXIS,I0050983W,13-Dec-23,6240,1040,111141,Legal Shared Service,270000              Information Communication Technology,A,2023,9
503,"Children, Schools and Family",REDACTED PERSONAL DATA,1079496,08-Dec-23,514.26,0,111277,Placements Under 18,321100              Social Community Care Supplies & Services - Children,R,2023,9
504,"Children, Schools and Family",REDACTED PERSONAL DATA,1085456,15-Dec-23,1028.52,0,111277,Placements Under 18,321100              Social Community Care Supplies & Services - Children,R,2023,9
505,"Children, Schools and Family",REDACTED PERSONAL DATA,1085497,15-Dec-23,926.58,0,111277,Placements Under 18,321100              Social Community Care Supplies & Services - Children,R,2023,9
506,"Children, Schools and Family",REDACTED PERSONAL DATA,1091077,28-Dec-23,514.26,0,111277,Placements Under 18,321100              Social Community Care Supplies & Services - Children,R,2023,9
507,Environment and Regeneration,ANDREW SCOTT ROBERTSON,15585LC,18-Dec-23,11413.2,1902.2,111834,Property Mgt & Review,150000              Consultancy,A,2023,9
508,Community and Housing,MEADBANK NURSING CENTRE,1076344,07-Dec-23,2291.4,0,113139,Older People Placements - East,321017              Nursing & Residential Care Homes,A,2023,9
509,Community and Housing,MEADBANK NURSING CENTRE,1084592,15-Dec-23,3249.88,0,113139,Older People Placements - East,321017              Nursing & Residential Care Homes,A,2023,9
510,"Children, Schools and Family",REDACTED PERSONAL DATA,1080443,11-Dec-23,836.32,0,113452,Fostering Recruit/Assessment,321100              Social Community Care Supplies & Services - Children,R,2023,9
511,Community and Housing,MIHOMECARE LIMITED,LIVE42-270607,21-Dec-23,5474,0,114370,Learning Disabilities Placemnt,321000              Social Community Care Supplies & Services - Adult,A,2023,9
512,Community and Housing,MIHOMECARE LIMITED,LIVE42-270606,21-Dec-23,5474,0,114370,Older People Placements - East,321000              Social Community Care Supplies & Services - Adult,A,2023,9
513,Community and Housing,REDACTED PERSONAL DATA,1080791,11-Dec-23,1141.52,0,114970,MH Housing Support Placements,321000              Social Community Care Supplies & Services - Adult,R,2023,9
514,Community and Housing,REDACTED PERSONAL DATA,1080801,11-Dec-23,847.04,0,114970,MH Housing Support Placements,321000              Social Community Care Supplies & Services - Adult,R,2023,9
515,Community and Housing,REDACTED PERSONAL DATA,1080802,11-Dec-23,837.48,0,114970,Mental Health Placements,321000              Social Community Care Supplies & Services - Adult,R,2023,9
516,Community and Housing,REDACTED PERSONAL DATA,1080823,11-Dec-23,1141.52,0,114970,MH Housing Support Placements,321000              Social Community Care Supplies & Services - Adult,R,2023,9
517,Community and Housing,REDACTED PERSONAL DATA,1080833,11-Dec-23,856.08,0,114970,Mental Health Placements,321000              Social Community Care Supplies & Services - Adult,R,2023,9
518,Community and Housing,REDACTED PERSONAL DATA,1080837,11-Dec-23,805.48,0,114970,MH Housing Support Placements,321000              Social Community Care Supplies & Services - Adult,R,2023,9
519,"Children, Schools and Family",The Eveline Day Nursery Grand Drive,P2 23 LATESTARTS,15-Dec-23,796.5,0,116784,EARLY YEARS NURSERY GRANTS,170000              Education,A,2023,9
520,Community and Housing,GRANGE COTTAGE LIMITED,1084249,15-Dec-23,2680,0,117931,Older People Placements - East,321017              Nursing & Residential Care Homes,A,2023,9
521,Community and Housing,GRANGE COTTAGE LIMITED,1084424,15-Dec-23,3600,0,117931,Older People Placements - East,321017              Nursing & Residential Care Homes,A,2023,9
522,Community and Housing,GRANGE COTTAGE LIMITED,1084508,15-Dec-23,2680,0,117931,Older People Placements - East,321017              Nursing & Residential Care Homes,A,2023,9
523,Community and Housing,REDACTED PERSONAL DATA,1080798,11-Dec-23,856.12,0,117970,MH Housing Support Placements,321000              Social Community Care Supplies & Services - Adult,R,2023,9
524,Community and Housing,REDACTED PERSONAL DATA,1080806,11-Dec-23,1141.52,0,117970,Mental Health Placements,321000              Social Community Care Supplies & Services - Adult,R,2023,9
525,Community and Housing,REDACTED PERSONAL DATA,1080821,11-Dec-23,1345.36,0,117970,Mental Health Placements,321000              Social Community Care Supplies & Services - Adult,R,2023,9
526,Community and Housing,L'ARCHE,1084541,15-Dec-23,3050.12,0,118483,Learning Disabilities Placemnt,321017              Nursing & Residential Care Homes,A,2023,9
527,"Children, Schools and Family",REDACTED PERSONAL DATA,1085418,15-Dec-23,668.58,0,118991,Placements Over 18,321100              Social Community Care Supplies & Services - Children,R,2023,9
528,Community and Housing,Alexander House c/o Keychange Charity,1084267,15-Dec-23,3100,0,119109,Older People Placements - East,321017              Nursing & Residential Care Homes,A,2023,9
529,Community and Housing,Alexander House c/o Keychange Charity,1084323,15-Dec-23,6600,0,119109,Older People Placements - East,321017              Nursing & Residential Care Homes,A,2023,9
530,Community and Housing,Alexander House c/o Keychange Charity,1084342,15-Dec-23,3220.32,0,119109,Older People Placements - East,321017              Nursing & Residential Care Homes,A,2023,9
531,Community and Housing,Alexander House c/o Keychange Charity,1084367,15-Dec-23,5600,0,119109,Older People Placements - East,321017              Nursing & Residential Care Homes,A,2023,9
532,Community and Housing,Alexander House c/o Keychange Charity,1084554,15-Dec-23,4000,0,119109,Older People Placements - East,321017              Nursing & Residential Care Homes,A,2023,9
533,Community and Housing,Alexander House c/o Keychange Charity,1084606,15-Dec-23,3840,0,119109,Older People Placements - East,321017              Nursing & Residential Care Homes,A,2023,9
534,Environment and Regeneration,BROXAP LIMITED,302924,18-Dec-23,954,159,119278,Wandsworth Air Quality,230000              Highway Equipment & Materials,A,2023,9
535,Environment and Regeneration,COMPASS MINERALS UK LTD,516653,21-Dec-23,9569.18,1594.86,119496,Winter Maintenance,350000              Street & Traffic Management,A,2023,9
536,Environment and Regeneration,COMPASS MINERALS UK LTD,516728,21-Dec-23,11767.93,1961.32,119496,Winter Maintenance,350000              Street & Traffic Management,A,2023,9
537,Environment and Regeneration,COMPASS MINERALS UK LTD,516769,21-Dec-23,5808.48,968.08,119496,Winter Maintenance,350000              Street & Traffic Management,A,2023,9
538,Environment and Regeneration,COMPASS MINERALS UK LTD,516809,21-Dec-23,1940.15,323.36,119496,Winter Maintenance,350000              Street & Traffic Management,A,2023,9
539,Environment and Regeneration,COMPASS MINERALS UK LTD,516689,02-Jan-24,7932.47,1322.08,119496,Winter Maintenance,350000              Street & Traffic Management,A,2023,9
540,Environment and Regeneration,KINGDOM SECURITY LTD,SER-00048356INV,05-Dec-23,2101.58,350.25,123458,EDS2,260000              Human Resources,A,2023,9
541,Community and Housing,REDACTED PERSONAL DATA,1078071,08-Dec-23,1662.44,0,124097,Older People Placements - East,DIRECT PAYMENTS,R,2023,9
542,Community and Housing,UNITED RESPONSE,1084217,15-Dec-23,8251.44,1375.24,125227,Learning Disabilities Placemnt,321000              Social Community Care Supplies & Services - Adult,A,2023,9
543,Community and Housing,UNITED RESPONSE,1084278,15-Dec-23,8251.44,1375.24,125227,Learning Disabilities Placemnt,321000              Social Community Care Supplies & Services - Adult,A,2023,9
544,Community and Housing,UNITED RESPONSE,1084320,15-Dec-23,8251.44,1375.24,125227,Learning Disabilities Placemnt,321000              Social Community Care Supplies & Services - Adult,A,2023,9
545,Community and Housing,UNITED RESPONSE,1084376,15-Dec-23,8251.44,1375.24,125227,Learning Disabilities Placemnt,321000              Social Community Care Supplies & Services - Adult,A,2023,9
546,Community and Housing,UNITED RESPONSE,1084487,15-Dec-23,8251.44,1375.24,125227,Learning Disabilities Placemnt,321000              Social Community Care Supplies & Services - Adult,A,2023,9
547,Community and Housing,REDACTED PERSONAL DATA,1078056,08-Dec-23,1642.2,0,125642,Phys/Sens Placements - East,DIRECT PAYMENTS,R,2023,9
548,Community and Housing,REDACTED PERSONAL DATA,1078240,08-Dec-23,1039.36,0,126189,Older People Placements - East,DIRECT PAYMENTS,R,2023,9
549,Environment and Regeneration,TRL LIMITED,11619158,07-Dec-23,630.28,105.05,128700,Environmental Health-Pollution,180000              Environmental Services,A,2023,9
550,Environment and Regeneration,TRL LIMITED,11619159,07-Dec-23,1285.2,214.2,128700,LBR - Pollution,180000              Environmental Services,A,2023,9
551,Environment and Regeneration,TRL LIMITED,11619160,07-Dec-23,4345.04,724.17,128700,Wandsworth Air Quality,180000              Environmental Services,A,2023,9
552,"Children, Schools and Family",REDACTED PERSONAL DATA,1079465,08-Dec-23,514.26,0,128736,Placements Under 18,321100              Social Community Care Supplies & Services - Children,R,2023,9
553,"Children, Schools and Family",REDACTED PERSONAL DATA,1085426,15-Dec-23,1028.52,0,128736,Placements Under 18,321100              Social Community Care Supplies & Services - Children,R,2023,9
554,"Children, Schools and Family",REDACTED PERSONAL DATA,1091047,28-Dec-23,514.26,0,128736,Placements Under 18,321100              Social Community Care Supplies & Services - Children,R,2023,9
555,Community and Housing,BUPA CARE HOMES,1076307,07-Dec-23,4138.56,0,130491,Phys/Sens Placements - East,321017              Nursing & Residential Care Homes,A,2023,9
556,Community and Housing,BUPA CARE HOMES,1084216,15-Dec-23,6096.36,0,130491,Phys/Sens Placements - East,321017              Nursing & Residential Care Homes,A,2023,9
557,Community and Housing,BUPA CARE HOMES,1084333,15-Dec-23,6510.6,0,130491,Phys/Sens Placements - East,321017              Nursing & Residential Care Homes,A,2023,9
558,Capital,TFL SURFACE TRANSPORT,1800068332,29-Dec-23,50864.53,0,131451,Highways & Footways,360000              Passenger Transport,A,2023,9
559,"Children, Schools and Family",OAKTREE PRE-SCHOOL NURSERY,P2 23 LATESTARTS,15-Dec-23,1407,0,131726,EARLY YEARS NURSERY GRANTS,170000              Education,A,2023,9
560,Community and Housing,VOYAGE CARE LTD,1084298,15-Dec-23,7224.88,0,133700,Learning Disabilities Placemnt,321017              Nursing & Residential Care Homes,A,2023,9
561,Community and Housing,VOYAGE CARE LTD,1084410,15-Dec-23,10048,0,133700,Learning Disabilities Placemnt,321017              Nursing & Residential Care Homes,A,2023,9
562,Community and Housing,VOYAGE CARE LTD,1084484,15-Dec-23,8462.36,0,133700,Learning Disabilities Placemnt,321017              Nursing & Residential Care Homes,A,2023,9
563,Corporate Services,Paygate Solutions Ltd,SUP0000032258,01-Dec-23,16692,2782,134247,AD Resources,270000              Information Communication Technology,A,2023,9
564,Community and Housing,HOMECARE SERVICES LTD,INV-0229,01-Dec-23,5474,0,134594,Phys/Sens Placements - East,321100              Social Community Care Supplies & Services - Children,A,2023,9
565,Community and Housing,HOMECARE SERVICES LTD,INV-0297,28-Dec-23,5474,0,134594,Phys/Sens Placements - East,321100              Social Community Care Supplies & Services - Children,A,2023,9
566,Community and Housing,Sunrise Rehabilitation Centre,1084204,15-Dec-23,5213.88,0,135093,Learning Disabilities Placemnt,321017              Nursing & Residential Care Homes,A,2023,9
567,Community and Housing,Sunrise Rehabilitation Centre,1084236,15-Dec-23,5213.88,0,135093,Learning Disabilities Placemnt,321017              Nursing & Residential Care Homes,A,2023,9
568,Community and Housing,Sunrise Rehabilitation Centre,1084407,15-Dec-23,5161.52,0,135093,Learning Disabilities Placemnt,321017              Nursing & Residential Care Homes,A,2023,9
569,Community and Housing,Sunrise Rehabilitation Centre,1084525,15-Dec-23,5043.72,0,135093,Learning Disabilities Placemnt,321017              Nursing & Residential Care Homes,A,2023,9
570,Community and Housing,Sunrise Rehabilitation Centre,1084527,15-Dec-23,5174.6,0,135093,Learning Disabilities Placemnt,321017              Nursing & Residential Care Homes,A,2023,9
571,Community and Housing,Sunrise Rehabilitation Centre,1084549,15-Dec-23,5213.88,0,135093,Learning Disabilities Placemnt,321017              Nursing & Residential Care Homes,A,2023,9
572,Community and Housing,Sunrise Rehabilitation Centre,1084604,15-Dec-23,6102,0,135093,Learning Disabilities Placemnt,321017              Nursing & Residential Care Homes,A,2023,9
573,Community and Housing,Sunrise Rehabilitation Centre,1084620,15-Dec-23,4363.08,0,135093,Learning Disabilities Placemnt,321017              Nursing & Residential Care Homes,A,2023,9
574,Community and Housing,SW LONDON ST GEORGES NHS TRUST,P0071606,02-Jan-24,56034.05,0,135195,Mental Health Team,310000              Healthcare,A,2023,9
575,Community and Housing,REDACTED PERSONAL DATA,1078193,08-Dec-23,1612.64,0,135784,Phys/Sens Placements - East,DIRECT PAYMENTS,R,2023,9
576,"Children, Schools and Family",REDACTED PERSONAL DATA,1080438,11-Dec-23,529.46,0,135795,Fostering Recruit/Assessment,321100              Social Community Care Supplies & Services - Children,R,2023,9
577,"Children, Schools and Family",REDACTED PERSONAL DATA,1090438,29-Dec-23,529.46,0,135795,Fostering Recruit/Assessment,321100              Social Community Care Supplies & Services - Children,R,2023,9
578,Community and Housing,CROYDON HEALTH SERV. NHS TRUST,76685408,07-Dec-23,34045.38,0,136074,PH - Sexual Health,310000              Healthcare,A,2023,9
579,Community and Housing,HESTIA HOUSING AND SUPPORT,ARINV/00006107,28-Dec-23,21712.25,0,139090,Supporting People (HRS),321000              Social Community Care Supplies & Services - Adult,A,2023,9
580,Community and Housing,HESTIA HOUSING AND SUPPORT,ARINV/00006308,28-Dec-23,23557.75,0,139090,Supporting People (HRS),321000              Social Community Care Supplies & Services - Adult,A,2023,9
581,Community and Housing,REDACTED PERSONAL DATA,1078027,08-Dec-23,1320.76,0,139365,Phys/Sens Placements - East,DIRECT PAYMENTS,R,2023,9
582,"Children, Schools and Family",Building Blocks Childcare,P2 23 SENDIF2,15-Dec-23,2226,0,139778,EARLY YEARS NURSERY GRANTS,170000              Education,A,2023,9
583,Community and Housing,REDACTED PERSONAL DATA,1078381,08-Dec-23,625.6,0,140662,Phys/Sens Placements - East,DIRECT PAYMENTS,R,2023,9
584,Community and Housing,REDACTED PERSONAL DATA,1078049,08-Dec-23,6224.36,0,140759,Phys/Sens Placements - East,DIRECT PAYMENTS,R,2023,9
585,Community and Housing,SURREY AND BORDERS PARTNERSHIP,1084366,15-Dec-23,11448.72,0,140911,Learning Disabilities Placemnt,321017              Nursing & Residential Care Homes,A,2023,9
586,Corporate Services,KELTIC CLOTHING LTD,178024,22-Dec-23,3715.92,619.32,141131,Local Taxation Bailiffs,140000              Clothing,A,2023,9
587,Community and Housing,GARWOOD FOUNDATION,1084243,15-Dec-23,3400,0,142358,Phys/Sens Placements - East,321017              Nursing & Residential Care Homes,A,2023,9
588,"Children, Schools and Family",CHUBB FIRE AND SECURITY LTD,9665125,11-Dec-23,684.9,114.15,142411, Children's Centres Support,"390000              Works - Construction, Repair & Maintenance",A,2023,9
589,"Children, Schools and Family",CHUBB FIRE AND SECURITY LTD,9999870,20-Dec-23,570.42,95.07,142411,Church Road Building,"390000              Works - Construction, Repair & Maintenance",A,2023,9
590,Community and Housing,EVERGREEN PARTNERSHIP,1084294,15-Dec-23,9675,0,142455,Learning Disabilities Placemnt,321017              Nursing & Residential Care Homes,A,2023,9
591,Community and Housing,EVERGREEN PARTNERSHIP,1084310,15-Dec-23,6579.2,0,142455,Learning Disabilities Placemnt,321017              Nursing & Residential Care Homes,A,2023,9
592,Community and Housing,EVERGREEN PARTNERSHIP,1089179,29-Dec-23,1850.31,0,142455,Learning Disabilities Placemnt,321017              Nursing & Residential Care Homes,A,2023,9
593,Community and Housing,EVERGREEN PARTNERSHIP,1089181,29-Dec-23,1350.72,0,142455,Learning Disabilities Placemnt,321017              Nursing & Residential Care Homes,A,2023,9
594,Community and Housing,REDACTED PERSONAL DATA,1080808,11-Dec-23,1141.52,0,143597,MH Housing Support Placements,321000              Social Community Care Supplies & Services - Adult,R,2023,9
595,Community and Housing,REDACTED PERSONAL DATA,1080811,11-Dec-23,1426.8,0,143597,LD Housing Support Placements,321000              Social Community Care Supplies & Services - Adult,R,2023,9
596,Community and Housing,REDACTED PERSONAL DATA,1080835,11-Dec-23,1586.6,0,143597,Learning Disabilities Placemnt,321000              Social Community Care Supplies & Services - Adult,R,2023,9
597,Community and Housing,NISBETS PLC,51420649PROFORMA,08-Dec-23,1139.98,0,143661,Eastway Day Centre,110000              Catering,A,2023,9
598,Community and Housing,NISBETS PLC,27606916,11-Dec-23,2928.57,488.09,143661,"PH - Ready, Steady Cook",110000              Catering,A,2023,9
599,Community and Housing,NISBETS PLC,27598728,11-Dec-23,1841.41,306.9,143661,"PH - Ready, Steady Cook",110000              Catering,A,2023,9
600,Community and Housing,NISBETS PLC,28088999,04-Jan-24,1031.98,171.99,143661,Eastway Day Centre,110000              Catering,A,2023,9
601,Corporate Services,REDACTED PERSONAL DATA,JR201,11-Dec-23,955,0,143840,Translation Service,TRANSLATIONS,R,2023,9
602,Community and Housing,REDACTED PERSONAL DATA,1078321,08-Dec-23,4047.6,0,144689,Learning Disabilities Placemnt,DIRECT PAYMENTS,R,2023,9
603,Community and Housing,CRAEGMOOR FACILITIES - WINDSOR,1084346,15-Dec-23,7415.84,0,145152,Learning Disabilities Placemnt,321017              Nursing & Residential Care Homes,A,2023,9
604,Community and Housing,REDACTED PERSONAL DATA,1078127,08-Dec-23,5474,0,145882,Learning Disabilities Placemnt,DIRECT PAYMENTS,R,2023,9
605,"Children, Schools and Family",ACORN NURSERY,P2 23 LATESTARTS,15-Dec-23,1005,0,147406,EARLY YEARS NURSERY GRANTS,200000              Financial Services,A,2023,9
606,"Children, Schools and Family",REDACTED PERSONAL DATA,1085411,15-Dec-23,545.77,0,148060,Placements Under 18,321100              Social Community Care Supplies & Services - Children,R,2023,9
607,Community and Housing,GENERATE,11652,14-Dec-23,2884,0,148332,Learning Disabilities Placemnt,321000              Social Community Care Supplies & Services - Adult,A,2023,9
608,Community and Housing,GENERATE,11653,15-Dec-23,659.2,0,148332,Learning Disabilities Placemnt,321000              Social Community Care Supplies & Services - Adult,A,2023,9
609,Community and Housing,GENERATE,11651,19-Dec-23,727.2,0,148332,Learning Disabilities Placemnt,321000              Social Community Care Supplies & Services - Adult,A,2023,9
610,Community and Housing,CHICHESTER HALL CARE HOME LTD,1084565,15-Dec-23,2637.2,0,148358,Older People Placements - East,321017              Nursing & Residential Care Homes,A,2023,9
611,Unassigned,MICROBEE LTD,2024215,22-Dec-23,2304,384,149771,Mitcham Common Conservators,240000              Horticultural,A,2023,9
612,"Children, Schools and Family",YMCA St Pauls' Group,2031,28-Dec-23,3000,0,149961, Duke of Edinburgh Awrds,321000              Social Community Care Supplies & Services - Adult,A,2023,9
613,Unassigned,Canterbury Campus,SCHOOLS 2324/9 A,08-Dec-23,254243.01,0,150054,Schools,170000              Education,A,2023,9
614,Corporate Services,CGJ ROBERTS - HRC GROUP,1223/712,03-Jan-24,1909.08,318.18,150517,Legal Shared Service,170000              Education,A,2023,9
615,Community and Housing,REDACTED PERSONAL DATA,1078072,08-Dec-23,3125.04,0,151002,Older People Placements - East,DIRECT PAYMENTS,R,2023,9
616,"Children, Schools and Family",GOMPELS HEALTHCARE LTD,2670424,29-Dec-23,501.55,80.5,151364,Children's Centres,130000              Cleaning & Janitorial,A,2023,9
617,Community and Housing,AIMS CARE PARTNERSHIP,1084297,15-Dec-23,10560,0,151592,Learning Disabilities Placemnt,321017              Nursing & Residential Care Homes,A,2023,9
618,Community and Housing,AIMS CARE PARTNERSHIP,1084335,15-Dec-23,3114.72,0,151592,Learning Disabilities Placemnt,321017              Nursing & Residential Care Homes,A,2023,9
619,Community and Housing,HOLISTIC COMMUNITY CARE - FC,4027,01-Dec-23,5474,0,151996,Older People Placements - East,321000              Social Community Care Supplies & Services - Adult,A,2023,9
620,Community and Housing,HOLISTIC COMMUNITY CARE - FC,4028,01-Dec-23,5474,0,151996,Learning Disabilities Placemnt,321000              Social Community Care Supplies & Services - Adult,A,2023,9
621,Community and Housing,HOLISTIC COMMUNITY CARE - FC,3823,01-Dec-23,5474,0,151996,Older People Placements - East,321000              Social Community Care Supplies & Services - Adult,A,2023,9
622,Community and Housing,HOLISTIC COMMUNITY CARE - FC,4029,29-Dec-23,5474,0,151996,Older People Placements - East,321000              Social Community Care Supplies & Services - Adult,A,2023,9
623,Community and Housing,HOLISTIC COMMUNITY CARE - FC,4030,29-Dec-23,5474,0,151996,Learning Disabilities Placemnt,321000              Social Community Care Supplies & Services - Adult,A,2023,9
624,Community and Housing,REDACTED PERSONAL DATA,1078367,08-Dec-23,9153.2,0,152015,Older People Placements - East,321000              Social Community Care Supplies & Services - Adult,R,2023,9
625,Corporate Services,WANDSWORTH CORPORATION,WC376792128M08E,08-Dec-23,1947.38,0,152180,SLLP Client Income,OLA,A,2023,9
626,Community and Housing,REDACTED PERSONAL DATA,1078265,08-Dec-23,1173,0,152709,Older People Placements - East,DIRECT PAYMENTS,R,2023,9
627,Community and Housing,REDACTED PERSONAL DATA,1078132,08-Dec-23,1964.48,0,152990,Learning Disabilities Placemnt,DIRECT PAYMENTS,R,2023,9
628,Community and Housing,LYNTON HALL NURSING HOME,1076293,11-Dec-23,2286.36,0,153795,Older People Placements - East,321017              Nursing & Residential Care Homes,A,2023,9
629,Community and Housing,LYNTON HALL NURSING HOME,1076295,11-Dec-23,2373.12,0,153795,Older People Placements - East,321017              Nursing & Residential Care Homes,A,2023,9
630,Community and Housing,LYNTON HALL NURSING HOME,1076297,11-Dec-23,4791.43,0,153795,Older People Placements - East,321017              Nursing & Residential Care Homes,A,2023,9
631,Community and Housing,LYNTON HALL NURSING HOME,1076314,11-Dec-23,2485.8,0,153795,Older People Placements - East,321017              Nursing & Residential Care Homes,A,2023,9
632,Community and Housing,LYNTON HALL NURSING HOME,1084184,18-Dec-23,3365.72,0,153795,Older People Placements - East,321017              Nursing & Residential Care Homes,A,2023,9
633,Community and Housing,LYNTON HALL NURSING HOME,1084191,18-Dec-23,3242.52,0,153795,Older People Placements - East,321017              Nursing & Residential Care Homes,A,2023,9
634,Community and Housing,LYNTON HALL NURSING HOME,1084233,18-Dec-23,5160,0,153795,Older People Placements - East,321017              Nursing & Residential Care Homes,A,2023,9
635,Community and Housing,LYNTON HALL NURSING HOME,1084374,18-Dec-23,3525.8,0,153795,Older People Placements - East,321017              Nursing & Residential Care Homes,A,2023,9
636,Unassigned,HARRIS ACADEMY MERTON,SCHOOLS 2324/9 A,08-Dec-23,62922.35,0,155274,Schools,170000              Education,A,2023,9
637,Unassigned,CFBT SCHOOLS TRUST,SCHOOLS 2324/9 A,08-Dec-23,37557.57,0,155275,Schools,170000              Education,A,2023,9
638,Community and Housing,REDACTED PERSONAL DATA,1078261,08-Dec-23,586.52,0,156180,Mental Health Placements,DIRECT PAYMENTS,R,2023,9
639,Community and Housing,REDACTED PERSONAL DATA,1078190,08-Dec-23,1104.44,0,159542,Older People Placements - East,DIRECT PAYMENTS,R,2023,9
640,Corporate Services,ADVANCED BUSINESS SOLUTIONS,INV-163224,28-Dec-23,184662,30777,159966,AD Resources,270000              Information Communication Technology,A,2023,9
641,Corporate Services,ADVANCED BUSINESS SOLUTIONS,INV-163223,28-Dec-23,41400,6900,159966,AD Resources,270000              Information Communication Technology,A,2023,9
642,Community and Housing,REDACTED PERSONAL DATA,1078328,08-Dec-23,3950.24,0,160044,Phys/Sens Placements - East,DIRECT PAYMENTS,R,2023,9
643,Community and Housing,METROPOLITAN THAMES VALLEY,3066620SM,04-Jan-24,2171,0,160080,Learning Disabilities Placemnt,321017              Nursing & Residential Care Homes,A,2023,9
644,Community and Housing,METROPOLITAN THAMES VALLEY,3066620LD,04-Jan-24,2171,0,160080,Learning Disabilities Placemnt,321017              Nursing & Residential Care Homes,A,2023,9
645,Community and Housing,METROPOLITAN THAMES VALLEY,3066620SC,04-Jan-24,2171,0,160080,Learning Disabilities Placemnt,321017              Nursing & Residential Care Homes,A,2023,9
646,Community and Housing,METROPOLITAN THAMES VALLEY,3066620GB,04-Jan-24,2171,0,160080,Learning Disabilities Placemnt,321017              Nursing & Residential Care Homes,A,2023,9
647,"Children, Schools and Family",REDACTED PERSONAL DATA,1074306,04-Dec-23,4740,0,160147,Child Disabilities - Placement,CSF-DIRECT PAYMENTS,R,2023,9
648,Community and Housing,REDACTED PERSONAL DATA,1078151,08-Dec-23,1422.48,0,160244,Phys/Sens Placements - East,DIRECT PAYMENTS,R,2023,9
649,Community and Housing,REDACTED PERSONAL DATA,1078102,08-Dec-23,742.92,0,160273,Learning Disabilities Placemnt,DIRECT PAYMENTS,R,2023,9
650,Community and Housing,REDACTED PERSONAL DATA,1078208,08-Dec-23,1087.44,0,160279,Phys/Sens Placements - East,DIRECT PAYMENTS,R,2023,9
651,"Children, Schools and Family",Fleet Educ.Services Ltd T/A Fleet Tutors,28513,04-Dec-23,3024,504,160300,Non-Delegated Statements,260000              Human Resources,A,2023,9
652,"Children, Schools and Family",THE NATIONAL FOSTERING AGENCY,479473,22-Dec-23,5519.4,0,160464,Placements Under 18,321100              Social Community Care Supplies & Services - Children,A,2023,9
653,"Children, Schools and Family",THE NATIONAL FOSTERING AGENCY,479472,22-Dec-23,3996,0,160464,UASC LAC Under 18,321100              Social Community Care Supplies & Services - Children,A,2023,9
654,"Children, Schools and Family",THE NATIONAL FOSTERING AGENCY,479475,22-Dec-23,5815.72,0,160464,Placements Under 18,321100              Social Community Care Supplies & Services - Children,A,2023,9
655,"Children, Schools and Family",THE NATIONAL FOSTERING AGENCY,479474,22-Dec-23,5519.4,0,160464,Placements Under 18,321100              Social Community Care Supplies & Services - Children,A,2023,9
656,Community and Housing,THE AVENUES TRUST GROUP,1004237,28-Dec-23,10268.2,0,160730,Learning Disabilities Placemnt,321017              Nursing & Residential Care Homes,A,2023,9
657,"Children, Schools and Family",REDACTED PERSONAL DATA,1079454,08-Dec-23,548.09,0,161094,UASC LAC Under 18,321100              Social Community Care Supplies & Services - Children,R,2023,9
658,"Children, Schools and Family",REDACTED PERSONAL DATA,1085415,15-Dec-23,1196.18,0,161094,UASC LAC Under 18,321100              Social Community Care Supplies & Services - Children,R,2023,9
659,"Children, Schools and Family",REDACTED PERSONAL DATA,1085453,15-Dec-23,961.78,0,161094,Placements Over 18,321100              Social Community Care Supplies & Services - Children,R,2023,9
660,"Children, Schools and Family",REDACTED PERSONAL DATA,1085509,15-Dec-23,994.24,0,161094,Placements Under 18,321100              Social Community Care Supplies & Services - Children,R,2023,9
661,"Children, Schools and Family",REDACTED PERSONAL DATA,1091037,28-Dec-23,548.09,0,161094,UASC LAC Under 18,321100              Social Community Care Supplies & Services - Children,R,2023,9
662,Community and Housing,CENTRAL AND NW LONDON NHS FT,53511660,07-Dec-23,2565.58,0,162075,PH - Sexual Health,310000              Healthcare,A,2023,9
663,Community and Housing,CENTRAL AND NW LONDON NHS FT,53512399,28-Dec-23,2477.47,0,162075,PH - Sexual Health,310000              Healthcare,A,2023,9
664,Corporate Services,WALLINGTON CARS AND COURIERS LTD,304015,19-Dec-23,1630.96,271.83,162637,Post services,300000              Mail Services,A,2023,9
665,Community and Housing,REDACTED PERSONAL DATA,1078067,08-Dec-23,1737.28,0,163392,Learning Disabilities Placemnt,DIRECT PAYMENTS,R,2023,9
666,Environment and Regeneration,D N H PROPERTY MAINTENANCE,2432DNH,20-Dec-23,4906.78,817.8,163395,EDS2,"390000              Works - Construction, Repair & Maintenance",C,2023,9
667,Environment and Regeneration,D N H PROPERTY MAINTENANCE,2433DNH,18-Dec-23,2826,471,163395,EDS2,"390000              Works - Construction, Repair & Maintenance",C,2023,9
668,Capital,D N H PROPERTY MAINTENANCE,24055DNH,08-Dec-23,11136,1856,163395,Mitcham Area Regeneration,"390000              Works - Construction, Repair & Maintenance",C,2023,9
669,Capital,D N H PROPERTY MAINTENANCE,2444DNH,19-Dec-23,3456,576,163395,Joseph Hood,"390000              Works - Construction, Repair & Maintenance",C,2023,9
670,Capital,D N H PROPERTY MAINTENANCE,2445DNH,28-Dec-23,5806.99,967.83,163395,Mitcham Area Regeneration,"390000              Works - Construction, Repair & Maintenance",C,2023,9
671,Environment and Regeneration,D N H PROPERTY MAINTENANCE,2448DNH,28-Dec-23,11760,1960,163395,Other Misc Props,"390000              Works - Construction, Repair & Maintenance",C,2023,9
672,Capital,D N H PROPERTY MAINTENANCE,2452DNH,28-Dec-23,4664.28,777.38,163395,Works to other buildings,"390000              Works - Construction, Repair & Maintenance",C,2023,9
673,Environment and Regeneration,D N H PROPERTY MAINTENANCE,2449DNH,28-Dec-23,2251.85,375.31,163395,Other Misc Props,"390000              Works - Construction, Repair & Maintenance",C,2023,9
674,Environment and Regeneration,D N H PROPERTY MAINTENANCE,2454DNH,03-Jan-24,576,96,163395,Notional - Community Centres,"390000              Works - Construction, Repair & Maintenance",C,2023,9
675,"Children, Schools and Family",REDACTED PERSONAL DATA,1079431,08-Dec-23,548.09,0,163471,UASC LAC Under 18,200000              Financial Services,R,2023,9
676,"Children, Schools and Family",REDACTED PERSONAL DATA,1079514,08-Dec-23,785.52,0,163471,Placements Under 18,200000              Financial Services,R,2023,9
677,"Children, Schools and Family",REDACTED PERSONAL DATA,1079523,08-Dec-23,692.46,0,163471,Placements Under 18,200000              Financial Services,R,2023,9
678,"Children, Schools and Family",REDACTED PERSONAL DATA,1085391,15-Dec-23,1096.18,0,163471,UASC LAC Under 18,200000              Financial Services,R,2023,9
679,"Children, Schools and Family",REDACTED PERSONAL DATA,1085473,15-Dec-23,1571.04,0,163471,Placements Under 18,200000              Financial Services,R,2023,9
680,"Children, Schools and Family",REDACTED PERSONAL DATA,1085482,15-Dec-23,1384.92,0,163471,Placements Under 18,200000              Financial Services,R,2023,9
681,"Children, Schools and Family",REDACTED PERSONAL DATA,1091013,28-Dec-23,548.09,0,163471,UASC LAC Under 18,200000              Financial Services,R,2023,9
682,"Children, Schools and Family",REDACTED PERSONAL DATA,1091094,28-Dec-23,785.52,0,163471,Placements Under 18,200000              Financial Services,R,2023,9
683,"Children, Schools and Family",REDACTED PERSONAL DATA,1091103,28-Dec-23,692.46,0,163471,Placements Under 18,200000              Financial Services,R,2023,9
684,Community and Housing,Active Prospects,1084219,15-Dec-23,6103.76,0,163859,Learning Disabilities Placemnt,321017              Nursing & Residential Care Homes,A,2023,9
685,Community and Housing,REDACTED PERSONAL DATA,1078098,08-Dec-23,1281.72,0,163971,Older People Placements - East,DIRECT PAYMENTS,R,2023,9
686,Corporate Services,LONDON COUNCILS,4350795,01-Dec-23,2400,400,164343,Corporate Accountancy,OLA,A,2023,9
687,Corporate Services,LONDON COUNCILS,4348918,05-Dec-23,36000,6000,164343,IT Service Delivery,OLA,A,2023,9
688,Community and Housing,LONDON COUNCILS,4353981,28-Dec-23,15000,0,164343,Homelessness Prevention,OLA,A,2023,9
689,Community and Housing,ENTERPRISE CARE SUPPORT LTD - FC,ECS P09/3,12-Dec-23,1076.99,0,164431,Older People Placements - East,321000              Social Community Care Supplies & Services - Adult,A,2023,9
690,Community and Housing,ENTERPRISE CARE SUPPORT LTD - FC,ECS P09/18,12-Dec-23,1178.53,0,164431,Older People Placements - East,321000              Social Community Care Supplies & Services - Adult,A,2023,9
691,Community and Housing,ENTERPRISE CARE SUPPORT LTD - FC,ECS P09/35,12-Dec-23,2086.76,0,164431,Older People Placements - East,321000              Social Community Care Supplies & Services - Adult,A,2023,9
692,Community and Housing,ENTERPRISE CARE SUPPORT LTD - FC,ECS P09/25,12-Dec-23,615.53,0,164431,Older People Placements - East,321000              Social Community Care Supplies & Services - Adult,A,2023,9
693,Community and Housing,ENTERPRISE CARE SUPPORT LTD - FC,ECS P09/5,12-Dec-23,980.5,0,164431,Older People Placements - East,321000              Social Community Care Supplies & Services - Adult,A,2023,9
694,Community and Housing,ENTERPRISE CARE SUPPORT LTD - FC,ECS P09/30,12-Dec-23,1615.41,0,164431,Older People Placements - East,321000              Social Community Care Supplies & Services - Adult,A,2023,9
695,Community and Housing,ENTERPRISE CARE SUPPORT LTD - FC,ECS P09/15,12-Dec-23,1667.66,0,164431,Older People Placements - East,321000              Social Community Care Supplies & Services - Adult,A,2023,9
696,Community and Housing,ENTERPRISE CARE SUPPORT LTD - FC,ECS P09/4,12-Dec-23,848.71,0,164431,Older People Placements - East,321000              Social Community Care Supplies & Services - Adult,A,2023,9
697,Community and Housing,ENTERPRISE CARE SUPPORT LTD - FC,ECS P09/21,12-Dec-23,1309.73,0,164431,Phys/Sens Placements - East,321000              Social Community Care Supplies & Services - Adult,A,2023,9
698,Community and Housing,ENTERPRISE CARE SUPPORT LTD - FC,ECS P09/28,12-Dec-23,1186.69,0,164431,Phys/Sens Placements - East,321000              Social Community Care Supplies & Services - Adult,A,2023,9
699,Community and Housing,ENTERPRISE CARE SUPPORT LTD - FC,ECS P09/29,12-Dec-23,673.09,0,164431,Phys/Sens Placements - East,321000              Social Community Care Supplies & Services - Adult,A,2023,9
700,Community and Housing,ENTERPRISE CARE SUPPORT LTD - FC,ECS P09/6,12-Dec-23,2783.65,0,164431,Older People Placements - East,321000              Social Community Care Supplies & Services - Adult,A,2023,9
701,Community and Housing,ENTERPRISE CARE SUPPORT LTD - FC,ECS P09/7,12-Dec-23,1151.35,0,164431,Older People Placements - East,321000              Social Community Care Supplies & Services - Adult,A,2023,9
702,Community and Housing,ENTERPRISE CARE SUPPORT LTD - FC,ECS P09/23,12-Dec-23,745.43,0,164431,Older People Placements - East,321000              Social Community Care Supplies & Services - Adult,A,2023,9
703,Community and Housing,ENTERPRISE CARE SUPPORT LTD - FC,ECS P09/16,12-Dec-23,823,0,164431,Learning Disabilities Placemnt,321000              Social Community Care Supplies & Services - Adult,A,2023,9
704,Community and Housing,ENTERPRISE CARE SUPPORT LTD - FC,ECS P09/10,12-Dec-23,868.32,0,164431,Older People Placements - East,321000              Social Community Care Supplies & Services - Adult,A,2023,9
705,Community and Housing,ENTERPRISE CARE SUPPORT LTD - FC,ECS P09/9,12-Dec-23,4151.31,0,164431,Older People Placements - East,321000              Social Community Care Supplies & Services - Adult,A,2023,9
706,Community and Housing,ENTERPRISE CARE SUPPORT LTD - FC,ECS P09/26,12-Dec-23,842.55,0,164431,Older People Placements - East,321000              Social Community Care Supplies & Services - Adult,A,2023,9
707,Community and Housing,ENTERPRISE CARE SUPPORT LTD - FC,ECS P09/32,12-Dec-23,501.92,0,164431,Older People Placements - East,321000              Social Community Care Supplies & Services - Adult,A,2023,9
708,Community and Housing,ENTERPRISE CARE SUPPORT LTD - FC,ECS P09/34,12-Dec-23,1162.53,0,164431,Older People Placements - East,321000              Social Community Care Supplies & Services - Adult,A,2023,9
709,Community and Housing,ENTERPRISE CARE SUPPORT LTD - FC,ECS P09/36,12-Dec-23,813.72,0,164431,Older People Placements - East,321000              Social Community Care Supplies & Services - Adult,A,2023,9
710,Community and Housing,ENTERPRISE CARE SUPPORT LTD - FC,ECS P09/19,12-Dec-23,3048.23,0,164431,Older People Placements - East,321000              Social Community Care Supplies & Services - Adult,A,2023,9
711,Community and Housing,ENTERPRISE CARE SUPPORT LTD - FC,ECS P09/17,12-Dec-23,2992.87,0,164431,Older People Placements - East,321000              Social Community Care Supplies & Services - Adult,A,2023,9
712,Community and Housing,ENTERPRISE CARE SUPPORT LTD - FC,ECS P09/1,12-Dec-23,3245.15,0,164431,Older People Placements - East,321000              Social Community Care Supplies & Services - Adult,A,2023,9
713,Community and Housing,BUPA CARE SERVICES BACS RECEIP,1084421,15-Dec-23,8580.84,0,164629,Older People Placements - East,321017              Nursing & Residential Care Homes,A,2023,9
714,Community and Housing,REDACTED PERSONAL DATA,1078293,08-Dec-23,2405.52,0,164694,Older People Placements - East,DIRECT PAYMENTS,R,2023,9
715,Unassigned,MARSTON GROUP,63000,22-Dec-23,3758.6,0,165202,Corporate Accountancy,200000              Financial Services,A,2023,9
716,"Children, Schools and Family",CHILDREN OF COLOUR,8407,07-Dec-23,5164.72,0,165365,Placements Under 18,321100              Social Community Care Supplies & Services - Children,A,2023,9
717,Community and Housing,REDACTED PERSONAL DATA,1078316,08-Dec-23,1634.32,0,165602,Learning Disabilities Placemnt,DIRECT PAYMENTS,R,2023,9
718,Community and Housing,REDACTED PERSONAL DATA,1078272,08-Dec-23,7111.44,0,165619,Phys/Sens Placements - East,DIRECT PAYMENTS,R,2023,9
719,Community and Housing,BUPA CARE HOMES (ANS) LTD,1076341,07-Dec-23,2993.05,0,165704,Older People Placements - East,321017              Nursing & Residential Care Homes,A,2023,9
720,Community and Housing,BUPA CARE HOMES (ANS) LTD,1084582,15-Dec-23,5124.04,0,165704,Older People Placements - East,321017              Nursing & Residential Care Homes,A,2023,9
721,Corporate Services,Crown Lane Productions Ltd,INV-3726,28-Dec-23,1000,0,165739,Marketing & Communication,290000              Arts & Leisure Services,A,2023,9
722,Corporate Services,Crown Lane Productions Ltd,INV-3658,22-Dec-23,2500,0,165739,Chief Executive,290000              Arts & Leisure Services,A,2023,9
723,Community and Housing,REDACTED PERSONAL DATA,1078358,08-Dec-23,1262.96,0,165786,Older People Placements - East,DIRECT PAYMENTS,R,2023,9
724,Community and Housing,REDACTED PERSONAL DATA,1078371,08-Dec-23,700.8,0,166085,Learning Disabilities Placemnt,DIRECT PAYMENTS,R,2023,9
725,Community and Housing,REDACTED PERSONAL DATA,1078057,08-Dec-23,1951.32,0,166158,Phys/Sens Placements - East,DIRECT PAYMENTS,R,2023,9
726,Community and Housing,REDACTED PERSONAL DATA,1078085,08-Dec-23,1485.8,0,166547,Learning Disabilities Placemnt,DIRECT PAYMENTS,R,2023,9
727,"Children, Schools and Family",REDACTED PERSONAL DATA,1079437,08-Dec-23,1354.2,0,166742,Placements Under 18,321100              Social Community Care Supplies & Services - Children,R,2023,9
728,"Children, Schools and Family",REDACTED PERSONAL DATA,1085397,15-Dec-23,2708.4,0,166742,Placements Under 18,321100              Social Community Care Supplies & Services - Children,R,2023,9
729,"Children, Schools and Family",REDACTED PERSONAL DATA,1091019,28-Dec-23,1354.2,0,166742,Placements Under 18,321100              Social Community Care Supplies & Services - Children,R,2023,9
730,Corporate Services,REDACTED PERSONAL DATA,00564-19623410-0,14-Dec-23,1519,0,166885,Client Finance Affairs,120000              Cemetery & Crematorium,R,2023,9
731,Corporate Services,REDACTED PERSONAL DATA,00564-19642509-0,19-Dec-23,1457,0,166885,Client Finance Affairs,120000              Cemetery & Crematorium,R,2023,9
732,Corporate Services,REDACTED PERSONAL DATA,5.64E+11,19-Dec-23,1437,0,166885,Client Finance Affairs,120000              Cemetery & Crematorium,R,2023,9
733,Corporate Services,LNRS DATA SERVICES LTD,INV-00328474,03-Jan-24,6945.6,1157.6,167019,AD-Human Resources,260000              Human Resources,A,2023,9
734,Corporate Services,SGS United Kingdom Limited,1351882,04-Jan-24,1350,225,167356,Legal Shared Service,280000              Legal Services                                                                            Confirmed,A,2023,9
735,"Children, Schools and Family",RAINBOW FOSTERING SERVICES LTD,RF3965,20-Dec-23,3621.42,0,167793,Placements Under 18,321100              Social Community Care Supplies & Services - Children,A,2023,9
736,Corporate Services,REDACTED PERSONAL DATA,INVHW298,13-Dec-23,3600,600,167963,SLLP - Disbursements,280000              Legal Services                                                                            Confirmed,R,2023,9
737,"Children, Schools and Family",BURLINGTON HOUSE SCHOOL,6230953,08-Dec-23,13897,0,167981,Non-Delegated Statements,200000              Financial Services,A,2023,9
738,"Children, Schools and Family",BURLINGTON HOUSE SCHOOL,6230952,08-Dec-23,13897,0,167981,Non-Delegated Statements,200000              Financial Services,A,2023,9
739,"Children, Schools and Family",BURLINGTON HOUSE SCHOOL,6230951,08-Dec-23,13897,0,167981,Non-Delegated Statements,200000              Financial Services,A,2023,9
740,"Children, Schools and Family",BURLINGTON HOUSE SCHOOL,230940A,28-Dec-23,12887,0,167981,Non-Delegated Statements,200000              Financial Services,A,2023,9
741,"Children, Schools and Family",BURLINGTON HOUSE SCHOOL,230941A,28-Dec-23,12887,0,167981,Non-Delegated Statements,200000              Financial Services,A,2023,9
742,"Children, Schools and Family",BURLINGTON HOUSE SCHOOL,230942A,28-Dec-23,13328,0,167981,Non-Delegated Statements,200000              Financial Services,A,2023,9
743,"Children, Schools and Family",BURLINGTON HOUSE SCHOOL,P230923A,28-Dec-23,13328,0,167981,Non-Delegated Statements,200000              Financial Services,A,2023,9
744,"Children, Schools and Family",BURLINGTON HOUSE SCHOOL,230939A,28-Dec-23,12887,0,167981,Non-Delegated Statements,200000              Financial Services,A,2023,9
745,"Children, Schools and Family",BURLINGTON HOUSE SCHOOL,P230924A,28-Dec-23,13328,0,167981,Non-Delegated Statements,200000              Financial Services,A,2023,9
746,"Children, Schools and Family",BURLINGTON HOUSE SCHOOL,230938A,28-Dec-23,12513,0,167981,Non-Delegated Statements,200000              Financial Services,A,2023,9
747,"Children, Schools and Family",BURLINGTON HOUSE SCHOOL,230937A,28-Dec-23,12513,0,167981,Non-Delegated Statements,200000              Financial Services,A,2023,9
748,"Children, Schools and Family",BURLINGTON HOUSE SCHOOL,6230957B,28-Dec-23,6297,0,167981,Non-Delegated Statements,200000              Financial Services,A,2023,9
749,"Children, Schools and Family",BURLINGTON HOUSE SCHOOL,P240125,15-Dec-23,13456,0,167981,Non-Delegated Statements,200000              Financial Services,A,2023,9
750,"Children, Schools and Family",BURLINGTON HOUSE SCHOOL,240139A,28-Dec-23,12887,0,167981,Non-Delegated Statements,200000              Financial Services,A,2023,9
751,"Children, Schools and Family",BURLINGTON HOUSE SCHOOL,6240157,15-Dec-23,13897,0,167981,Non-Delegated Statements,200000              Financial Services,A,2023,9
752,"Children, Schools and Family",BURLINGTON HOUSE SCHOOL,240137A,28-Dec-23,12513,0,167981,Non-Delegated Statements,200000              Financial Services,A,2023,9
753,"Children, Schools and Family",BURLINGTON HOUSE SCHOOL,6240150,15-Dec-23,13110,0,167981,Non-Delegated Statements,200000              Financial Services,A,2023,9
754,"Children, Schools and Family",BURLINGTON HOUSE SCHOOL,240138A,28-Dec-23,12513,0,167981,Non-Delegated Statements,200000              Financial Services,A,2023,9
755,"Children, Schools and Family",BURLINGTON HOUSE SCHOOL,6240152,15-Dec-23,13897,0,167981,Non-Delegated Statements,200000              Financial Services,A,2023,9
756,"Children, Schools and Family",BURLINGTON HOUSE SCHOOL,P240123A,28-Dec-23,13328,0,167981,Non-Delegated Statements,200000              Financial Services,A,2023,9
757,"Children, Schools and Family",BURLINGTON HOUSE SCHOOL,6240151,15-Dec-23,13897,0,167981,Non-Delegated Statements,200000              Financial Services,A,2023,9
758,"Children, Schools and Family",BURLINGTON HOUSE SCHOOL,P240124A,28-Dec-23,13328,0,167981,Non-Delegated Statements,200000              Financial Services,A,2023,9
759,"Children, Schools and Family",BURLINGTON HOUSE SCHOOL,240140A,28-Dec-23,12887,0,167981,Non-Delegated Statements,200000              Financial Services,A,2023,9
760,"Children, Schools and Family",BURLINGTON HOUSE SCHOOL,240142A,28-Dec-23,13328,0,167981,Non-Delegated Statements,200000              Financial Services,A,2023,9
761,"Children, Schools and Family",BURLINGTON HOUSE SCHOOL,P240140,28-Dec-23,13456,0,167981,Non-Delegated Statements,200000              Financial Services,A,2023,9
762,"Children, Schools and Family",BURLINGTON HOUSE SCHOOL,6240153,15-Dec-23,13897,0,167981,Non-Delegated Statements,200000              Financial Services,A,2023,9
763,Corporate Services,REDACTED PERSONAL DATA,10253043,21-Dec-23,2610,0,168092,SLLP - Disbursements,280000              Legal Services,R,2023,9
764,Corporate Services,REDACTED PERSONAL DATA,10254400,21-Dec-23,56367,0,168092,SLLP - Disbursements,280000              Legal Services,R,2023,9
765,Corporate Services,REDACTED PERSONAL DATA,10257707,01-Jan-24,31887,5314.5,168092,SLLP - Disbursements,280000              Legal Services,R,2023,9
766,Capital,CBS Adaptation Design,1829,11-Dec-23,2475.52,0,168147,Disabled Facilities Grant,200000              Financial Services,A,2023,9
767,Capital,CBS Adaptation Design,1838,20-Dec-23,1801.97,0,168147,Disabled Facilities Grant,200000              Financial Services,A,2023,9
768,Capital,CBS Adaptation Design,1835,20-Dec-23,1375.87,0,168147,Disabled Facilities Grant,200000              Financial Services,A,2023,9
769,Capital,CBS Adaptation Design,1837,02-Jan-24,1827.78,0,168147,Disabled Facilities Grant,200000              Financial Services,A,2023,9
770,Corporate Services,LANGUAGE BANK,MTS-171123,11-Dec-23,1116,186,168229,Translation Service,TRANSLATIONS,A,2023,9
771,Corporate Services,LANGUAGE BANK,MTS-221123,01-Jan-24,525,87.5,168229,Translation Service,TRANSLATIONS,A,2023,9
772,Corporate Services,LANGUAGE BANK,MTS-131223,01-Jan-24,586.5,97.75,168229,Translation Service,TRANSLATIONS,A,2023,9
773,Corporate Services,LANGUAGE BANK,MTS-051223,29-Dec-23,885,147.5,168229,Translation Service,TRANSLATIONS,A,2023,9
774,Corporate Services,LANGUAGE BANK,MTS-011223,28-Dec-23,1056,176,168229,Translation Service,TRANSLATIONS,A,2023,9
775,Community and Housing,REDACTED PERSONAL DATA,1078090,08-Dec-23,1063.8,0,168403,Learning Disabilities Placemnt,DIRECT PAYMENTS,R,2023,9
776,Community and Housing,HOME CONNECTIONS LETTINGS LTD,INV-1654,28-Dec-23,1260,210,168983,Housing Needs & Enablg-central,270000              Information Communication Technology,A,2023,9
777,"Children, Schools and Family",THE LUCY FAITHFULL FOUNDATION,11173,08-Dec-23,3224,0,169410,CIC Care Exp under 18 staffing,280000              Legal Services                                                                            Confirmed,A,2023,9
778,"Children, Schools and Family",THE LUCY FAITHFULL FOUNDATION,11474,12-Dec-23,1456,0,169410,Family Supp SafeGuard - Place,280000              Legal Services                                                                            Confirmed,A,2023,9
779,Corporate Services,KC Services Group,61683,22-Dec-23,1320,220,169420,Buildings Maintenance,"390000              Works - Construction, Repair & Maintenance",A,2023,9
780,Corporate Services,KC Services Group,61714,28-Dec-23,2640,440,169420,Buildings Maintenance,"390000              Works - Construction, Repair & Maintenance",A,2023,9
781,Corporate Services,JULIUS RUTHERFOORD AND CO LTD,INVS152415,22-Dec-23,2498.65,416.44,170092,PDC,130000              Cleaning & Janitorial,A,2023,9
782,Corporate Services,JULIUS RUTHERFOORD AND CO LTD,INV-SI51989,08-Dec-23,2498.65,416.44,170092,PDC,130000              Cleaning & Janitorial,A,2023,9
783,"Children, Schools and Family",JULIUS RUTHERFOORD AND CO LTD,INVS152515,22-Dec-23,861.97,143.66,170092,Avenue CC Building Management,130000              Cleaning & Janitorial,A,2023,9
784,"Children, Schools and Family",JULIUS RUTHERFOORD AND CO LTD,INVS152236,22-Dec-23,1229.42,204.9,170092,Bond Road Building,130000              Cleaning & Janitorial,A,2023,9
785,"Children, Schools and Family",JULIUS RUTHERFOORD AND CO LTD,INVS152258,22-Dec-23,861.97,143.66,170092,Church Road Building,130000              Cleaning & Janitorial,A,2023,9
786,"Children, Schools and Family",JULIUS RUTHERFOORD AND CO LTD,INVS152372,22-Dec-23,862.03,143.67,170092,Ivy Garden CC Building,130000              Cleaning & Janitorial,A,2023,9
787,"Children, Schools and Family",JULIUS RUTHERFOORD AND CO LTD,INVS152202,22-Dec-23,861.97,143.66,170092,Lower Morden CC Building Mgt,130000              Cleaning & Janitorial,A,2023,9
788,"Children, Schools and Family",JULIUS RUTHERFOORD AND CO LTD,INVS152422,22-Dec-23,1298.96,216.49,170092,Newminster CC Building Mgt,130000              Cleaning & Janitorial,A,2023,9
789,"Children, Schools and Family",JULIUS RUTHERFOORD AND CO LTD,INVS152469,22-Dec-23,2583.12,430.52,170092, PFI Unitary Charges,130000              Cleaning & Janitorial,A,2023,9
790,"Children, Schools and Family",JULIUS RUTHERFOORD AND CO LTD,INVS152463,22-Dec-23,1747.8,291.3,170092, PFI Unitary Charges,130000              Cleaning & Janitorial,A,2023,9
791,"Children, Schools and Family",JULIUS RUTHERFOORD AND CO LTD,INVS152467,22-Dec-23,3531.6,588.6,170092, PFI Unitary Charges,130000              Cleaning & Janitorial,A,2023,9
792,"Children, Schools and Family",JULIUS RUTHERFOORD AND CO LTD,INVS152462,22-Dec-23,26940.04,4490.02,170092, PFI Unitary Charges,130000              Cleaning & Janitorial,A,2023,9
793,"Children, Schools and Family",JULIUS RUTHERFOORD AND CO LTD,INVS152468,22-Dec-23,29555.45,4925.92,170092, PFI Unitary Charges,130000              Cleaning & Janitorial,A,2023,9
794,"Children, Schools and Family",JULIUS RUTHERFOORD AND CO LTD,INVS152465,22-Dec-23,25304.67,4217.45,170092, PFI Unitary Charges,130000              Cleaning & Janitorial,A,2023,9
795,Community and Housing,REDACTED PERSONAL DATA,1078038,08-Dec-23,547.4,0,170275,Phys/Sens Placements - East,DIRECT PAYMENTS,R,2023,9
796,Community and Housing,INDEPENDENCE HOMES LTD,CED00178,08-Dec-23,6144.04,0,170527,Learning Disabilities Placemnt,321017              Nursing & Residential Care Homes,A,2023,9
797,Community and Housing,INDEPENDENCE HOMES LTD,1084520,15-Dec-23,8610.44,0,170527,Learning Disabilities Placemnt,321017              Nursing & Residential Care Homes,A,2023,9
798,"Children, Schools and Family",GREATER LONDON FOSTERING LTD,INV-1755,20-Dec-23,3664.2,0,170596,Placements Under 18,321100              Social Community Care Supplies & Services - Children,A,2023,9
799,"Children, Schools and Family",GREATER LONDON FOSTERING LTD,INV-1850,22-Dec-23,1954.24,0,170596,Placements Under 18,321100              Social Community Care Supplies & Services - Children,A,2023,9
800,"Children, Schools and Family",GREATER LONDON FOSTERING LTD,INV-1852,22-Dec-23,1954.24,0,170596,Placements Under 18,321100              Social Community Care Supplies & Services - Children,A,2023,9
801,"Children, Schools and Family",GREATER LONDON FOSTERING LTD,INV-1851,22-Dec-23,1954.24,0,170596,Placements Under 18,321100              Social Community Care Supplies & Services - Children,A,2023,9
802,"Children, Schools and Family",GREATER LONDON FOSTERING LTD,INV-1756,20-Dec-23,3664.2,0,170596,Placements Under 18,321100              Social Community Care Supplies & Services - Children,A,2023,9
803,"Children, Schools and Family",GREATER LONDON FOSTERING LTD,INV-1787,20-Dec-23,3578.4,0,170596,Placements Under 18,321100              Social Community Care Supplies & Services - Children,A,2023,9
804,"Children, Schools and Family",GREATER LONDON FOSTERING LTD,INV-1786,20-Dec-23,3403.5,0,170596,Placements Under 18,321100              Social Community Care Supplies & Services - Children,A,2023,9
805,"Children, Schools and Family",CENMAC,CP5I2334,11-Dec-23,2968,0,170767,Non-Delegated Statements,321100              Social Community Care Supplies & Services - Children,A,2023,9
806,Community and Housing,REDACTED PERSONAL DATA,1078287,08-Dec-23,2146.92,0,170878,Learning Disabilities Placemnt,DIRECT PAYMENTS,R,2023,9
807,Community and Housing,REDACTED PERSONAL DATA,1078372,08-Dec-23,1603.12,0,171056,Phys/Sens Placements - East,DIRECT PAYMENTS,R,2023,9
808,"Children, Schools and Family",Parallel Learning Trust,WVSI 309,20-Dec-23,18177.08,0,171235,Non-Delegated Statements,170000              Education,A,2023,9
809,Community and Housing,ST GEORGES RES. CARE HOME,1084571,15-Dec-23,5285.48,0,171491,Learning Disabilities Placemnt,321017              Nursing & Residential Care Homes,A,2023,9
810,Community and Housing,ST GEORGES RES. CARE HOME,1084597,15-Dec-23,4366.24,0,171491,Learning Disabilities Placemnt,321017              Nursing & Residential Care Homes,A,2023,9
811,"Children, Schools and Family",St Christopher's Fellowship,21052,08-Dec-23,3021.3,0,171651,Placements Under 18,321100              Social Community Care Supplies & Services - Children,A,2023,9
812,Community and Housing,REDACTED PERSONAL DATA,1078237,08-Dec-23,698.2,0,172070,Learning Disabilities Placemnt,DIRECT PAYMENTS,R,2023,9
813,Community and Housing,NORBURY PROPERTY SERV LDN LTD,SI-9637,28-Dec-23,10755,0,172104,Bed & Breakfast - accomm,321000              Social Community Care Supplies & Services - Adult,A,2023,9
814,Environment and Regeneration,COSTAR UK LTD,120271394,18-Dec-23,5966.36,994.4,172108,Property Mgt & Review,270000              Information Communication Technology,A,2023,9
815,Environment and Regeneration,COSTAR UK LTD,120448054,19-Dec-23,1891.2,315.2,172108,Spatial Policy,270000              Information Communication Technology,A,2023,9
816,Community and Housing,EALING COUNCIL,1084206,15-Dec-23,2985.92,0,172129,Mental Health Placements,OLA,A,2023,9
817,Community and Housing,CARRICKS BROOK,1079214,08-Dec-23,18748.8,0,172297,Learning Disabilities Placemnt,321017              Nursing & Residential Care Homes,A,2023,9
818,Community and Housing,CARRICKS BROOK,1084226,15-Dec-23,9036,0,172297,Learning Disabilities Placemnt,321017              Nursing & Residential Care Homes,A,2023,9
819,Community and Housing,BROADHAM CARE LTD,1084284,15-Dec-23,8014.84,0,172298,Learning Disabilities Placemnt,321017              Nursing & Residential Care Homes,A,2023,9
820,Community and Housing,BROADHAM CARE LTD,1084555,15-Dec-23,8287.36,0,172298,Learning Disabilities Placemnt,321017              Nursing & Residential Care Homes,A,2023,9
821,"Children, Schools and Family",PLAYSAFETY LIMITED,76384,04-Jan-24,1322,188,172454, Children's Centres Support,330000              Sports & Playground Equipment & Maintenance,A,2023,9
822,Community and Housing,REDACTED PERSONAL DATA,1078045,08-Dec-23,1132.2,0,172912,Learning Disabilities Placemnt,DIRECT PAYMENTS,R,2023,9
823,Community and Housing,REDACTED PERSONAL DATA,1078173,08-Dec-23,968.12,0,172914,Learning Disabilities Placemnt,DIRECT PAYMENTS,R,2023,9
824,"Children, Schools and Family",REDACTED PERSONAL DATA,1080505,11-Dec-23,529.46,0,172922,Fostering Recruit/Assessment,321100              Social Community Care Supplies & Services - Children,R,2023,9
825,"Children, Schools and Family",REDACTED PERSONAL DATA,1090504,29-Dec-23,529.46,0,172922,Fostering Recruit/Assessment,321100              Social Community Care Supplies & Services - Children,R,2023,9
826,Community and Housing,REDACTED PERSONAL DATA,1078258,08-Dec-23,599.04,0,172936,Phys/Sens Placements - East,DIRECT PAYMENTS,R,2023,9
827,Corporate Services,ALTODIGITAL NETWORKS LTD,933736ALTO,18-Dec-23,45415.45,7569.25,173240,Corp Print Strategy,190000              Facilities & Management Services,A,2023,9
828,Community and Housing,HAVERING COURT NURSING HOME,1076294,07-Dec-23,3149.64,0,173297,Older People Placements - East,321017              Nursing & Residential Care Homes,A,2023,9
829,Community and Housing,HAVERING COURT NURSING HOME,1084188,15-Dec-23,5304.08,0,173297,Older People Placements - East,321017              Nursing & Residential Care Homes,A,2023,9
830,Community and Housing,REDACTED PERSONAL DATA,1078256,08-Dec-23,977.52,0,173308,Phys/Sens Placements - East,DIRECT PAYMENTS,R,2023,9
831,"Children, Schools and Family",REDACTED PERSONAL DATA,1080432,11-Dec-23,718.86,0,173600,Fostering Recruit/Assessment,321100              Social Community Care Supplies & Services - Children,R,2023,9
832,"Children, Schools and Family",REDACTED PERSONAL DATA,1085507,15-Dec-23,900.6,0,173600,Placements Under 18,321100              Social Community Care Supplies & Services - Children,R,2023,9
833,"Children, Schools and Family",REDACTED PERSONAL DATA,1090432,29-Dec-23,718.86,0,173600,Fostering Recruit/Assessment,321100              Social Community Care Supplies & Services - Children,R,2023,9
834,"Children, Schools and Family",REDACTED PERSONAL DATA,1074374,04-Dec-23,6420.44,0,173793,Child Disabilities - Placement,CSF-DIRECT PAYMENTS,R,2023,9
835,Community and Housing,REDACTED PERSONAL DATA,1078337,08-Dec-23,576.04,0,173807,Learning Disabilities Placemnt,DIRECT PAYMENTS,R,2023,9
836,Environment and Regeneration,GRADKO INTERNATIONAL,226427,28-Dec-23,15652.8,2608.8,173815,EnvHealth Pollution - RSP,180000              Environmental Services,A,2023,9
837,Community and Housing,HARBOUR CARE (UK) LTD,1084497,15-Dec-23,6996.8,0,173947,Learning Disabilities Placemnt,321017              Nursing & Residential Care Homes,A,2023,9
838,Community and Housing,ADASS - DIRECTORS OF ADULT S.S,8372,28-Dec-23,2609,0,174159,Senior Management - ASC,260000              Human Resources,A,2023,9
839,"Children, Schools and Family",REDACTED PERSONAL DATA,1074396,04-Dec-23,2200,0,174212, Statementing-Transport,CSF-DIRECT PAYMENTS,R,2023,9
840,Community and Housing,ASHINGTON HOUSE,1084247,15-Dec-23,4781.24,0,174259,Learning Disabilities Placemnt,321017              Nursing & Residential Care Homes,A,2023,9
841,Community and Housing,REDACTED PERSONAL DATA,1079089,08-Dec-23,957.96,0,174449,Phys/Sens Placements - East,DIRECT PAYMENTS,R,2023,9
842,"Children, Schools and Family",REDACTED PERSONAL DATA,1085439,15-Dec-23,926.58,0,174483,Placements Under 18,321100              Social Community Care Supplies & Services - Children,R,2023,9
843,Community and Housing,PRECIOUS HOMES LTD,VER002613,15-Dec-23,10087.11,0,174641,Learning Disabilities Placemnt,321017              Nursing & Residential Care Homes,A,2023,9
844,Community and Housing,SUPREME HOMES,30604,12-Dec-23,3280,0,174758,Mental Health Placements,321017              Nursing & Residential Care Homes,A,2023,9
845,Community and Housing,ALPENBEST LIMITED,4120005462,19-Dec-23,592.63,0,174789,Older People Placements - East,321000              Social Community Care Supplies & Services - Adult,A,2023,9
846,Community and Housing,SUTTON COURT CARE CENTRE,1084314,15-Dec-23,3723.24,0,174833,Older People Placements - East,321017              Nursing & Residential Care Homes,A,2023,9
847,Community and Housing,SUTTON COURT CARE CENTRE,1084395,15-Dec-23,3163.36,0,174833,Older People Placements - East,321017              Nursing & Residential Care Homes,A,2023,9
848,Community and Housing,SUTTON COURT CARE CENTRE,1084423,15-Dec-23,4049.6,0,174833,Phys/Sens Placements - East,321017              Nursing & Residential Care Homes,A,2023,9
849,Community and Housing,SUTTON COURT CARE CENTRE,1084432,15-Dec-23,3681.16,0,174833,Older People Placements - East,321017              Nursing & Residential Care Homes,A,2023,9
850,Community and Housing,SUTTON COURT CARE CENTRE,1084574,15-Dec-23,4139.36,0,174833,Phys/Sens Placements - East,321017              Nursing & Residential Care Homes,A,2023,9
851,Community and Housing,REDACTED PERSONAL DATA,1078016,08-Dec-23,782,0,174975,Learning Disabilities Placemnt,DIRECT PAYMENTS,R,2023,9
852,Corporate Services,COSMIC EUROPE LIMTED,UK7459,12-Dec-23,732,122,175169,Translation Service,TRANSLATIONS,A,2023,9
853,Corporate Services,COSMIC EUROPE LIMTED,UK7465,12-Dec-23,558,93,175169,Translation Service,TRANSLATIONS,A,2023,9
854,Community and Housing,KISIMUL SCHOOL,1084213,15-Dec-23,14008.68,0,175545,Learning Disabilities Placemnt,321017              Nursing & Residential Care Homes,A,2023,9
855,Community and Housing,KISIMUL SCHOOL,1084462,15-Dec-23,17689.84,0,175545,Learning Disabilities Placemnt,321017              Nursing & Residential Care Homes,A,2023,9
856,Community and Housing,REDACTED PERSONAL DATA,1078355,08-Dec-23,2189.6,0,175782,Phys/Sens Placements - East,DIRECT PAYMENTS,R,2023,9
857,Community and Housing,EDGE TRAINING AND CONS.LTD,9692,28-Dec-23,1050,175,175812,Adult Safeguarding,260000              Human Resources,A,2023,9
858,Community and Housing,REDACTED PERSONAL DATA,1078192,08-Dec-23,1600.6,0,175960,Learning Disabilities Placemnt,DIRECT PAYMENTS,R,2023,9
859,Unassigned,A.J.OAKES AND PARTNERS,2023/150,04-Jan-24,18000,3000,176052,Corporate Services,"390000              Works - Construction, Repair & Maintenance",A,2023,9
860,Community and Housing,REDACTED PERSONAL DATA,1078205,08-Dec-23,552.44,0,176619,Phys/Sens Placements - East,DIRECT PAYMENTS,R,2023,9
861,Community and Housing,REDACTED PERSONAL DATA,1078176,08-Dec-23,6410.36,0,176783,Phys/Sens Placements - East,DIRECT PAYMENTS,R,2023,9
862,"Children, Schools and Family",THE PRE-SCHOOL GROUP LTD,P2 23 LATESTARTS,15-Dec-23,703.5,0,176785,EARLY YEARS NURSERY GRANTS,200000              Financial Services,A,2023,9
863,Community and Housing,REDACTED PERSONAL DATA,1078294,08-Dec-23,1800.4,0,176868,Phys/Sens Placements - East,DIRECT PAYMENTS,R,2023,9
864,Community and Housing,SPRING LAKE CARE HOME LTD,1084362,15-Dec-23,11418,0,177067,Learning Disabilities Placemnt,321017              Nursing & Residential Care Homes,A,2023,9
865,Community and Housing,SPRING LAKE CARE HOME LTD,1084569,15-Dec-23,6468,0,177067,Learning Disabilities Placemnt,321017              Nursing & Residential Care Homes,A,2023,9
866,"Children, Schools and Family",REDACTED PERSONAL DATA,1080400,11-Dec-23,931,0,177211,Fostering Recruit/Assessment,321100              Social Community Care Supplies & Services - Children,R,2023,9
867,"Children, Schools and Family",REDACTED PERSONAL DATA,1090400,29-Dec-23,931,0,177211,Fostering Recruit/Assessment,321100              Social Community Care Supplies & Services - Children,R,2023,9
868,"Children, Schools and Family",HA TUTORS LTD,INV-14210,04-Dec-23,5545.5,924.25,177219,Non-Delegated Statements,170000              Education,A,2023,9
869,"Children, Schools and Family",HA TUTORS LTD,INV-14212,04-Dec-23,2033.4,338.9,177219,Non-Delegated Statements,170000              Education,A,2023,9
870,"Children, Schools and Family",HA TUTORS LTD,INV-14211,04-Dec-23,8252.4,1375.4,177219,Non-Delegated Statements,170000              Education,A,2023,9
871,"Children, Schools and Family",HA TUTORS LTD,INV-14213,04-Dec-23,9013.2,1502.2,177219,Non-Delegated Statements,170000              Education,A,2023,9
872,"Children, Schools and Family",HA TUTORS LTD,INV-14214,04-Dec-23,3996,666,177219,Non-Delegated Statements,170000              Education,A,2023,9
873,"Children, Schools and Family",HA TUTORS LTD,INV-14215,04-Dec-23,3894,649,177219,Non-Delegated Statements,170000              Education,A,2023,9
874,"Children, Schools and Family",HA TUTORS LTD,INV-14216,04-Dec-23,3984.3,664.05,177219,Non-Delegated Statements,170000              Education,A,2023,9
875,"Children, Schools and Family",HA TUTORS LTD,INV-14217,04-Dec-23,9697.2,1616.2,177219,Non-Delegated Statements,170000              Education,A,2023,9
876,"Children, Schools and Family",HA TUTORS LTD,INV-14328,01-Jan-24,1435.2,239.2,177219,Non-Delegated Statements,170000              Education,A,2023,9
877,"Children, Schools and Family",HA TUTORS LTD,INV-14329,01-Jan-24,2886,481,177219,Non-Delegated Statements,170000              Education,A,2023,9
878,"Children, Schools and Family",HA TUTORS LTD,INV-14327,01-Jan-24,1383.6,230.6,177219,Non-Delegated Statements,170000              Education,A,2023,9
879,"Children, Schools and Family",HA TUTORS LTD,INV-14332,01-Jan-24,3310.2,551.7,177219,Non-Delegated Statements,170000              Education,A,2023,9
880,"Children, Schools and Family",HA TUTORS LTD,INV-14330,01-Jan-24,2902.8,483.8,177219,Non-Delegated Statements,170000              Education,A,2023,9
881,"Children, Schools and Family",HA TUTORS LTD,INV-14326,01-Jan-24,5781.6,963.6,177219,Non-Delegated Statements,170000              Education,A,2023,9
882,"Children, Schools and Family",HA TUTORS LTD,INV-14331,01-Jan-24,6507,1084.5,177219,Non-Delegated Statements,170000              Education,A,2023,9
883,"Children, Schools and Family",HA TUTORS LTD,INV-14325,01-Jan-24,2963.4,493.9,177219,Non-Delegated Statements,170000              Education,A,2023,9
884,"Children, Schools and Family",HA TUTORS LTD,INV-14333,01-Jan-24,2605.8,434.3,177219,Non-Delegated Statements,170000              Education,A,2023,9
885,"Children, Schools and Family",HA TUTORS LTD,INV-14340,02-Jan-24,1454.4,242.4,177219,Non-Delegated Statements,170000              Education,A,2023,9
886,Unassigned,UK POWER NETWORKS (OPERATIONS),92190869,28-Dec-23,4293.6,715.6,177333,Environment and Regeneration,180000              Environmental Services,A,2023,9
887,Environment and Regeneration,UK POWER NETWORKS (OPERATIONS),92188327,19-Dec-23,819.6,136.6,177333,Street Lighting,180000              Environmental Services,A,2023,9
888,"Children, Schools and Family",EXPERT IN MIND,42978,12-Dec-23,1900.8,316.8,177342,Family Supp SafeGuard - Place,280000              Legal Services                                                                            Confirmed,A,2023,9
889,Community and Housing,HYTYME B AND B,27285,04-Dec-23,20854.8,3475.8,177425,Bed & Breakfast - accomm,321000              Social Community Care Supplies & Services - Adult,A,2023,9
890,Community and Housing,HYTYME B AND B,27101,08-Dec-23,3468.96,578.16,177425,Housing Strategy,321000              Social Community Care Supplies & Services - Adult,A,2023,9
891,"Children, Schools and Family",HYTYME B AND B,27305,08-Dec-23,1944,324,177425,Family Supp SafeGuard - Place,321000              Social Community Care Supplies & Services - Adult,A,2023,9
892,"Children, Schools and Family",HYTYME B AND B,27296,08-Dec-23,1386,231,177425,Family Assessmt & Intervention,321000              Social Community Care Supplies & Services - Adult,A,2023,9
893,Community and Housing,HYTYME B AND B,27328,03-Jan-24,2196,366,177425,Bed & Breakfast - accomm,321000              Social Community Care Supplies & Services - Adult,A,2023,9
894,Community and Housing,REDACTED PERSONAL DATA,1078088,08-Dec-23,856.72,0,177453,Phys/Sens Placements - East,DIRECT PAYMENTS,R,2023,9
895,Community and Housing,REDACTED PERSONAL DATA,1078078,08-Dec-23,724.72,0,177476,Learning Disabilities Placemnt,DIRECT PAYMENTS,R,2023,9
896,Community and Housing,REDACTED PERSONAL DATA,1078019,08-Dec-23,1444.8,0,177502,Phys/Sens Placements - East,DIRECT PAYMENTS,R,2023,9
897,Community and Housing,VOICEABILITY,SI-0000012332,28-Dec-23,3683.75,0,177608,Adult Safeguarding,321000              Social Community Care Supplies & Services - Adult,A,2023,9
898,Community and Housing,VOICEABILITY,SI0000012331,28-Dec-23,2894.38,0,177608,Adult Safeguarding,321000              Social Community Care Supplies & Services - Adult,A,2023,9
899,Community and Housing,VOICEABILITY,SI-0000012330,28-Dec-23,13051,0,177608,Adult Safeguarding,321000              Social Community Care Supplies & Services - Adult,A,2023,9
900,Community and Housing,VOICEABILITY,SI-0000012333,28-Dec-23,3520.8,0,177608,Adult Safeguarding,321000              Social Community Care Supplies & Services - Adult,A,2023,9
901,Community and Housing,VOICEABILITY,SI-0000012329,28-Dec-23,3262.75,0,177608,Adult Safeguarding,321000              Social Community Care Supplies & Services - Adult,A,2023,9
902,Corporate Services,HPI LIMITED,6160-001981253,18-Dec-23,684.17,114.03,177649,Local Taxation Bailiffs,200000              Financial Services,A,2023,9
903,Community and Housing,REDACTED PERSONAL DATA,1078094,08-Dec-23,703.8,0,177739,Phys/Sens Placements - East,DIRECT PAYMENTS,R,2023,9
904,Community and Housing,REDACTED PERSONAL DATA,1078104,08-Dec-23,821.12,0,177785,Phys/Sens Placements - East,DIRECT PAYMENTS,R,2023,9
905,"Children, Schools and Family",MM-ICT LIMITED,4899,28-Dec-23,21553.94,3592.32,177830,PupilPremium- Virtual School,270000              Information Communication Technology,A,2023,9
906,"Children, Schools and Family",MINI TREASURES DAY NURSERY,P2 23 LATESTARTS,15-Dec-23,1274.4,0,177930,EARLY YEARS NURSERY GRANTS,200000              Financial Services,A,2023,9
907,Community and Housing,WORKSHOP 305,ASCO171,07-Dec-23,855.96,0,177941,Learning Disabilities Placemnt,321000              Social Community Care Supplies & Services - Adult,A,2023,9
908,Community and Housing,WORKSHOP 305,RAG172,08-Dec-23,855.86,0,177941,Learning Disabilities Placemnt,321000              Social Community Care Supplies & Services - Adult,A,2023,9
909,Community and Housing,WORKSHOP 305,SLAP172,08-Dec-23,570.6,0,177941,Learning Disabilities Placemnt,321000              Social Community Care Supplies & Services - Adult,A,2023,9
910,Community and Housing,WORKSHOP 305,ASCO172,08-Dec-23,855.96,0,177941,Learning Disabilities Placemnt,321000              Social Community Care Supplies & Services - Adult,A,2023,9
911,Community and Housing,WORKSHOP 305,IALA172,08-Dec-23,570.64,0,177941,Learning Disabilities Placemnt,321000              Social Community Care Supplies & Services - Adult,A,2023,9
912,Community and Housing,WORKSHOP 305,WJON172,08-Dec-23,855.96,0,177941,Learning Disabilities Placemnt,321000              Social Community Care Supplies & Services - Adult,A,2023,9
913,Community and Housing,WORKSHOP 305,AGAR172,19-Dec-23,570.65,0,177941,Learning Disabilities Placemnt,321000              Social Community Care Supplies & Services - Adult,A,2023,9
914,Community and Housing,WORKSHOP 305,AGAR171,19-Dec-23,570.65,0,177941,Learning Disabilities Placemnt,321000              Social Community Care Supplies & Services - Adult,A,2023,9
915,Community and Housing,WORKSHOP 305,AGAR164,28-Dec-23,562.58,0,177941,Learning Disabilities Placemnt,321000              Social Community Care Supplies & Services - Adult,A,2023,9
916,"Children, Schools and Family",CARIBBEAN CATERING,477,29-Dec-23,803.5,0,177996,Merton Youth Centres.,110000              Catering,A,2023,9
917,Community and Housing,REDACTED PERSONAL DATA,1078080,08-Dec-23,1212.28,0,178412,Learning Disabilities Placemnt,DIRECT PAYMENTS,R,2023,9
918,Community and Housing,REDACTED PERSONAL DATA,1078263,08-Dec-23,5439,0,178412,Learning Disabilities Placemnt,DIRECT PAYMENTS,R,2023,9
919,"Children, Schools and Family",Little Hearts Pre School,P2 23 EYSG 2,20-Dec-23,610.2,0,178454, Information & Systems Team,200000              Financial Services,A,2023,9
920,Community and Housing,BRAMBLEDOWN CARE HOME,1084375,15-Dec-23,8081.96,0,178465,Phys/Sens Placements - East,321017              Nursing & Residential Care Homes,A,2023,9
921,"Children, Schools and Family",REDACTED PERSONAL DATA,1085496,15-Dec-23,894.12,0,178503,Placements Over 18,200000              Financial Services,R,2023,9
922,Community and Housing,KEW HOUSE,1084384,15-Dec-23,3289.24,0,178621,Older People Placements - East,321017              Nursing & Residential Care Homes,A,2023,9
923,Community and Housing,KEW HOUSE,1084459,15-Dec-23,5800,0,178621,Older People Placements - East,321017              Nursing & Residential Care Homes,A,2023,9
924,Community and Housing,KEW HOUSE,1084535,15-Dec-23,8321.16,0,178621,Older People Placements - East,321017              Nursing & Residential Care Homes,A,2023,9
925,Community and Housing,REDACTED PERSONAL DATA,1078273,08-Dec-23,4893.48,0,178802,Learning Disabilities Placemnt,DIRECT PAYMENTS,R,2023,9
926,Community and Housing,REDACTED PERSONAL DATA,1078210,08-Dec-23,2306.92,0,178874,Learning Disabilities Placemnt,DIRECT PAYMENTS,R,2023,9
927,"Children, Schools and Family",MODERN MONTESSORI INTL. LTD,P2 23 LATESTARTS,15-Dec-23,637.2,0,178883,EARLY YEARS NURSERY GRANTS,200000              Financial Services,A,2023,9
928,"Children, Schools and Family",REDACTED PERSONAL DATA,1074535,04-Dec-23,1103.61,0,178940,Fostering Recruit/Assessment,321100              Social Community Care Supplies & Services - Children,R,2023,9
929,"Children, Schools and Family",REDACTED PERSONAL DATA,1080427,11-Dec-23,514.32,0,178940,Fostering Recruit/Assessment,321100              Social Community Care Supplies & Services - Children,R,2023,9
930,"Children, Schools and Family",REDACTED PERSONAL DATA,1090427,29-Dec-23,514.32,0,178940,Fostering Recruit/Assessment,321100              Social Community Care Supplies & Services - Children,R,2023,9
931,"Children, Schools and Family",REDACTED PERSONAL DATA,1090462,29-Dec-23,530.52,0,178940,Fostering Recruit/Assessment,321100              Social Community Care Supplies & Services - Children,R,2023,9
932,Unassigned,PENNA PLC,681093,29-Dec-23,9649.2,1608.2,179007,Director Innovation and Change,190000              Facilities & Management Services,A,2023,9
933,Unassigned,PENNA PLC,681094,29-Dec-23,9649.2,1608.2,179007,Director Innovation and Change,190000              Facilities & Management Services,A,2023,9
934,Community and Housing,REDACTED PERSONAL DATA,1078387,08-Dec-23,1532.12,0,179049,Learning Disabilities Placemnt,DIRECT PAYMENTS,R,2023,9
935,"Children, Schools and Family",WILLOWS PRE-SCHOOL,P2 23 SENDIF2,15-Dec-23,1713,0,179134,EARLY YEARS NURSERY GRANTS,170000              Education,A,2023,9
936,Community and Housing,REDACTED PERSONAL DATA,1077993,08-Dec-23,751,0,179142,Learning Disabilities Placemnt,DIRECT PAYMENTS,R,2023,9
937,"Children, Schools and Family",LITTLE HANDS MONTESSORI,P2 23 LATESTARTS,15-Dec-23,1281.9,0,179165,EARLY YEARS NURSERY GRANTS,200000              Financial Services,A,2023,9
938,Community and Housing,REDACTED PERSONAL DATA,1078234,08-Dec-23,2126.36,0,179332,Phys/Sens Placements - East,DIRECT PAYMENTS,R,2023,9
939,Community and Housing,REDACTED PERSONAL DATA,1078290,08-Dec-23,4941.4,0,179383,Learning Disabilities Placemnt,DIRECT PAYMENTS,R,2023,9
940,"Children, Schools and Family",REDACTED PERSONAL DATA,9YE,08-Dec-23,1732.38,0,179598,Placements Over 18,321000              Social Community Care Supplies & Services - Adult,R,2023,9
941,Community and Housing,ELYSIUM CARE PARTNERSHIPS LTD,1084412,15-Dec-23,9818.32,0,179734,Learning Disabilities Placemnt,321017              Nursing & Residential Care Homes,A,2023,9
942,Community and Housing,ELYSIUM CARE PARTNERSHIPS LTD,1084431,15-Dec-23,3462.2,0,179734,Learning Disabilities Placemnt,321017              Nursing & Residential Care Homes,A,2023,9
943,Community and Housing,ELYSIUM CARE PARTNERSHIPS LTD,1084542,15-Dec-23,9821,0,179734,Learning Disabilities Placemnt,321017              Nursing & Residential Care Homes,A,2023,9
944,Community and Housing,WESTHOPE LTD,1084380,15-Dec-23,6350.78,1058.46,179748,Learning Disabilities Placemnt,321017              Nursing & Residential Care Homes,A,2023,9
945,Community and Housing,SUNNINGDALE HOUSE CARE HOME,1084532,15-Dec-23,2575,0,179794,Learning Disabilities Placemnt,321017              Nursing & Residential Care Homes,A,2023,9
946,Community and Housing,SUNLIGHT HOUSE,1084315,15-Dec-23,7667.6,0,179813,Learning Disabilities Placemnt,321017              Nursing & Residential Care Homes,A,2023,9
947,Community and Housing,SUNLIGHT HOUSE,1084436,15-Dec-23,5140,0,179813,Learning Disabilities Placemnt,321017              Nursing & Residential Care Homes,A,2023,9
948,Community and Housing,BHAKTI SHYAMA CARE CENTRE,1084352,15-Dec-23,3557.92,0,179993,Older People Placements - East,321017              Nursing & Residential Care Homes,A,2023,9
949,Community and Housing,BHAKTI SHYAMA CARE CENTRE,1084608,15-Dec-23,2985.6,0,179993,Older People Placements - East,321017              Nursing & Residential Care Homes,A,2023,9
950,Community and Housing,BHAKTI SHYAMA CARE CENTRE,1084613,15-Dec-23,3800,0,179993,Older People Placements - East,321017              Nursing & Residential Care Homes,A,2023,9
951,"Children, Schools and Family",REAMCARE LTD,LHRPAM122301,14-Dec-23,19457.1,0,180045,Placements Under 18,321100              Social Community Care Supplies & Services - Children Residential,A,2023,9
952,Community and Housing,REDACTED PERSONAL DATA,1078366,08-Dec-23,1290.88,0,180174,Older People Placements - East,DIRECT PAYMENTS,R,2023,9
953,Community and Housing,SUNRISE DAY CARE,4659,01-Dec-23,738.08,0,180196,Learning Disabilities Placemnt,321000              Social Community Care Supplies & Services - Adult,A,2023,9
954,Community and Housing,SUNRISE DAY CARE,4666,01-Dec-23,922.6,0,180196,Older People Placements - East,321000              Social Community Care Supplies & Services - Adult,A,2023,9
955,Community and Housing,SUNRISE DAY CARE,4667,01-Dec-23,553.56,0,180196,Older People Placements - East,321000              Social Community Care Supplies & Services - Adult,A,2023,9
956,Community and Housing,SUNRISE DAY CARE,4668,01-Dec-23,553.56,0,180196,Older People Placements - East,321000              Social Community Care Supplies & Services - Adult,A,2023,9
957,Community and Housing,SUNRISE DAY CARE,4658,05-Dec-23,553.56,0,180196,Older People Placements - East,321000              Social Community Care Supplies & Services - Adult,A,2023,9
958,Community and Housing,SUNRISE DAY CARE,DP5053,05-Dec-23,1624.72,0,180196,Older People Placements - East,321000              Social Community Care Supplies & Services - Adult,A,2023,9
959,Community and Housing,SUNRISE DAY CARE,DP5054,05-Dec-23,1107.36,0,180196,Older People Placements - East,321000              Social Community Care Supplies & Services - Adult,A,2023,9
960,"Children, Schools and Family",REDACTED PERSONAL DATA,1085431,15-Dec-23,668.58,0,180238,Placements Over 18,321100              Social Community Care Supplies & Services - Children,R,2023,9
961,Community and Housing,REDACTED PERSONAL DATA,1078134,08-Dec-23,625.6,0,180242,Phys/Sens Placements - East,DIRECT PAYMENTS,R,2023,9
962,Community and Housing,REDACTED PERSONAL DATA,1078295,08-Dec-23,1446.72,0,180282,Phys/Sens Placements - East,DIRECT PAYMENTS,R,2023,9
963,Community and Housing,REDACTED PERSONAL DATA,1078022,08-Dec-23,3365.68,0,180285,Older People Placements - East,DIRECT PAYMENTS,R,2023,9
964,Community and Housing,SEVACARE,83491-514140,07-Dec-23,2468.82,0,180307,Older People Placements - East,321000              Social Community Care Supplies & Services - Adult,A,2023,9
965,Community and Housing,SEVACARE,83491-752403,07-Dec-23,1001.84,0,180307,Older People Placements - East,321000              Social Community Care Supplies & Services - Adult,A,2023,9
966,Community and Housing,SEVACARE,83491-791266,07-Dec-23,626.15,0,180307,Older People Placements - East,321000              Social Community Care Supplies & Services - Adult,A,2023,9
967,Community and Housing,SEVACARE,83491-869265,07-Dec-23,769.27,0,180307,Older People Placements - East,321000              Social Community Care Supplies & Services - Adult,A,2023,9
968,Community and Housing,SEVACARE,83491-994084,07-Dec-23,644.04,0,180307,Older People Placements - East,321000              Social Community Care Supplies & Services - Adult,A,2023,9
969,Community and Housing,SEVACARE,83491-982561,07-Dec-23,966.06,0,180307,Older People Placements - East,321000              Social Community Care Supplies & Services - Adult,A,2023,9
970,Community and Housing,SEVACARE,83491-79481,07-Dec-23,1896.34,0,180307,Older People Placements - East,321000              Social Community Care Supplies & Services - Adult,A,2023,9
971,Community and Housing,SEVACARE,83491-98888,07-Dec-23,1216.52,0,180307,Older People Placements - East,321000              Social Community Care Supplies & Services - Adult,A,2023,9
972,Community and Housing,SEVACARE,83491-533922,07-Dec-23,10018.4,0,180307,Older People Placements - East,321000              Social Community Care Supplies & Services - Adult,A,2023,9
973,Community and Housing,SEVACARE,83491-976659,07-Dec-23,952.64,0,180307,Older People Placements - East,321000              Social Community Care Supplies & Services - Adult,A,2023,9
974,Community and Housing,SEVACARE,83491-506355,07-Dec-23,930.28,0,180307,Phys/Sens Placements - East,321000              Social Community Care Supplies & Services - Adult,A,2023,9
975,Community and Housing,SEVACARE,83491-41998,07-Dec-23,590.37,0,180307,Phys/Sens Placements - East,321000              Social Community Care Supplies & Services - Adult,A,2023,9
976,Community and Housing,SEVACARE,83491-72049,07-Dec-23,1144.96,0,180307,Learning Disabilities Placemnt,321000              Social Community Care Supplies & Services - Adult,A,2023,9
977,Community and Housing,SEVACARE,83491-52108,07-Dec-23,644.04,0,180307,Learning Disabilities Placemnt,321000              Social Community Care Supplies & Services - Adult,A,2023,9
978,Community and Housing,SEVACARE,83491-872605,07-Dec-23,661.93,0,180307,Older People Placements - East,321000              Social Community Care Supplies & Services - Adult,A,2023,9
979,Community and Housing,SEVACARE,83491-867847,07-Dec-23,1127.07,0,180307,Older People Placements - East,321000              Social Community Care Supplies & Services - Adult,A,2023,9
980,Community and Housing,SEVACARE,83491-565513,07-Dec-23,3059.19,0,180307,Phys/Sens Placements - East,321000              Social Community Care Supplies & Services - Adult,A,2023,9
981,Community and Housing,SEVACARE,83491-78739,07-Dec-23,715.6,0,180307,Learning Disabilities Placemnt,321000              Social Community Care Supplies & Services - Adult,A,2023,9
982,Community and Housing,SEVACARE,83491-38267,07-Dec-23,836.36,0,180307,Older People Placements - East,321000              Social Community Care Supplies & Services - Adult,A,2023,9
983,Community and Housing,SEVACARE,83491-68278,07-Dec-23,3041.3,0,180307,Learning Disabilities Placemnt,321000              Social Community Care Supplies & Services - Adult,A,2023,9
984,Community and Housing,SEVACARE,83491-16984,07-Dec-23,500.92,0,180307,Older People Placements - East,321000              Social Community Care Supplies & Services - Adult,A,2023,9
985,Community and Housing,SEVACARE,83491-72268,07-Dec-23,1395.42,0,180307,Learning Disabilities Placemnt,321000              Social Community Care Supplies & Services - Adult,A,2023,9
986,Community and Housing,SEVACARE,83491-614353,07-Dec-23,518.81,0,180307,Older People Placements - East,321000              Social Community Care Supplies & Services - Adult,A,2023,9
987,Community and Housing,SEVACARE,83491-871695,07-Dec-23,1019.73,0,180307,Older People Placements - East,321000              Social Community Care Supplies & Services - Adult,A,2023,9
988,Community and Housing,SEVACARE,83491-503697,07-Dec-23,822.94,0,180307,Older People Placements - East,321000              Social Community Care Supplies & Services - Adult,A,2023,9
989,Community and Housing,SEVACARE,83491-932264,07-Dec-23,518.81,0,180307,Older People Placements - East,321000              Social Community Care Supplies & Services - Adult,A,2023,9
990,Community and Housing,SEVACARE,83491-74975A,07-Dec-23,1726.84,0,180307,Older People Placements - East,321000              Social Community Care Supplies & Services - Adult,A,2023,9
991,Corporate Services,CISILION LTD,INVUK0021378,21-Dec-23,70500,11750,180383,IT-Telecomms,270000              Information Communication Technology,A,2023,9
992,Environment and Regeneration,UK Power Networks (Faults / Operations),92189986,18-Dec-23,2263.2,377.2,180431,Street Lighting,190000              Facilities & Management Services,A,2023,9
993,Unassigned,UK Power Networks (Faults / Operations),92189983,20-Dec-23,1872,312,180431,Environment and Regeneration,190000              Facilities & Management Services,A,2023,9
994,"Children, Schools and Family",RESTORE PLC,1410754,04-Dec-23,886.27,147.71,180441,Fostering Recruit/Assessment,190000              Facilities & Management Services,A,2023,9
995,"Children, Schools and Family",RESTORE PLC,1420110,04-Dec-23,727.09,121.18,180441,Fostering Recruit/Assessment,190000              Facilities & Management Services,A,2023,9
996,"Children, Schools and Family",RESTORE PLC,1423873,18-Dec-23,1074.98,179.16,180441,Head of CSC & Youth Inclusion,190000              Facilities & Management Services,A,2023,9
997,Corporate Services,RESTORE PLC,1428700,18-Dec-23,669.97,111.66,180441,Legal Shared Service,190000              Facilities & Management Services,A,2023,9
998,"Children, Schools and Family",RESTORE PLC,1428192,18-Dec-23,589.46,98.24,180441,Fostering Recruit/Assessment,190000              Facilities & Management Services,A,2023,9
999,Community and Housing,REDACTED PERSONAL DATA,1078323,08-Dec-23,862.96,0,180447,Older People Placements - East,DIRECT PAYMENTS,R,2023,9
1000,Community and Housing,REDACTED PERSONAL DATA,1078159,08-Dec-23,616.32,0,180478,Phys/Sens Placements - East,DIRECT PAYMENTS,R,2023,9
1001,"Children, Schools and Family",REDACTED PERSONAL DATA,1079520,08-Dec-23,548.09,0,180579,UASC LAC Under 18,321100              Social Community Care Supplies & Services - Children,R,2023,9
1002,"Children, Schools and Family",REDACTED PERSONAL DATA,1079460,13-Dec-23,538.49,0,180579,UASC Leavers Staying Put 18+,321100              Social Community Care Supplies & Services - Children,R,2023,9
1003,"Children, Schools and Family",REDACTED PERSONAL DATA,1085479,15-Dec-23,1096.18,0,180579,UASC LAC Under 18,321100              Social Community Care Supplies & Services - Children,R,2023,9
1004,"Children, Schools and Family",REDACTED PERSONAL DATA,1085421,18-Dec-23,961.78,0,180579,UASC Leavers Staying Put 18+,321100              Social Community Care Supplies & Services - Children,R,2023,9
1005,"Children, Schools and Family",REDACTED PERSONAL DATA,1091100,28-Dec-23,548.09,0,180579,UASC LAC Under 18,321100              Social Community Care Supplies & Services - Children,R,2023,9
1006,Corporate Services,SOFTCAT LTD,INVUK1077178,11-Dec-23,6790.74,1131.79,180603,IT-Telecomms,270000              Information Communication Technology,A,2023,9
1007,Environment and Regeneration,HMCTS,TECBATCHESDEC202,20-Dec-23,25000,0,180649,Operational Running Costs,350000              Street & Traffic Management,A,2023,9
1008,Unassigned,BERKSHIRE PENSION FUND,INTERFUND4224,21-Dec-23,83675.63,0,180709,London Borough of Merton,PENSIONS,A,2023,9
1009,Unassigned,LOVE WIMBLEDON LTD BUS.IMP.DIS,5304,28-Dec-23,1891.46,315.24,180802,Corporate Services,200000              Financial Services,A,2023,9
1010,Community and Housing,REDACTED PERSONAL DATA,1078014,08-Dec-23,938.4,0,180804,Learning Disabilities Placemnt,DIRECT PAYMENTS,R,2023,9
1011,"Children, Schools and Family",FIVE RIVERS CHILD CARE,108551,22-Dec-23,6214.28,0,180823,Placements Under 18,360000              Passenger Transport                                                                       Confirmed,A,2023,9
1012,Community and Housing,REDACTED PERSONAL DATA,1078109,08-Dec-23,2258.16,0,180866,Phys/Sens Placements - East,DIRECT PAYMENTS,R,2023,9
1013,Community and Housing,REDACTED PERSONAL DATA,1078214,08-Dec-23,2187.44,0,180889,Older People Placements - East,DIRECT PAYMENTS,R,2023,9
1014,Community and Housing,SENAD ECCLESBOURNE LODGE,1084202,15-Dec-23,9810.88,0,180904,Learning Disabilities Placemnt,321017              Nursing & Residential Care Homes,A,2023,9
1015,Community and Housing,REDACTED PERSONAL DATA,1078322,08-Dec-23,1170.96,0,180999,Older People Placements - East,DIRECT PAYMENTS,R,2023,9
1016,Environment and Regeneration,PREMIER MINICAB SER. UK LTD,527,19-Dec-23,3600,600,181053,Passenger Transport,360000              Passenger Transport,A,2023,9
1017,Community and Housing,REDACTED PERSONAL DATA,1078062,08-Dec-23,2883.08,0,181129,Older People Placements - East,DIRECT PAYMENTS,R,2023,9
1018,Community and Housing,REDACTED PERSONAL DATA,1077996,08-Dec-23,1720.4,0,181418,Older People Placements - East,DIRECT PAYMENTS,R,2023,9
1019,"Children, Schools and Family",REDACTED PERSONAL DATA,13/2023DANIELLA,01-Dec-23,1154.92,0,181587,Placements Over 18,321000              Social Community Care Supplies & Services - Adult,R,2023,9
1020,"Children, Schools and Family",REDACTED PERSONAL DATA,14/2023DANIELLA,22-Dec-23,1154.92,0,181587,Placements Over 18,321000              Social Community Care Supplies & Services - Adult,R,2023,9
1021,"Children, Schools and Family",Moor House School and College,INV12154,28-Dec-23,26355.67,0,181592,SEN Residential (DSG),170000              Education,A,2023,9
1022,"Children, Schools and Family",Moor House School and College,INV12155,28-Dec-23,12090.67,0,181592,Non-Delegated Statements,170000              Education,A,2023,9
1023,"Children, Schools and Family",Moor House School and College,INV12156,28-Dec-23,13134.67,0,181592,Non-Delegated Statements,170000              Education,A,2023,9
1024,"Children, Schools and Family",Dicky Birds Nurseries Ltd - Pelham Road,P2 23 LATESTARTS,15-Dec-23,1513.35,0,181874,EARLY YEARS NURSERY GRANTS,200000              Financial Services,A,2023,9
1025,Corporate Services,PSW PAPER AND PRINT LTD,INV115597,01-Jan-24,956.94,159.5,181895,PrintUnit-HighVolPhtcopying,190000              Facilities & Management Services,A,2023,9
1026,Environment and Regeneration,METIS CONSULTANTS LIMITED,5148,22-Dec-23,37200,6200,181960,Flood Risk Management,150000              Consultancy,A,2023,9
1027,Unassigned,SHARPE PRITCHARD SOLICITORS,100005083,22-Dec-23,1672.8,0,182165,Corporate Accountancy,280000              Legal Services                                                                            Confirmed,A,2023,9
1028,Corporate Services,SHARPE PRITCHARD SOLICITORS,100005084,22-Dec-23,25011.6,4168.6,182165,SLLP - Disbursements,280000              Legal Services                                                                            Confirmed,A,2023,9
1029,Corporate Services,Land Data Community Interest Company,3636,28-Dec-23,835.2,139.2,182239,Local Land Charges,260000              Human Resources                                                                           Confirmed,A,2023,9
1030,Corporate Services,ERNST AND YOUNG LLP,GB01G000484733,02-Jan-24,18000,3000,182340,Corporate Accountancy,200000              Financial Services,A,2023,9
1031,Community and Housing,REDACTED PERSONAL DATA,1078001,08-Dec-23,5474,0,182348,Older People Placements - East,DIRECT PAYMENTS,R,2023,9
1032,Community and Housing,BIRKIN CLEANING SERVICES LTD,31735,01-Dec-23,3525.84,587.64,182414,Wimbledon Library,130000              Cleaning & Janitorial,A,2023,9
1033,Community and Housing,BIRKIN CLEANING SERVICES LTD,32028,01-Dec-23,3525.84,587.64,182414,Wimbledon Library,130000              Cleaning & Janitorial,A,2023,9
1034,Community and Housing,BIRKIN CLEANING SERVICES LTD,32738,01-Dec-23,3525.84,587.64,182414,Wimbledon Library,130000              Cleaning & Janitorial,A,2023,9
1035,Community and Housing,BIRKIN CLEANING SERVICES LTD,32330,28-Dec-23,1066.75,177.79,182414,Wimbledon Library,130000              Cleaning & Janitorial,A,2023,9
1036,Community and Housing,BIRKIN CLEANING SERVICES LTD,32333,28-Dec-23,1049.77,174.96,182414,Raynes Park Library,130000              Cleaning & Janitorial,A,2023,9
1037,Community and Housing,BIRKIN CLEANING SERVICES LTD,32338,28-Dec-23,770.33,128.39,182414,Eastway Day Centre,130000              Cleaning & Janitorial,A,2023,9
1038,"Children, Schools and Family",BIRKIN CLEANING SERVICES LTD,32335,28-Dec-23,754.63,125.77,182414,Merton Youth Centres.,130000              Cleaning & Janitorial,A,2023,9
1039,"Children, Schools and Family",BIRKIN CLEANING SERVICES LTD,32336,28-Dec-23,750.68,125.11,182414,Merton Youth Centres.,130000              Cleaning & Janitorial,A,2023,9
1040,Community and Housing,BIRKIN CLEANING SERVICES LTD,32334,28-Dec-23,617.09,102.85,182414,West Barnes Lib,130000              Cleaning & Janitorial,A,2023,9
1041,Community and Housing,BIRKIN CLEANING SERVICES LTD,32331,28-Dec-23,1750.62,291.77,182414,Mitcham Library,130000              Cleaning & Janitorial,A,2023,9
1042,Community and Housing,BIRKIN CLEANING SERVICES LTD,32332,28-Dec-23,2120.48,353.41,182414,Pollards Hill Library,130000              Cleaning & Janitorial,A,2023,9
1043,Community and Housing,BIRKIN CLEANING SERVICES LTD,32337,28-Dec-23,2143.6,357.27,182414,All Saints Day Centre,130000              Cleaning & Janitorial,A,2023,9
1044,Corporate Services,BIRKIN CLEANING SERVICES LTD,32328,28-Dec-23,8688.29,1448.05,182414,Corporate Contracts - FM,130000              Cleaning & Janitorial,A,2023,9
1045,"Children, Schools and Family",BIRKIN CLEANING SERVICES LTD,32341,28-Dec-23,1473.44,245.57,182414,Acacia IGC Building Management,130000              Cleaning & Janitorial,A,2023,9
1046,"Children, Schools and Family",BIRKIN CLEANING SERVICES LTD,33178,28-Dec-23,1473.44,245.57,182414,Acacia IGC Building Management,130000              Cleaning & Janitorial,A,2023,9
1047,Community and Housing,BIRKIN CLEANING SERVICES LTD,32345,28-Dec-23,1451.57,241.93,182414,Donald Hope Library,130000              Cleaning & Janitorial,A,2023,9
1048,Community and Housing,BIRKIN CLEANING SERVICES LTD,33182,28-Dec-23,1451.57,241.93,182414,Donald Hope Library,130000              Cleaning & Janitorial,A,2023,9
1049,Corporate Services,BIRKIN CLEANING SERVICES LTD,33162,28-Dec-23,1448.78,241.46,182414,Corporate Contracts - FM,130000              Cleaning & Janitorial,A,2023,9
1050,"Children, Schools and Family",BIRKIN CLEANING SERVICES LTD,32344,28-Dec-23,1438.18,239.7,182414,Brightwell,130000              Cleaning & Janitorial,A,2023,9
1051,"Children, Schools and Family",BIRKIN CLEANING SERVICES LTD,33181,28-Dec-23,1438.18,239.7,182414,Brightwell,130000              Cleaning & Janitorial,A,2023,9
1052,Community and Housing,BIRKIN CLEANING SERVICES LTD,33167,28-Dec-23,1066.75,177.79,182414,Wimbledon Library,130000              Cleaning & Janitorial,A,2023,9
1053,Community and Housing,BIRKIN CLEANING SERVICES LTD,33170,28-Dec-23,1049.77,174.96,182414,Raynes Park Library,130000              Cleaning & Janitorial,A,2023,9
1054,Environment and Regeneration,BIRKIN CLEANING SERVICES LTD,32347,28-Dec-23,902.47,150.41,182414,Transport-Contract Hire,130000              Cleaning & Janitorial,A,2023,9
1055,Environment and Regeneration,BIRKIN CLEANING SERVICES LTD,33184,28-Dec-23,902.47,150.41,182414,Transport-Contract Hire,130000              Cleaning & Janitorial,A,2023,9
1056,Community and Housing,BIRKIN CLEANING SERVICES LTD,33175,28-Dec-23,770.33,128.39,182414,Eastway Day Centre,130000              Cleaning & Janitorial,A,2023,9
1057,"Children, Schools and Family",BIRKIN CLEANING SERVICES LTD,32342,28-Dec-23,754.75,125.79,182414,Adventure Playground Project,130000              Cleaning & Janitorial,A,2023,9
1058,"Children, Schools and Family",BIRKIN CLEANING SERVICES LTD,33179,28-Dec-23,754.75,125.79,182414,Adventure Playground Project,130000              Cleaning & Janitorial,A,2023,9
1059,"Children, Schools and Family",BIRKIN CLEANING SERVICES LTD,33172,28-Dec-23,754.63,125.77,182414,Merton Youth Centres.,130000              Cleaning & Janitorial,A,2023,9
1060,"Children, Schools and Family",BIRKIN CLEANING SERVICES LTD,33173,28-Dec-23,750.68,125.11,182414,Merton Youth Centres.,130000              Cleaning & Janitorial,A,2023,9
1061,Environment and Regeneration,BIRKIN CLEANING SERVICES LTD,33164,28-Dec-23,698.4,116.4,182414,Durnsford industrial estate,130000              Cleaning & Janitorial,A,2023,9
1062,Community and Housing,BIRKIN CLEANING SERVICES LTD,33171,28-Dec-23,617.09,102.85,182414,West Barnes Lib,130000              Cleaning & Janitorial,A,2023,9
1063,Community and Housing,BIRKIN CLEANING SERVICES LTD,33168,28-Dec-23,1750.62,291.77,182414,Mitcham Library,130000              Cleaning & Janitorial,A,2023,9
1064,Community and Housing,BIRKIN CLEANING SERVICES LTD,33150,28-Dec-23,1798.67,299.78,182414,Morden Library,130000              Cleaning & Janitorial,A,2023,9
1065,Community and Housing,BIRKIN CLEANING SERVICES LTD,32339,28-Dec-23,1842.22,307.04,182414,Highpath (DayCentre) Leyton Rd,130000              Cleaning & Janitorial,A,2023,9
1066,Community and Housing,BIRKIN CLEANING SERVICES LTD,33176,28-Dec-23,1842.22,307.04,182414,Highpath (DayCentre) Leyton Rd,130000              Cleaning & Janitorial,A,2023,9
1067,Community and Housing,BIRKIN CLEANING SERVICES LTD,33169,28-Dec-23,2120.48,353.41,182414,Pollards Hill Library,130000              Cleaning & Janitorial,A,2023,9
1068,Community and Housing,BIRKIN CLEANING SERVICES LTD,33174,28-Dec-23,2143.6,357.27,182414,All Saints Day Centre,130000              Cleaning & Janitorial,A,2023,9
1069,Community and Housing,BIRKIN CLEANING SERVICES LTD,32340,28-Dec-23,2167.12,361.19,182414,JMC  Day Centre,130000              Cleaning & Janitorial,A,2023,9
1070,Community and Housing,BIRKIN CLEANING SERVICES LTD,33177,28-Dec-23,2167.12,361.19,182414,JMC  Day Centre,130000              Cleaning & Janitorial,A,2023,9
1071,"Children, Schools and Family",BIRKIN CLEANING SERVICES LTD,32343,28-Dec-23,2465.74,410.96,182414,Steers Mead BuildingManagement,130000              Cleaning & Janitorial,A,2023,9
1072,"Children, Schools and Family",BIRKIN CLEANING SERVICES LTD,33180,28-Dec-23,2465.74,410.96,182414,Steers Mead BuildingManagement,130000              Cleaning & Janitorial,A,2023,9
1073,Environment and Regeneration,BIRKIN CLEANING SERVICES LTD,33163,28-Dec-23,3196.02,532.67,182414,Vestry Hall,130000              Cleaning & Janitorial,A,2023,9
1074,Community and Housing,BIRKIN CLEANING SERVICES LTD,33166,28-Dec-23,3525.84,587.64,182414,Wimbledon Library,130000              Cleaning & Janitorial,A,2023,9
1075,Corporate Services,BIRKIN CLEANING SERVICES LTD,33161,28-Dec-23,2444.05,407.34,182414,Corporate Contracts - FM,130000              Cleaning & Janitorial,A,2023,9
1076,Corporate Services,BIRKIN CLEANING SERVICES LTD,33165,28-Dec-23,8688.29,1448.05,182414,Corporate Contracts - FM,130000              Cleaning & Janitorial,A,2023,9
1077,Corporate Services,BIRKIN CLEANING SERVICES LTD,33149,28-Dec-23,27305.2,4550.87,182414,Corporate Contracts - FM,130000              Cleaning & Janitorial,A,2023,9
1078,Environment and Regeneration,BIRKIN CLEANING SERVICES LTD,33465,28-Dec-23,2041.39,340.23,182414,Vestry Hall,130000              Cleaning & Janitorial,A,2023,9
1079,Environment and Regeneration,PAINS FIREWORKS LTD,17966,08-Dec-23,62370,10395,182477,Outdoor Events,290000              Arts & Leisure Services,A,2023,9
1080,"Children, Schools and Family",REDACTED PERSONAL DATA,1074333,04-Dec-23,1731.6,0,182494,Child Disabilities - Placement,DIRECT PAYMENTS,R,2023,9
1081,"Children, Schools and Family",REDACTED PERSONAL DATA,1085424,15-Dec-23,926.58,0,182558,UASC LAC Under 18,321100              Social Community Care Supplies & Services - Children,R,2023,9
1082,Community and Housing,REDACTED PERSONAL DATA,1078156,08-Dec-23,2952.04,0,182584,Phys/Sens Placements - East,DIRECT PAYMENTS,R,2023,9
1083,Capital,ENERGY SAVING LIGHTING (UK) LT,6138,05-Dec-23,30713.04,5118.84,182638,Property Management Enhancemen,"390000              Works - Construction, Repair & Maintenance",A,2023,9
1084,"Children, Schools and Family",REDACTED PERSONAL DATA,1079444,08-Dec-23,548.09,0,182648,UASC LAC Under 18,321100              Social Community Care Supplies & Services - Children,R,2023,9
1085,"Children, Schools and Family",REDACTED PERSONAL DATA,1079502,08-Dec-23,548.09,0,182648,UASC LAC Under 18,321100              Social Community Care Supplies & Services - Children,R,2023,9
1086,"Children, Schools and Family",REDACTED PERSONAL DATA,1085404,15-Dec-23,1096.18,0,182648,UASC LAC Under 18,321100              Social Community Care Supplies & Services - Children,R,2023,9
1087,"Children, Schools and Family",REDACTED PERSONAL DATA,1085462,15-Dec-23,1096.18,0,182648,UASC LAC Under 18,321100              Social Community Care Supplies & Services - Children,R,2023,9
1088,"Children, Schools and Family",REDACTED PERSONAL DATA,1091026,28-Dec-23,548.09,0,182648,UASC LAC Under 18,321100              Social Community Care Supplies & Services - Children,R,2023,9
1089,"Children, Schools and Family",REDACTED PERSONAL DATA,1091083,28-Dec-23,548.09,0,182648,UASC LAC Under 18,321100              Social Community Care Supplies & Services - Children,R,2023,9
1090,Community and Housing,REDACTED PERSONAL DATA,1078377,08-Dec-23,6347.8,0,182894,Learning Disabilities Placemnt,DIRECT PAYMENTS,R,2023,9
1091,Corporate Services,PELLINGS LLP,SI9037527,18-Dec-23,1200,200,182945,SLLP - Disbursements,280000              Legal Services                                                                            Confirmed,A,2023,9
1092,Corporate Services,PELLINGS LLP,SI9037388,18-Dec-23,1200,200,182945,SLLP - Disbursements,280000              Legal Services                                                                            Confirmed,A,2023,9
1093,Corporate Services,PELLINGS LLP,SI9037611,01-Jan-24,1200,200,182945,SLLP - Disbursements,280000              Legal Services                                                                            Confirmed,A,2023,9
1094,Corporate Services,REDACTED PERSONAL DATA,30191737,21-Dec-23,30195.6,5032.6,183158,Corporately Funded Items,200000              Financial Services                                                                        Confirmed,R,2023,9
1095,Corporate Services,REDACTED PERSONAL DATA,30188602,21-Dec-23,24180,4030,183158,Corporately Funded Items,200000              Financial Services                                                                        Confirmed,R,2023,9
1096,Community and Housing,REDACTED PERSONAL DATA,1078114,08-Dec-23,5057.2,0,183167,Older People Placements - East,DIRECT PAYMENTS,R,2023,9
1097,Community and Housing,ST ANTONYS CARE HOME,1084339,15-Dec-23,3840,0,183206,Older People Placements - East,321017              Nursing & Residential Care Homes,A,2023,9
1098,Community and Housing,ST ANTONYS CARE HOME,1084369,15-Dec-23,3840,0,183206,Older People Placements - East,321017              Nursing & Residential Care Homes,A,2023,9
1099,Community and Housing,ST ANTONYS CARE HOME,1084382,15-Dec-23,4200,0,183206,Mental Health Placements,321017              Nursing & Residential Care Homes,A,2023,9
1100,Community and Housing,ST ANTONYS CARE HOME,1084589,15-Dec-23,4000,0,183206,Older People Placements - East,321017              Nursing & Residential Care Homes,A,2023,9
1101,Community and Housing,ST ANTONYS CARE HOME,1089195,29-Dec-23,3600,0,183206,Older People Placements - East,321017              Nursing & Residential Care Homes,A,2023,9
1102,Community and Housing,PARKSIDE NURSING HOME,1089199,29-Dec-23,3934.29,0,183209,Older People Placements - East,321017              Nursing & Residential Care Homes,A,2023,9
1103,"Children, Schools and Family",REDACTED PERSONAL DATA,1074459,04-Dec-23,578.56,0,183239, Childrens Short Breaks,CSF-DIRECT PAYMENTS,R,2023,9
1104,"Children, Schools and Family",REDACTED PERSONAL DATA,1074379,04-Dec-23,625.6,0,183241, Childrens Short Breaks,CSF-DIRECT PAYMENTS,R,2023,9
1105,Unassigned,HARRIS ACADEMY MORDEN,SCHOOLS 2324/9 A,08-Dec-23,52779.84,0,183257,Schools,170000              Education,A,2023,9
1106,"Children, Schools and Family",Horizon Education (South London) Limited,SI-C0000000307,07-Dec-23,19812.39,0,183299,Non-Delegated Statements,170000              Education,A,2023,9
1107,"Children, Schools and Family",Horizon Education (South London) Limited,SI-C0000000273,07-Dec-23,21553.61,0,183299,Non-Delegated Statements,170000              Education,A,2023,9
1108,"Children, Schools and Family",Horizon Education (South London) Limited,SI-C0000000330,07-Dec-23,690.17,0,183299,Non-Delegated Statements,170000              Education,A,2023,9
1109,"Children, Schools and Family",Horizon Education (South London) Limited,SI-C0000000245,07-Dec-23,20297.94,0,183299,Non-Delegated Statements,170000              Education,A,2023,9
1110,"Children, Schools and Family",Horizon Education (South London) Limited,SIC0000000246,07-Dec-23,14277.25,0,183299,Non-Delegated Statements,170000              Education,A,2023,9
1111,"Children, Schools and Family",Horizon Education (South London) Limited,SI-C0000000248,07-Dec-23,20318.09,0,183299,Non-Delegated Statements,170000              Education,A,2023,9
1112,"Children, Schools and Family",Horizon Education (South London) Limited,SI-C0000000263,07-Dec-23,19036.29,0,183299,Non-Delegated Statements,170000              Education,A,2023,9
1113,"Children, Schools and Family",Horizon Education (South London) Limited,SI-C0000000268,07-Dec-23,21445.84,0,183299,Non-Delegated Statements,170000              Education,A,2023,9
1114,"Children, Schools and Family",Horizon Education (South London) Limited,SI-C0000000270,07-Dec-23,30999.93,0,183299,Non-Delegated Statements,170000              Education,A,2023,9
1115,"Children, Schools and Family",Horizon Education (South London) Limited,SI-C0000000337,07-Dec-23,714.87,0,183299,Non-Delegated Statements,170000              Education,A,2023,9
1116,"Children, Schools and Family",Horizon Education (South London) Limited,SI-C0000000333,07-Dec-23,690.82,0,183299,Non-Delegated Statements,170000              Education,A,2023,9
1117,"Children, Schools and Family",Horizon Education (South London) Limited,SI-C0000000334,07-Dec-23,647.27,0,183299,Non-Delegated Statements,170000              Education,A,2023,9
1118,"Children, Schools and Family",Horizon Education (South London) Limited,SI-C0000000335,07-Dec-23,729.17,0,183299,Non-Delegated Statements,170000              Education,A,2023,9
1119,"Children, Schools and Family",Horizon Education (South London) Limited,SI-C0000000336,07-Dec-23,1054.04,0,183299,Non-Delegated Statements,170000              Education,A,2023,9
1120,"Children, Schools and Family",Horizon Education (South London) Limited,SI-C0000000338,07-Dec-23,732.81,0,183299,Non-Delegated Statements,170000              Education,A,2023,9
1121,"Children, Schools and Family",Horizon Education (South London) Limited,SI-C0000000341,07-Dec-23,929.37,0,183299,Non-Delegated Statements,170000              Education,A,2023,9
1122,"Children, Schools and Family",Horizon Education (South London) Limited,SI-C0000000344,07-Dec-23,760.11,0,183299,Non-Delegated Statements,170000              Education,A,2023,9
1123,"Children, Schools and Family",Horizon Education (South London) Limited,SI-C0000000350,07-Dec-23,979.29,0,183299,Non-Delegated Statements,170000              Education,A,2023,9
1124,"Children, Schools and Family",Horizon Education (South London) Limited,SI-C0000000351,07-Dec-23,673.66,0,183299,Non-Delegated Statements,170000              Education,A,2023,9
1125,"Children, Schools and Family",Horizon Education (South London) Limited,SI-C0000000306,08-Dec-23,28804.23,0,183299,Non-Delegated Statements,170000              Education,A,2023,9
1126,"Children, Schools and Family",Horizon Education (South London) Limited,SI-C0000000281,08-Dec-23,27333.28,0,183299,Non-Delegated Statements,170000              Education,A,2023,9
1127,"Children, Schools and Family",Horizon Education (South London) Limited,SI-C0000000287,08-Dec-23,22356.75,0,183299,Non-Delegated Statements,170000              Education,A,2023,9
1128,"Children, Schools and Family",Horizon Education (South London) Limited,SI-C0000000456,08-Dec-23,16855.3,0,183299,Non-Delegated Statements,170000              Education,A,2023,9
1129,"Children, Schools and Family",Horizon Education (South London) Limited,SI-C0000000457,08-Dec-23,3064.6,0,183299,Non-Delegated Statements,170000              Education,A,2023,9
1130,"Children, Schools and Family",Horizon Education (South London) Limited,SI-C0000000507,22-Dec-23,20493.85,0,183299,Non-Delegated Statements,170000              Education,A,2023,9
1131,"Children, Schools and Family",Horizon Education (South London) Limited,SI-C0000000508,22-Dec-23,14762.67,0,183299,Non-Delegated Statements,170000              Education,A,2023,9
1132,"Children, Schools and Family",Horizon Education (South London) Limited,SI-C0000000509,22-Dec-23,21740.16,0,183299,Non-Delegated Statements,170000              Education,A,2023,9
1133,"Children, Schools and Family",Horizon Education (South London) Limited,SI-C0000000510,22-Dec-23,21008.91,0,183299,Non-Delegated Statements,170000              Education,A,2023,9
1134,"Children, Schools and Family",Horizon Education (South London) Limited,SI-C0000000511,22-Dec-23,19683.56,0,183299,Non-Delegated Statements,170000              Education,A,2023,9
1135,"Children, Schools and Family",Horizon Education (South London) Limited,SI-C0000000512,22-Dec-23,22175.01,0,183299,Non-Delegated Statements,170000              Education,A,2023,9
1136,"Children, Schools and Family",Horizon Education (South London) Limited,SI-C0000000513,22-Dec-23,32053.97,0,183299,Non-Delegated Statements,170000              Education,A,2023,9
1137,"Children, Schools and Family",Horizon Education (South London) Limited,SI-C0000000514,22-Dec-23,22286.42,0,183299,Non-Delegated Statements,170000              Education,A,2023,9
1138,"Children, Schools and Family",Horizon Education (South London) Limited,SI-C0000000515,22-Dec-23,21724.3,0,183299,Non-Delegated Statements,170000              Education,A,2023,9
1139,"Children, Schools and Family",Horizon Education (South London) Limited,SI-C0000000517,22-Dec-23,28262.65,0,183299,Non-Delegated Statements,170000              Education,A,2023,9
1140,"Children, Schools and Family",Horizon Education (South London) Limited,SI-C0000000518,22-Dec-23,24322.35,0,183299,Non-Delegated Statements,170000              Education,A,2023,9
1141,"Children, Schools and Family",Horizon Education (South London) Limited,SI-C0000000519,22-Dec-23,22121.97,0,183299,Non-Delegated Statements,170000              Education,A,2023,9
1142,"Children, Schools and Family",Horizon Education (South London) Limited,SI-C0000000520,22-Dec-23,23116.86,0,183299,Non-Delegated Statements,170000              Education,A,2023,9
1143,"Children, Schools and Family",Horizon Education (South London) Limited,SI-C0000000521,22-Dec-23,24837.28,0,183299,Non-Delegated Statements,170000              Education,A,2023,9
1144,"Children, Schools and Family",Horizon Education (South London) Limited,SI-C0000000522,22-Dec-23,32053.97,0,183299,Non-Delegated Statements,170000              Education,A,2023,9
1145,"Children, Schools and Family",Horizon Education (South London) Limited,SI-C0000000523,22-Dec-23,22286.42,0,183299,Non-Delegated Statements,170000              Education,A,2023,9
1146,"Children, Schools and Family",Horizon Education (South London) Limited,SI-C0000000524,19-Dec-23,23071.88,0,183299,Non-Delegated Statements,170000              Education,A,2023,9
1147,"Children, Schools and Family",Horizon Education (South London) Limited,SI-C0000000525,19-Dec-23,20597.2,0,183299,Non-Delegated Statements,170000              Education,A,2023,9
1148,"Children, Schools and Family",Horizon Education (South London) Limited,SI-C0000000526,19-Dec-23,29783.52,0,183299,Non-Delegated Statements,170000              Education,A,2023,9
1149,"Children, Schools and Family",Horizon Education (South London) Limited,SI-C0000000527,19-Dec-23,20486.05,0,183299,Non-Delegated Statements,170000              Education,A,2023,9
1150,"Children, Schools and Family",Horizon Education (South London) Limited,SI-C0000000516,19-Dec-23,22619.35,0,183299,Non-Delegated Statements,170000              Education,A,2023,9
1151,Community and Housing,TAMWORTH HOUSE MEDICAL CENTRE,IUD-Q12023-24TH,07-Dec-23,1675.6,0,183339,PH - Sexual Health,310000              Healthcare,A,2023,9
1152,Community and Housing,TAMWORTH HOUSE MEDICAL CENTRE,IUD-Q22023-24TH,07-Dec-23,1102.7,0,183339,PH - Sexual Health,310000              Healthcare,A,2023,9
1153,Community and Housing,CENTRAL MEDICAL CENTRE,Q12023/24,07-Dec-23,1387.6,0,183386,PH - Sexual Health,310000              Healthcare,A,2023,9
1154,Community and Housing,BARKERS CHEMIST,DQCB/00000083,22-Dec-23,881.44,7.69,183398,PH - Sexual Health,310000              Healthcare,A,2023,9
1155,Community and Housing,REDACTED PERSONAL DATA,1078118,08-Dec-23,1322.92,0,183460,Learning Disabilities Placemnt,DIRECT PAYMENTS,R,2023,9
1156,Community and Housing,REDACTED PERSONAL DATA,1078164,08-Dec-23,1622.64,0,183464,Older People Placements - East,DIRECT PAYMENTS,R,2023,9
1157,Community and Housing,CREST MANOR LTD,CM0838,04-Dec-23,5819.4,0,183548,Bed & Breakfast - accomm,250000              Housing Management,A,2023,9
1158,"Children, Schools and Family",REDACTED PERSONAL DATA,1074410,04-Dec-23,1710,0,183558,Child Disabilities - Placement,CSF-DIRECT PAYMENTS,R,2023,9
1159,Community and Housing,DICKSONS ESTATE AGENTS,29 COLLEGE RENEW,28-Dec-23,2400,0,183623,Homelessness Prevention,200000              Financial Services,A,2023,9
1160,Unassigned,TOTAL COMPUTER NETWORKS,SI915809,02-Jan-24,504,84,183646,Director Innovation and Change,270000              Information Communication Technology,A,2023,9
1161,"Children, Schools and Family",TOTAL COMPUTER NETWORKS,SI915815,02-Jan-24,504,84,183646,Policy Planning & Performance,270000              Information Communication Technology,A,2023,9
1162,"Children, Schools and Family",TOTAL COMPUTER NETWORKS,SI915947,03-Jan-24,504,84,183646, Children & Yth Participation,270000              Information Communication Technology,A,2023,9
1163,Community and Housing,REDACTED PERSONAL DATA,1078086,08-Dec-23,664.72,0,183690,Older People Placements - East,DIRECT PAYMENTS,R,2023,9
1164,Community and Housing,LONDON BOROUGH OF LAMBETH,2601335400,07-Dec-23,18581.07,0,183715,PH - Sexual Health,OLA,A,2023,9
1165,Community and Housing,REDACTED PERSONAL DATA,1078216,08-Dec-23,3026.76,0,184175,Older People Placements - East,DIRECT PAYMENTS,R,2023,9
1166,Community and Housing,REDACTED PERSONAL DATA,1078195,08-Dec-23,508.32,0,184315,Older People Placements - East,DIRECT PAYMENTS,R,2023,9
1167,Community and Housing,CROWNWISE LTD,1084264,15-Dec-23,5907,0,184360,Mental Health Placements,321000              Social Community Care Supplies & Services - Adult,A,2023,9
1168,Community and Housing,CROWNWISE LTD,BG/167/002,22-Dec-23,10531.67,0,184360,Mental Health Placements,321000              Social Community Care Supplies & Services - Adult,A,2023,9
1169,Community and Housing,MARIAN HOUSE NURSING HOME,1084253,15-Dec-23,2834.56,0,184385,Older People Placements - East,321017              Nursing & Residential Care Homes,A,2023,9
1170,"Children, Schools and Family",REDACTED PERSONAL DATA,1079550,08-Dec-23,582.17,0,184386,Placements Under 18,321100              Social Community Care Supplies & Services - Children,R,2023,9
1171,"Children, Schools and Family",REDACTED PERSONAL DATA,1085498,15-Dec-23,926.58,0,184386,Placements Under 18,321100              Social Community Care Supplies & Services - Children,R,2023,9
1172,"Children, Schools and Family",REDACTED PERSONAL DATA,1085510,15-Dec-23,1164.34,0,184386,Placements Under 18,321100              Social Community Care Supplies & Services - Children,R,2023,9
1173,"Children, Schools and Family",REDACTED PERSONAL DATA,1091132,28-Dec-23,582.17,0,184386,Placements Under 18,321100              Social Community Care Supplies & Services - Children,R,2023,9
1174,"Children, Schools and Family",SOUTHFIELDS  ACADEMY,INV-1489,15-Dec-23,8252.82,0,184420,Non-Delegated Statements,170000              Education,A,2023,9
1175,"Children, Schools and Family",SOUTHFIELDS  ACADEMY,INV-1488,28-Dec-23,5950.36,0,184420,Non-Delegated Statements,170000              Education,A,2023,9
1176,Community and Housing,REDACTED PERSONAL DATA,1078238,08-Dec-23,4995,0,184580,Older People Placements - East,DIRECT PAYMENTS,R,2023,9
1177,"Children, Schools and Family",Carew Academy,DI101105653,01-Dec-23,167903.7,0,184603,Non-Delegated Statements,170000              Education,A,2023,9
1178,Community and Housing,REDACTED PERSONAL DATA,1078212,08-Dec-23,867.48,0,184608,Older People Placements - East,DIRECT PAYMENTS,R,2023,9
1179,"Children, Schools and Family",Bright Horizons Family Solutions Ltd,P2 23 LATESTARTS,15-Dec-23,4420.35,0,184692,EARLY YEARS NURSERY GRANTS,170000              Education,A,2023,9
1180,"Children, Schools and Family",Bright Horizons Family Solutions Ltd,P2 23 EYSG 2,20-Dec-23,859.8,0,184692, Information & Systems Team,170000              Education,A,2023,9
1181,Corporate Services,SEARCHFLOW LTD,INV9433848,22-Dec-23,921.8,147.47,184757,SLLP - Disbursements,190000              Facilities & Management Services,A,2023,9
